Organisation Name,Organisation Code,Date Paid,Transaction Number,Amount,Supplier Name,Supplier ID,Supplier post code (first 4 digits),Directorate,Service Area,General Ledger code Description,BVACOP class,Revenue/ Capital Spend
Wiltshire,http://opendatacommunities.org/id/unitary-authority/wiltshire,17/12/2019,1902468836,600, Hartsdown Academy ,148971,CT9 ,Children & Education,Pupil Premium LAC,Educational Fees,Supplies and Services,REVENUE
Wiltshire,http://opendatacommunities.org/id/unitary-authority/wiltshire,03/12/2019,1902459840,676.39,1st Choice Stairlifts ,113095,SN11,Wiltshire Council,Wiltshire Council,Other Contracts,Third Party Payments,CAPITAL
Wiltshire,http://opendatacommunities.org/id/unitary-authority/wiltshire,18/12/2019,1902473763,1700,1st Choice Stairlifts ,113095,SN11,Wiltshire Council,Wiltshire Council,Other Contracts,Third Party Payments,CAPITAL
Wiltshire,http://opendatacommunities.org/id/unitary-authority/wiltshire,19/12/2019,1902474513,1927,1st Choice Stairlifts ,113095,SN11,Wiltshire Council,Wiltshire Council,Other Contracts,Third Party Payments,CAPITAL
Wiltshire,http://opendatacommunities.org/id/unitary-authority/wiltshire,10/12/2019,1902464465,2360,2 Care UK Ltd ,110002,BH7 ,Community Services,MH AOWA South Locali,Supported Living,Third Party Payments,REVENUE
Wiltshire,http://opendatacommunities.org/id/unitary-authority/wiltshire,10/12/2019,1902464466,2360,2 Care UK Ltd ,110002,BH7 ,Community Services,MH AOWA South Locali,Supported Living,Third Party Payments,REVENUE
Wiltshire,http://opendatacommunities.org/id/unitary-authority/wiltshire,10/12/2019,1902464467,2360,2 Care UK Ltd ,110002,BH7 ,Community Services,MH AOWA South Locali,Supported Living,Third Party Payments,REVENUE
Wiltshire,http://opendatacommunities.org/id/unitary-authority/wiltshire,10/12/2019,1902464468,2360,2 Care UK Ltd ,110002,BH7 ,Community Services,MH AOWA South Locali,Supported Living,Third Party Payments,REVENUE
Wiltshire,http://opendatacommunities.org/id/unitary-authority/wiltshire,10/12/2019,1902464469,2360,2 Care UK Ltd ,110002,BH7 ,Community Services,MH AOWA South Locali,Supported Living,Third Party Payments,REVENUE
Wiltshire,http://opendatacommunities.org/id/unitary-authority/wiltshire,18/12/2019,1902473778,2937.04,24-7 Staffing ,140662,SN15,Community Services,MH AOWA South Locali,Adult Domiciliary Care,Third Party Payments,REVENUE
Wiltshire,http://opendatacommunities.org/id/unitary-authority/wiltshire,18/12/2019,1902473779,2887.91,24-7 Staffing ,140662,SN15,Community Services,MH AOWA South Locali,Adult Domiciliary Care,Third Party Payments,REVENUE
Wiltshire,http://opendatacommunities.org/id/unitary-authority/wiltshire,18/12/2019,1902473782,2952.04,24-7 Staffing ,140662,SN15,Community Services,MH AOWA South Locali,Adult Domiciliary Care,Third Party Payments,REVENUE
Wiltshire,http://opendatacommunities.org/id/unitary-authority/wiltshire,17/12/2019,1902469005,618.21,2get2 Taxi Services Ltd ,101102,SP4 ,Neighbourhood & Planning,SEN Primary Transprt,Transport Contracts,Third Party Payments,REVENUE
Wiltshire,http://opendatacommunities.org/id/unitary-authority/wiltshire,17/12/2019,1902469005,1984.79,2get2 Taxi Services Ltd ,101102,SP4 ,Neighbourhood & Planning,SEN Secondary Tspt,Transport Contracts,Third Party Payments,REVENUE
Wiltshire,http://opendatacommunities.org/id/unitary-authority/wiltshire,17/12/2019,1902469006,2090,2get2 Taxi Services Ltd ,101102,SP4 ,Neighbourhood & Planning,SEN Primary Transprt,Transport Contracts,Third Party Payments,REVENUE
Wiltshire,http://opendatacommunities.org/id/unitary-authority/wiltshire,10/12/2019,1902464198,2939.29,4K Travel ,146614,SN2 ,Neighbourhood & Planning,Mainstream Secondary,Transport Contracts,Third Party Payments,REVENUE
Wiltshire,http://opendatacommunities.org/id/unitary-authority/wiltshire,10/12/2019,1902464200,2730,4K Travel ,146614,SN2 ,Neighbourhood & Planning,Mainstream Secondary,Transport Contracts,Third Party Payments,REVENUE
Wiltshire,http://opendatacommunities.org/id/unitary-authority/wiltshire,10/12/2019,1902464201,4181.2,4K Travel ,146614,SN2 ,Neighbourhood & Planning,Mainstream Secondary,Transport Contracts,Third Party Payments,REVENUE
Wiltshire,http://opendatacommunities.org/id/unitary-authority/wiltshire,10/12/2019,1902464203,3049.39,4K Travel ,146614,SN2 ,Neighbourhood & Planning,Mainstream Secondary,Transport Contracts,Third Party Payments,REVENUE
Wiltshire,http://opendatacommunities.org/id/unitary-authority/wiltshire,10/12/2019,1902464204,3233.5,4K Travel ,146614,SN2 ,Neighbourhood & Planning,Mainstream Secondary,Transport Contracts,Third Party Payments,REVENUE
Wiltshire,http://opendatacommunities.org/id/unitary-authority/wiltshire,10/12/2019,1902464205,3233.5,4K Travel ,146614,SN2 ,Neighbourhood & Planning,Mainstream Primary,Transport Contracts,Third Party Payments,REVENUE
Wiltshire,http://opendatacommunities.org/id/unitary-authority/wiltshire,10/12/2019,1902464206,2336.82,4K Travel ,146614,SN2 ,Neighbourhood & Planning,Mainstream Secondary,Transport Contracts,Third Party Payments,REVENUE
Wiltshire,http://opendatacommunities.org/id/unitary-authority/wiltshire,10/12/2019,1902464207,4268.2,4K Travel ,146614,SN2 ,Neighbourhood & Planning,Mainstream Secondary,Transport Contracts,Third Party Payments,REVENUE
Wiltshire,http://opendatacommunities.org/id/unitary-authority/wiltshire,10/12/2019,1902464208,2142,4K Travel ,146614,SN2 ,Neighbourhood & Planning,SEN Secondary Tspt,Transport Contracts,Third Party Payments,REVENUE
Wiltshire,http://opendatacommunities.org/id/unitary-authority/wiltshire,10/12/2019,1902464215,264,4K Travel ,146614,SN2 ,Neighbourhood & Planning,Public Transport,Transport Contracts,Third Party Payments,REVENUE
Wiltshire,http://opendatacommunities.org/id/unitary-authority/wiltshire,10/12/2019,1902464217,456.67,4K Travel ,146614,SN2 ,Neighbourhood & Planning,SEN Primary Transprt,Transport Contracts,Third Party Payments,REVENUE
Wiltshire,http://opendatacommunities.org/id/unitary-authority/wiltshire,10/12/2019,1902464217,2283.33,4K Travel ,146614,SN2 ,Neighbourhood & Planning,SEN Secondary Tspt,Transport Contracts,Third Party Payments,REVENUE
Wiltshire,http://opendatacommunities.org/id/unitary-authority/wiltshire,10/12/2019,1902464218,902.44,4K Travel ,146614,SN2 ,Neighbourhood & Planning,SEN Primary Transprt,Transport Contracts,Third Party Payments,REVENUE
Wiltshire,http://opendatacommunities.org/id/unitary-authority/wiltshire,10/12/2019,1902464218,2797.56,4K Travel ,146614,SN2 ,Neighbourhood & Planning,SEN Secondary Tspt,Transport Contracts,Third Party Payments,REVENUE
Wiltshire,http://opendatacommunities.org/id/unitary-authority/wiltshire,10/12/2019,1902464219,2333.33,4K Travel ,146614,SN2 ,Neighbourhood & Planning,Mainstream Primary,Transport Contracts,Third Party Payments,REVENUE
Wiltshire,http://opendatacommunities.org/id/unitary-authority/wiltshire,10/12/2019,1902464226,521.06,4K Travel ,146614,SN2 ,Community Services,North Care Packages,Transport Contracts,Third Party Payments,REVENUE
Wiltshire,http://opendatacommunities.org/id/unitary-authority/wiltshire,10/12/2019,1902464226,2406.8,4K Travel ,146614,SN2 ,Community Services,CTPLD Placements,Transport Contracts,Third Party Payments,REVENUE
Wiltshire,http://opendatacommunities.org/id/unitary-authority/wiltshire,13/12/2019,1902468075,1064.16,A & T Salisbury (Ltd) ,134373,SP1 ,Community Services,South Care Packages,Adult Domiciliary Care,Third Party Payments,REVENUE
Wiltshire,http://opendatacommunities.org/id/unitary-authority/wiltshire,13/12/2019,1902468084,562.08,A & T Salisbury (Ltd) ,134373,SP1 ,Community Services,South Care Packages,Adult Domiciliary Care Contribution,Income,REVENUE
Wiltshire,http://opendatacommunities.org/id/unitary-authority/wiltshire,13/12/2019,1902468085,938.28,A & T Salisbury (Ltd) ,134373,SP1 ,Community Services,South Care Packages,Adult Domiciliary Care,Third Party Payments,REVENUE
Wiltshire,http://opendatacommunities.org/id/unitary-authority/wiltshire,13/12/2019,1902468086,625.52,A & T Salisbury (Ltd) ,134373,SP1 ,Community Services,South Care Packages,Adult Domiciliary Care,Third Party Payments,REVENUE
Wiltshire,http://opendatacommunities.org/id/unitary-authority/wiltshire,13/12/2019,1902468087,539.4,A & T Salisbury (Ltd) ,134373,SP1 ,Community Services,South Care Packages,Adult Domiciliary Care Contribution,Income,REVENUE
Wiltshire,http://opendatacommunities.org/id/unitary-authority/wiltshire,13/12/2019,1902468088,625.52,A & T Salisbury (Ltd) ,134373,SP1 ,Community Services,South Care Packages,Adult Domiciliary Care,Third Party Payments,REVENUE
Wiltshire,http://opendatacommunities.org/id/unitary-authority/wiltshire,11/12/2019,1902465698,997.5,A G Minibuses Ltd ,100878,BA12,Neighbourhood & Planning,Mainstream Primary,Transport Contracts,Third Party Payments,REVENUE
Wiltshire,http://opendatacommunities.org/id/unitary-authority/wiltshire,11/12/2019,1902465698,3403.62,A G Minibuses Ltd ,100878,BA12,Neighbourhood & Planning,Public Transport,Transport Contracts,Third Party Payments,REVENUE
Wiltshire,http://opendatacommunities.org/id/unitary-authority/wiltshire,11/12/2019,1902465699,1583.33,A G Minibuses Ltd ,100878,BA12,Neighbourhood & Planning,Mainstream Secondary,Transport Contracts,Third Party Payments,REVENUE
Wiltshire,http://opendatacommunities.org/id/unitary-authority/wiltshire,11/12/2019,1902465699,3982.46,A G Minibuses Ltd ,100878,BA12,Neighbourhood & Planning,Public Transport,Transport Contracts,Third Party Payments,REVENUE
Wiltshire,http://opendatacommunities.org/id/unitary-authority/wiltshire,17/12/2019,1902468978,1973.56,A G Minibuses Ltd ,100878,BA12,Neighbourhood & Planning,Mainstream Primary,Transport Contracts,Third Party Payments,REVENUE
Wiltshire,http://opendatacommunities.org/id/unitary-authority/wiltshire,17/12/2019,1902468979,661.4,A G Minibuses Ltd ,100878,BA12,Neighbourhood & Planning,SEN 16+ Transport,Transport Contracts,Third Party Payments,REVENUE
Wiltshire,http://opendatacommunities.org/id/unitary-authority/wiltshire,17/12/2019,1902468979,2645.6,A G Minibuses Ltd ,100878,BA12,Neighbourhood & Planning,SEN Primary Transprt,Transport Contracts,Third Party Payments,REVENUE
Wiltshire,http://opendatacommunities.org/id/unitary-authority/wiltshire,17/12/2019,1902468980,2736,A G Minibuses Ltd ,100878,BA12,Neighbourhood & Planning,SEN Secondary Tspt,Transport Contracts,Third Party Payments,REVENUE
Wiltshire,http://opendatacommunities.org/id/unitary-authority/wiltshire,17/12/2019,1902468981,1084.78,A G Minibuses Ltd ,100878,BA12,Neighbourhood & Planning,SEN Primary Transprt,Transport Contracts,Third Party Payments,REVENUE
Wiltshire,http://opendatacommunities.org/id/unitary-authority/wiltshire,17/12/2019,1902468981,1498.02,A G Minibuses Ltd ,100878,BA12,Neighbourhood & Planning,SEN Secondary Tspt,Transport Contracts,Third Party Payments,REVENUE
Wiltshire,http://opendatacommunities.org/id/unitary-authority/wiltshire,17/12/2019,1902468985,516,A G Minibuses Ltd ,100878,BA12,Neighbourhood & Planning,SEN 16+ Transport,Transport Contracts,Third Party Payments,REVENUE
Wiltshire,http://opendatacommunities.org/id/unitary-authority/wiltshire,17/12/2019,1902468985,1548,A G Minibuses Ltd ,100878,BA12,Neighbourhood & Planning,SEN Primary Transprt,Transport Contracts,Third Party Payments,REVENUE
Wiltshire,http://opendatacommunities.org/id/unitary-authority/wiltshire,17/12/2019,1902468987,324,A G Minibuses Ltd ,100878,BA12,Neighbourhood & Planning,SEN Primary Transprt,Transport Contracts,Third Party Payments,REVENUE
Wiltshire,http://opendatacommunities.org/id/unitary-authority/wiltshire,17/12/2019,1902468987,1944,A G Minibuses Ltd ,100878,BA12,Neighbourhood & Planning,SEN Secondary Tspt,Transport Contracts,Third Party Payments,REVENUE
Wiltshire,http://opendatacommunities.org/id/unitary-authority/wiltshire,17/12/2019,1902468988,2502,A G Minibuses Ltd ,100878,BA12,Neighbourhood & Planning,SEN Secondary Tspt,Transport Contracts,Third Party Payments,REVENUE
Wiltshire,http://opendatacommunities.org/id/unitary-authority/wiltshire,17/12/2019,1902468989,465.5,A G Minibuses Ltd ,100878,BA12,Neighbourhood & Planning,SEN Primary Transprt,Transport Contracts,Third Party Payments,REVENUE
Wiltshire,http://opendatacommunities.org/id/unitary-authority/wiltshire,17/12/2019,1902468989,2327.5,A G Minibuses Ltd ,100878,BA12,Neighbourhood & Planning,SEN Secondary Tspt,Transport Contracts,Third Party Payments,REVENUE
Wiltshire,http://opendatacommunities.org/id/unitary-authority/wiltshire,17/12/2019,1902468990,3732,A G Minibuses Ltd ,100878,BA12,Neighbourhood & Planning,SEN Secondary Tspt,Transport Contracts,Third Party Payments,REVENUE
Wiltshire,http://opendatacommunities.org/id/unitary-authority/wiltshire,17/12/2019,1902468991,311.32,A G Minibuses Ltd ,100878,BA12,Neighbourhood & Planning,SEN Rechargable Exp,Transport Contracts,Third Party Payments,REVENUE
Wiltshire,http://opendatacommunities.org/id/unitary-authority/wiltshire,17/12/2019,1902468991,2563.68,A G Minibuses Ltd ,100878,BA12,Neighbourhood & Planning,Mainstream Secondary,Transport Contracts,Third Party Payments,REVENUE
Wiltshire,http://opendatacommunities.org/id/unitary-authority/wiltshire,17/12/2019,1902468992,1028.72,A G Minibuses Ltd ,100878,BA12,Neighbourhood & Planning,SEN Primary Transprt,Transport Contracts,Third Party Payments,REVENUE
Wiltshire,http://opendatacommunities.org/id/unitary-authority/wiltshire,17/12/2019,1902468992,1543.08,A G Minibuses Ltd ,100878,BA12,Neighbourhood & Planning,SEN Secondary Tspt,Transport Contracts,Third Party Payments,REVENUE
Wiltshire,http://opendatacommunities.org/id/unitary-authority/wiltshire,17/12/2019,1902468993,3037.2,A G Minibuses Ltd ,100878,BA12,Neighbourhood & Planning,SEN Secondary Tspt,Transport Contracts,Third Party Payments,REVENUE
Wiltshire,http://opendatacommunities.org/id/unitary-authority/wiltshire,17/12/2019,1902468994,550.29,A G Minibuses Ltd ,100878,BA12,Neighbourhood & Planning,SEN Primary Transprt,Transport Contracts,Third Party Payments,REVENUE
Wiltshire,http://opendatacommunities.org/id/unitary-authority/wiltshire,17/12/2019,1902468994,2338.71,A G Minibuses Ltd ,100878,BA12,Neighbourhood & Planning,SEN Secondary Tspt,Transport Contracts,Third Party Payments,REVENUE
Wiltshire,http://opendatacommunities.org/id/unitary-authority/wiltshire,17/12/2019,1902468995,2854.4,A G Minibuses Ltd ,100878,BA12,Neighbourhood & Planning,SEN Secondary Tspt,Transport Contracts,Third Party Payments,REVENUE
Wiltshire,http://opendatacommunities.org/id/unitary-authority/wiltshire,17/12/2019,1902468996,565.92,A G Minibuses Ltd ,100878,BA12,Neighbourhood & Planning,SEN 16+ Transport,Transport Contracts,Third Party Payments,REVENUE
Wiltshire,http://opendatacommunities.org/id/unitary-authority/wiltshire,17/12/2019,1902468996,1131.84,A G Minibuses Ltd ,100878,BA12,Neighbourhood & Planning,SEN Primary Transprt,Transport Contracts,Third Party Payments,REVENUE
Wiltshire,http://opendatacommunities.org/id/unitary-authority/wiltshire,17/12/2019,1902468996,1131.84,A G Minibuses Ltd ,100878,BA12,Neighbourhood & Planning,SEN Secondary Tspt,Transport Contracts,Third Party Payments,REVENUE
Wiltshire,http://opendatacommunities.org/id/unitary-authority/wiltshire,17/12/2019,1902468997,855,A G Minibuses Ltd ,100878,BA12,Neighbourhood & Planning,SEN Secondary Tspt,Transport Contracts,Third Party Payments,REVENUE
Wiltshire,http://opendatacommunities.org/id/unitary-authority/wiltshire,17/12/2019,1902468997,855,A G Minibuses Ltd ,100878,BA12,Neighbourhood & Planning,SEN 16+ Transport,Transport Contracts,Third Party Payments,REVENUE
Wiltshire,http://opendatacommunities.org/id/unitary-authority/wiltshire,17/12/2019,1902468997,1710,A G Minibuses Ltd ,100878,BA12,Neighbourhood & Planning,SEN Primary Transprt,Transport Contracts,Third Party Payments,REVENUE
Wiltshire,http://opendatacommunities.org/id/unitary-authority/wiltshire,17/12/2019,1902468998,2714,A G Minibuses Ltd ,100878,BA12,Neighbourhood & Planning,SEN Primary Transprt,Transport Contracts,Third Party Payments,REVENUE
Wiltshire,http://opendatacommunities.org/id/unitary-authority/wiltshire,17/12/2019,1902468999,1489.1,A G Minibuses Ltd ,100878,BA12,Neighbourhood & Planning,SEN Primary Transprt,Transport Contracts,Third Party Payments,REVENUE
Wiltshire,http://opendatacommunities.org/id/unitary-authority/wiltshire,17/12/2019,1902468999,1489.1,A G Minibuses Ltd ,100878,BA12,Neighbourhood & Planning,SEN Secondary Tspt,Transport Contracts,Third Party Payments,REVENUE
Wiltshire,http://opendatacommunities.org/id/unitary-authority/wiltshire,17/12/2019,1902469000,2664,A G Minibuses Ltd ,100878,BA12,Neighbourhood & Planning,SEN Secondary Tspt,Transport Contracts,Third Party Payments,REVENUE
Wiltshire,http://opendatacommunities.org/id/unitary-authority/wiltshire,17/12/2019,1902469001,3114.1,A G Minibuses Ltd ,100878,BA12,Neighbourhood & Planning,SEN Secondary Tspt,Transport Contracts,Third Party Payments,REVENUE
Wiltshire,http://opendatacommunities.org/id/unitary-authority/wiltshire,17/12/2019,1902469007,2200,A G Minibuses Ltd ,100878,BA12,Community Services,CTPLD Placements,Transport Contracts,Third Party Payments,REVENUE
Wiltshire,http://opendatacommunities.org/id/unitary-authority/wiltshire,05/12/2019,1902461115,1500,A1 Cab Company ,101233,SP4 ,Neighbourhood & Planning,SEN Primary Transprt,Transport Contracts,Third Party Payments,REVENUE
Wiltshire,http://opendatacommunities.org/id/unitary-authority/wiltshire,05/12/2019,1902461116,331.67,A1 Cab Company ,101233,SP4 ,Neighbourhood & Planning,SEN Secondary Tspt,Transport Contracts,Third Party Payments,REVENUE
Wiltshire,http://opendatacommunities.org/id/unitary-authority/wiltshire,05/12/2019,1902461116,1658.33,A1 Cab Company ,101233,SP4 ,Neighbourhood & Planning,Mainstream Secondary,Transport Contracts,Third Party Payments,REVENUE
Wiltshire,http://opendatacommunities.org/id/unitary-authority/wiltshire,04/12/2019,1902460427,442,A2B Taxis (Dorset) ,143353,SP8 ,Community Services,CTPLD Placements,Transport Contracts,Third Party Payments,REVENUE
Wiltshire,http://opendatacommunities.org/id/unitary-authority/wiltshire,04/12/2019,1902460429,720,A2B Taxis (Dorset) ,143353,SP8 ,Community Services,West Care Packages,Transport Contracts,Third Party Payments,REVENUE
Wiltshire,http://opendatacommunities.org/id/unitary-authority/wiltshire,04/12/2019,1902460436,700,A2B Taxis (Dorset) ,143353,SP8 ,Neighbourhood & Planning,Mainstream Secondary,Transport Contracts,Third Party Payments,REVENUE
Wiltshire,http://opendatacommunities.org/id/unitary-authority/wiltshire,04/12/2019,1902460436,700,A2B Taxis (Dorset) ,143353,SP8 ,Neighbourhood & Planning,SEN Secondary Tspt,Transport Contracts,Third Party Payments,REVENUE
Wiltshire,http://opendatacommunities.org/id/unitary-authority/wiltshire,10/12/2019,1902464322,1508,A2B Taxis (Dorset) ,143353,SP8 ,Neighbourhood & Planning,SEN Secondary Tspt,Transport Contracts,Third Party Payments,REVENUE
Wiltshire,http://opendatacommunities.org/id/unitary-authority/wiltshire,24/12/2019,1902478308,400,AAP Taxis and Private Hire Ltd ,143342,SN10,Neighbourhood & Planning,Mainstream Primary,Transport Contracts,Third Party Payments,REVENUE
Wiltshire,http://opendatacommunities.org/id/unitary-authority/wiltshire,24/12/2019,1902478312,920,AAP Taxis and Private Hire Ltd ,143342,SN10,Neighbourhood & Planning,SEN Secondary Tspt,Transport Contracts,Third Party Payments,REVENUE
Wiltshire,http://opendatacommunities.org/id/unitary-authority/wiltshire,24/12/2019,1902478312,1840,AAP Taxis and Private Hire Ltd ,143342,SN10,Neighbourhood & Planning,SEN Primary Transprt,Transport Contracts,Third Party Payments,REVENUE
Wiltshire,http://opendatacommunities.org/id/unitary-authority/wiltshire,24/12/2019,1902478314,1040,AAP Taxis and Private Hire Ltd ,143342,SN10,Neighbourhood & Planning,SEN Primary Transprt,Transport Contracts,Third Party Payments,REVENUE
Wiltshire,http://opendatacommunities.org/id/unitary-authority/wiltshire,24/12/2019,1902478316,1444,AAP Taxis and Private Hire Ltd ,143342,SN10,Children & Education,CIC Team South,Transport Contracts,Third Party Payments,REVENUE
Wiltshire,http://opendatacommunities.org/id/unitary-authority/wiltshire,20/12/2019,5107397188,375,Aareon Uk Ltd ,113252,CV8 ,Wiltshire Council,Wiltshire Council,Property Maintenance,Premises Related,CAPITAL
Wiltshire,http://opendatacommunities.org/id/unitary-authority/wiltshire,03/12/2019,1902459956,756,AB Learning and Education ,125864,SN8 ,Children & Education,Free Enttlmnt 3 & 4y,Childcare Free Entitlement Early Years,Supplies and Services,REVENUE
Wiltshire,http://opendatacommunities.org/id/unitary-authority/wiltshire,13/12/2019,1902467631,279.3,AB Learning and Education ,125864,SN8 ,Children & Education,Free Entitlement 2 Y,Childcare Free Entitlement Early Years,Supplies and Services,REVENUE
Wiltshire,http://opendatacommunities.org/id/unitary-authority/wiltshire,13/12/2019,1902467632,9903.6,AB Learning and Education ,125864,SN8 ,Children & Education,Free Enttlmnt 3 & 4y,Childcare Free Entitlement Early Years,Supplies and Services,REVENUE
Wiltshire,http://opendatacommunities.org/id/unitary-authority/wiltshire,05/12/2019,1902461057,3575,Abbey Taxis (Swindon) Ltd ,100920,SN2 ,Community Services,CTPLD Placements,Transport Contracts,Third Party Payments,REVENUE
Wiltshire,http://opendatacommunities.org/id/unitary-authority/wiltshire,10/12/2019,1902464255,2508,Abbey Taxis (Swindon) Ltd ,100920,SN2 ,Neighbourhood & Planning,SEN Secondary Tspt,Transport Contracts,Third Party Payments,REVENUE
Wiltshire,http://opendatacommunities.org/id/unitary-authority/wiltshire,10/12/2019,1902464259,523.83,Abbey Taxis (Swindon) Ltd ,100920,SN2 ,Neighbourhood & Planning,SEN Secondary Tspt,Transport Contracts,Third Party Payments,REVENUE
Wiltshire,http://opendatacommunities.org/id/unitary-authority/wiltshire,10/12/2019,1902464259,3517.17,Abbey Taxis (Swindon) Ltd ,100920,SN2 ,Neighbourhood & Planning,SEN Primary Transprt,Transport Contracts,Third Party Payments,REVENUE
Wiltshire,http://opendatacommunities.org/id/unitary-authority/wiltshire,10/12/2019,1902464260,2200,Abbey Taxis (Swindon) Ltd ,100920,SN2 ,Neighbourhood & Planning,SEN 16+ Transport,Transport Contracts,Third Party Payments,REVENUE
Wiltshire,http://opendatacommunities.org/id/unitary-authority/wiltshire,10/12/2019,1902464264,1220,Abbey Taxis (Swindon) Ltd ,100920,SN2 ,Neighbourhood & Planning,Mainstream Secondary,Transport Contracts,Third Party Payments,REVENUE
Wiltshire,http://opendatacommunities.org/id/unitary-authority/wiltshire,10/12/2019,1902464270,396.65,Abbey Taxis (Swindon) Ltd ,100920,SN2 ,Neighbourhood & Planning,Mainstream Primary,Transport Contracts,Third Party Payments,REVENUE
Wiltshire,http://opendatacommunities.org/id/unitary-authority/wiltshire,10/12/2019,1902464270,1983.35,Abbey Taxis (Swindon) Ltd ,100920,SN2 ,Neighbourhood & Planning,SEN Primary Transprt,Transport Contracts,Third Party Payments,REVENUE
Wiltshire,http://opendatacommunities.org/id/unitary-authority/wiltshire,10/12/2019,1902464271,2800,Abbey Taxis (Swindon) Ltd ,100920,SN2 ,Neighbourhood & Planning,SEN Primary Transprt,Transport Contracts,Third Party Payments,REVENUE
Wiltshire,http://opendatacommunities.org/id/unitary-authority/wiltshire,10/12/2019,1902464272,660,Abbey Taxis (Swindon) Ltd ,100920,SN2 ,Neighbourhood & Planning,SEN Secondary Tspt,Transport Contracts,Third Party Payments,REVENUE
Wiltshire,http://opendatacommunities.org/id/unitary-authority/wiltshire,10/12/2019,1902464273,960,Abbey Taxis (Swindon) Ltd ,100920,SN2 ,Neighbourhood & Planning,SEN 16+ Transport,Transport Contracts,Third Party Payments,REVENUE
Wiltshire,http://opendatacommunities.org/id/unitary-authority/wiltshire,10/12/2019,1902464274,2660,Abbey Taxis (Swindon) Ltd ,100920,SN2 ,Neighbourhood & Planning,SEN 16+ Transport,Transport Contracts,Third Party Payments,REVENUE
Wiltshire,http://opendatacommunities.org/id/unitary-authority/wiltshire,10/12/2019,1902464275,3500,Abbey Taxis (Swindon) Ltd ,100920,SN2 ,Neighbourhood & Planning,SEN 16+ Transport,Transport Contracts,Third Party Payments,REVENUE
Wiltshire,http://opendatacommunities.org/id/unitary-authority/wiltshire,10/12/2019,1902464276,2210,Abbey Taxis (Swindon) Ltd ,100920,SN2 ,Neighbourhood & Planning,SEN 16+ Transport,Transport Contracts,Third Party Payments,REVENUE
Wiltshire,http://opendatacommunities.org/id/unitary-authority/wiltshire,10/12/2019,1902464277,2641,Abbey Taxis (Swindon) Ltd ,100920,SN2 ,Neighbourhood & Planning,SEN Primary Transprt,Transport Contracts,Third Party Payments,REVENUE
Wiltshire,http://opendatacommunities.org/id/unitary-authority/wiltshire,11/12/2019,1902465734,450,Abbey Taxis (Swindon) Ltd ,100920,SN2 ,Neighbourhood & Planning,SEN Primary Transprt,Transport Contracts,Third Party Payments,REVENUE
Wiltshire,http://opendatacommunities.org/id/unitary-authority/wiltshire,11/12/2019,1902465734,2700,Abbey Taxis (Swindon) Ltd ,100920,SN2 ,Neighbourhood & Planning,SEN Secondary Tspt,Transport Contracts,Third Party Payments,REVENUE
Wiltshire,http://opendatacommunities.org/id/unitary-authority/wiltshire,11/12/2019,1902465735,385.71,Abbey Taxis (Swindon) Ltd ,100920,SN2 ,Neighbourhood & Planning,SEN Primary Transprt,Transport Contracts,Third Party Payments,REVENUE
Wiltshire,http://opendatacommunities.org/id/unitary-authority/wiltshire,11/12/2019,1902465735,2314.29,Abbey Taxis (Swindon) Ltd ,100920,SN2 ,Neighbourhood & Planning,SEN Secondary Tspt,Transport Contracts,Third Party Payments,REVENUE
Wiltshire,http://opendatacommunities.org/id/unitary-authority/wiltshire,11/12/2019,1902465736,1800,Abbey Taxis (Swindon) Ltd ,100920,SN2 ,Neighbourhood & Planning,SEN Secondary Tspt,Transport Contracts,Third Party Payments,REVENUE
Wiltshire,http://opendatacommunities.org/id/unitary-authority/wiltshire,11/12/2019,1902465737,533.33,Abbey Taxis (Swindon) Ltd ,100920,SN2 ,Neighbourhood & Planning,Mainstream Primary,Transport Contracts,Third Party Payments,REVENUE
Wiltshire,http://opendatacommunities.org/id/unitary-authority/wiltshire,11/12/2019,1902465737,2666.67,Abbey Taxis (Swindon) Ltd ,100920,SN2 ,Neighbourhood & Planning,SEN Primary Transprt,Transport Contracts,Third Party Payments,REVENUE
Wiltshire,http://opendatacommunities.org/id/unitary-authority/wiltshire,11/12/2019,1902465738,2120,Abbey Taxis (Swindon) Ltd ,100920,SN2 ,Neighbourhood & Planning,SEN Secondary Tspt,Transport Contracts,Third Party Payments,REVENUE
Wiltshire,http://opendatacommunities.org/id/unitary-authority/wiltshire,11/12/2019,1902465739,1108.35,Abbey Taxis (Swindon) Ltd ,100920,SN2 ,Neighbourhood & Planning,SEN Secondary Tspt,Transport Contracts,Third Party Payments,REVENUE
Wiltshire,http://opendatacommunities.org/id/unitary-authority/wiltshire,11/12/2019,1902465740,989.35,Abbey Taxis (Swindon) Ltd ,100920,SN2 ,Neighbourhood & Planning,SEN Primary Transprt,Transport Contracts,Third Party Payments,REVENUE
Wiltshire,http://opendatacommunities.org/id/unitary-authority/wiltshire,11/12/2019,1902465740,1978.65,Abbey Taxis (Swindon) Ltd ,100920,SN2 ,Neighbourhood & Planning,SEN Secondary Tspt,Transport Contracts,Third Party Payments,REVENUE
Wiltshire,http://opendatacommunities.org/id/unitary-authority/wiltshire,11/12/2019,1902465741,2480,Abbey Taxis (Swindon) Ltd ,100920,SN2 ,Neighbourhood & Planning,SEN Secondary Tspt,Transport Contracts,Third Party Payments,REVENUE
Wiltshire,http://opendatacommunities.org/id/unitary-authority/wiltshire,11/12/2019,1902465742,1370.28,Abbey Taxis (Swindon) Ltd ,100920,SN2 ,Neighbourhood & Planning,SEN Secondary Tspt,Transport Contracts,Third Party Payments,REVENUE
Wiltshire,http://opendatacommunities.org/id/unitary-authority/wiltshire,11/12/2019,1902465742,1507.32,Abbey Taxis (Swindon) Ltd ,100920,SN2 ,Neighbourhood & Planning,SEN Primary Transprt,Transport Contracts,Third Party Payments,REVENUE
Wiltshire,http://opendatacommunities.org/id/unitary-authority/wiltshire,11/12/2019,1902465743,2041.32,Abbey Taxis (Swindon) Ltd ,100920,SN2 ,Community Services,CTPLD Placements,Transport Contracts,Third Party Payments,REVENUE
Wiltshire,http://opendatacommunities.org/id/unitary-authority/wiltshire,11/12/2019,1902465744,3190,Abbey Taxis (Swindon) Ltd ,100920,SN2 ,Community Services,CTPLD Placements,Transport Contracts,Third Party Payments,REVENUE
Wiltshire,http://opendatacommunities.org/id/unitary-authority/wiltshire,11/12/2019,1902465745,348.33,Abbey Taxis (Swindon) Ltd ,100920,SN2 ,Neighbourhood & Planning,SEN Secondary Tspt,Transport Contracts,Third Party Payments,REVENUE
Wiltshire,http://opendatacommunities.org/id/unitary-authority/wiltshire,11/12/2019,1902465745,1741.67,Abbey Taxis (Swindon) Ltd ,100920,SN2 ,Neighbourhood & Planning,Mainstream Secondary,Transport Contracts,Third Party Payments,REVENUE
Wiltshire,http://opendatacommunities.org/id/unitary-authority/wiltshire,11/12/2019,1902465746,1558,Abbey Taxis (Swindon) Ltd ,100920,SN2 ,Neighbourhood & Planning,SEN Primary Transprt,Transport Contracts,Third Party Payments,REVENUE
Wiltshire,http://opendatacommunities.org/id/unitary-authority/wiltshire,11/12/2019,1902465747,2664,Abbey Taxis (Swindon) Ltd ,100920,SN2 ,Neighbourhood & Planning,SEN Secondary Tspt,Transport Contracts,Third Party Payments,REVENUE
Wiltshire,http://opendatacommunities.org/id/unitary-authority/wiltshire,11/12/2019,1902465755,733.33,Abbey Taxis (Swindon) Ltd ,100920,SN2 ,Neighbourhood & Planning,SEN Secondary Tspt,Transport Contracts,Third Party Payments,REVENUE
Wiltshire,http://opendatacommunities.org/id/unitary-authority/wiltshire,11/12/2019,1902465755,1466.67,Abbey Taxis (Swindon) Ltd ,100920,SN2 ,Neighbourhood & Planning,SEN Primary Transprt,Transport Contracts,Third Party Payments,REVENUE
Wiltshire,http://opendatacommunities.org/id/unitary-authority/wiltshire,17/12/2019,1902468957,990,Abbey Taxis (Swindon) Ltd ,100920,SN2 ,Neighbourhood & Planning,SEN Secondary Tspt,Transport Contracts,Third Party Payments,REVENUE
Wiltshire,http://opendatacommunities.org/id/unitary-authority/wiltshire,20/12/2019,1902475038,3000,Abbey Taxis (Swindon) Ltd ,100920,SN2 ,Neighbourhood & Planning,SEN Primary Transprt,Transport Contracts,Third Party Payments,REVENUE
Wiltshire,http://opendatacommunities.org/id/unitary-authority/wiltshire,23/12/2019,1902476893,993.34,Abbey Taxis (Swindon) Ltd ,100920,SN2 ,Neighbourhood & Planning,SEN Primary Transprt,Transport Contracts,Third Party Payments,REVENUE
Wiltshire,http://opendatacommunities.org/id/unitary-authority/wiltshire,23/12/2019,1902476893,1986.66,Abbey Taxis (Swindon) Ltd ,100920,SN2 ,Neighbourhood & Planning,SEN Secondary Tspt,Transport Contracts,Third Party Payments,REVENUE
Wiltshire,http://opendatacommunities.org/id/unitary-authority/wiltshire,13/12/2019,1902467817,4223.1,ABC Day Nursery 1027 ,110028,SN12,Children & Education,Free Enttlmnt 3 & 4y,Childcare Free Entitlement Early Years,Supplies and Services,REVENUE
Wiltshire,http://opendatacommunities.org/id/unitary-authority/wiltshire,13/12/2019,1902467818,4468.8,ABC Day Nursery 1027 ,110028,SN12,Children & Education,Free Entitlement 2 Y,Childcare Free Entitlement Early Years,Supplies and Services,REVENUE
Wiltshire,http://opendatacommunities.org/id/unitary-authority/wiltshire,13/12/2019,1902467877,1613.85,ABC Nursery ,143051,SN13,Children & Education,Early Years PPG,Childcare Free Entitlement Early Years,Supplies and Services,REVENUE
Wiltshire,http://opendatacommunities.org/id/unitary-authority/wiltshire,13/12/2019,1902467878,2513.7,ABC Nursery ,143051,SN13,Children & Education,Free Entitlement 2 Y,Childcare Free Entitlement Early Years,Supplies and Services,REVENUE
Wiltshire,http://opendatacommunities.org/id/unitary-authority/wiltshire,13/12/2019,1902467879,8581.4,ABC Nursery ,143051,SN13,Children & Education,Free Enttlmnt 3 & 4y,Childcare Free Entitlement Early Years,Supplies and Services,REVENUE
Wiltshire,http://opendatacommunities.org/id/unitary-authority/wiltshire,24/12/2019,1902478327,900,Abicare Services Ltd (Shopping) ,147979,SP2 ,Community Services,Adult Care Gross Loa,Adult Domiciliary Care,Third Party Payments,REVENUE
Wiltshire,http://opendatacommunities.org/id/unitary-authority/wiltshire,19/12/2019,1902474848,40756.74,Abicare Services Ltd Homecare ,110031,SP2 ,Wiltshire Council,Wiltshire Council,Payments in Advance,Balance Sheet Accounts,REVENUE
Wiltshire,http://opendatacommunities.org/id/unitary-authority/wiltshire,23/12/2019,1902477168,747.18,Abicare Services Ltd Homecare ,110031,SP2 ,Community Services,West Care Packages,Adult Domiciliary Care Contribution,Income,REVENUE
Wiltshire,http://opendatacommunities.org/id/unitary-authority/wiltshire,23/12/2019,1902477170,277.72,Abicare Services Ltd Homecare ,110031,SP2 ,Community Services,West Care Packages,Adult Domiciliary Care Contribution,Income,REVENUE
Wiltshire,http://opendatacommunities.org/id/unitary-authority/wiltshire,23/12/2019,1902477171,767.48,Abicare Services Ltd Homecare ,110031,SP2 ,Community Services,West Care Packages,Adult Domiciliary Care,Third Party Payments,REVENUE
Wiltshire,http://opendatacommunities.org/id/unitary-authority/wiltshire,23/12/2019,1902477172,1413.72,Abicare Services Ltd Homecare ,110031,SP2 ,Community Services,West Care Packages,Adult Domiciliary Care,Third Party Payments,REVENUE
Wiltshire,http://opendatacommunities.org/id/unitary-authority/wiltshire,23/12/2019,1902477173,1649.96,Abicare Services Ltd Homecare ,110031,SP2 ,Community Services,West Care Packages,Adult Domiciliary Care,Third Party Payments,REVENUE
Wiltshire,http://opendatacommunities.org/id/unitary-authority/wiltshire,19/12/2019,1902474415,3934.68,Abicare Services Ltd Live in Care. ,113071,SP2 ,Community Services,South Care Packages,Adult Domiciliary Care Contribution,Income,REVENUE
Wiltshire,http://opendatacommunities.org/id/unitary-authority/wiltshire,19/12/2019,1902474485,2089.24,Abicare Services Ltd Live in Care. ,113071,SP2 ,Community Services,MH OP South Locality,Adult Domiciliary Care,Third Party Payments,REVENUE
Wiltshire,http://opendatacommunities.org/id/unitary-authority/wiltshire,19/12/2019,1902474486,2089.24,Abicare Services Ltd Live in Care. ,113071,SP2 ,Community Services,MH OP South Locality,Adult Domiciliary Care,Third Party Payments,REVENUE
Wiltshire,http://opendatacommunities.org/id/unitary-authority/wiltshire,19/12/2019,1902474487,2089.24,Abicare Services Ltd Live in Care. ,113071,SP2 ,Community Services,MH OP South Locality,Adult Domiciliary Care,Third Party Payments,REVENUE
Wiltshire,http://opendatacommunities.org/id/unitary-authority/wiltshire,19/12/2019,1902474488,2089.24,Abicare Services Ltd Live in Care. ,113071,SP2 ,Community Services,MH OP South Locality,Adult Domiciliary Care,Third Party Payments,REVENUE
Wiltshire,http://opendatacommunities.org/id/unitary-authority/wiltshire,19/12/2019,1902474490,2089.24,Abicare Services Ltd Live in Care. ,113071,SP2 ,Community Services,MH OP South Locality,Adult Domiciliary Care,Third Party Payments,REVENUE
Wiltshire,http://opendatacommunities.org/id/unitary-authority/wiltshire,19/12/2019,1902474491,2089.24,Abicare Services Ltd Live in Care. ,113071,SP2 ,Community Services,MH OP South Locality,Adult Domiciliary Care,Third Party Payments,REVENUE
Wiltshire,http://opendatacommunities.org/id/unitary-authority/wiltshire,19/12/2019,1902474492,2089.24,Abicare Services Ltd Live in Care. ,113071,SP2 ,Community Services,MH OP South Locality,Adult Domiciliary Care,Third Party Payments,REVENUE
Wiltshire,http://opendatacommunities.org/id/unitary-authority/wiltshire,10/12/2019,1902464432,443.44,ABLE ,101029,BA14,Community Services,MH AOWA N&E Locality,Supported Living,Third Party Payments,REVENUE
Wiltshire,http://opendatacommunities.org/id/unitary-authority/wiltshire,10/12/2019,1902464433,443.44,ABLE ,101029,BA14,Community Services,MH AOWA N&E Locality,Supported Living,Third Party Payments,REVENUE
Wiltshire,http://opendatacommunities.org/id/unitary-authority/wiltshire,10/12/2019,1902464434,443.44,ABLE ,101029,BA14,Community Services,MH AOWA N&E Locality,Supported Living,Third Party Payments,REVENUE
Wiltshire,http://opendatacommunities.org/id/unitary-authority/wiltshire,10/12/2019,1902464435,443.44,ABLE ,101029,BA14,Community Services,MH AOWA N&E Locality,Supported Living,Third Party Payments,REVENUE
Wiltshire,http://opendatacommunities.org/id/unitary-authority/wiltshire,10/12/2019,1902464436,443.44,ABLE ,101029,BA14,Community Services,MH AOWA N&E Locality,Supported Living,Third Party Payments,REVENUE
Wiltshire,http://opendatacommunities.org/id/unitary-authority/wiltshire,05/12/2019,5107397979,3353.76,ABLE ,101029,BA14,Community Services,MH Commissioned Cont,Grants Expenditure,Supplies and Services,REVENUE
Wiltshire,http://opendatacommunities.org/id/unitary-authority/wiltshire,11/12/2019,1902465329,3120,ABLE ,110034,BA14,Community Services,MH OP West Locality,Adult Residential Placements - Spot Purchase,Third Party Payments,REVENUE
Wiltshire,http://opendatacommunities.org/id/unitary-authority/wiltshire,11/12/2019,1902465330,3194.88,ABLE ,110034,BA14,Community Services,MH AOWA West Localit,Adult Residential Placements - Spot Purchase,Third Party Payments,REVENUE
Wiltshire,http://opendatacommunities.org/id/unitary-authority/wiltshire,11/12/2019,1902465331,3194.88,ABLE ,110034,BA14,Community Services,MH AOWA West Localit,Adult Residential Placements - Spot Purchase,Third Party Payments,REVENUE
Wiltshire,http://opendatacommunities.org/id/unitary-authority/wiltshire,11/12/2019,1902465332,3555.4,ABLE ,110034,BA14,Community Services,MH AOWA West Localit,Adult Residential Placements - Spot Purchase,Third Party Payments,REVENUE
Wiltshire,http://opendatacommunities.org/id/unitary-authority/wiltshire,11/12/2019,1902465333,4136.96,ABLE ,110034,BA14,Community Services,MH AOWA West Localit,Adult Residential Placements - Spot Purchase,Third Party Payments,REVENUE
Wiltshire,http://opendatacommunities.org/id/unitary-authority/wiltshire,11/12/2019,5107398365,4296,Able Hands Together CIC ,144783,SP11,Children & Education,SEN EHE & AP,Educational Fees,Supplies and Services,REVENUE
Wiltshire,http://opendatacommunities.org/id/unitary-authority/wiltshire,12/12/2019,1902466955,1093.4,Abney & Baker (Bath) Ltd ,146229,BA1 ,Community Services,North Care Packages,Adult Domiciliary Care,Third Party Payments,REVENUE
Wiltshire,http://opendatacommunities.org/id/unitary-authority/wiltshire,12/12/2019,1902466956,939.12,Abney & Baker (Bath) Ltd ,146229,BA1 ,Community Services,West Care Packages,Adult Domiciliary Care,Third Party Payments,REVENUE
Wiltshire,http://opendatacommunities.org/id/unitary-authority/wiltshire,12/12/2019,1902466957,428,Abney & Baker (Bath) Ltd ,146229,BA1 ,Community Services,West Care Packages,Adult Domiciliary Care Contribution,Income,REVENUE
Wiltshire,http://opendatacommunities.org/id/unitary-authority/wiltshire,12/12/2019,1902466958,469.56,Abney & Baker (Bath) Ltd ,146229,BA1 ,Community Services,West Care Packages,Adult Domiciliary Care,Third Party Payments,REVENUE
Wiltshire,http://opendatacommunities.org/id/unitary-authority/wiltshire,12/12/2019,1902466959,2032.52,Abney & Baker (Bath) Ltd ,146229,BA1 ,Community Services,North Care Packages,Adult Domiciliary Care,Third Party Payments,REVENUE
Wiltshire,http://opendatacommunities.org/id/unitary-authority/wiltshire,13/12/2019,1902468092,335.04,Abney & Baker (Bath) Ltd ,146229,BA1 ,Community Services,West Care Packages,Adult Domiciliary Care Contribution,Income,REVENUE
Wiltshire,http://opendatacommunities.org/id/unitary-authority/wiltshire,13/12/2019,1902468093,1926.99,Abney & Baker (Bath) Ltd ,146229,BA1 ,Community Services,West Care Packages,Adult Domiciliary Care Contribution,Income,REVENUE
Wiltshire,http://opendatacommunities.org/id/unitary-authority/wiltshire,13/12/2019,1902468095,2232.16,Abney & Baker (Bath) Ltd ,146229,BA1 ,Community Services,West Care Packages,Adult Domiciliary Care Contribution,Income,REVENUE
Wiltshire,http://opendatacommunities.org/id/unitary-authority/wiltshire,13/12/2019,1902468096,1501.84,Abney & Baker (Bath) Ltd ,146229,BA1 ,Community Services,West Care Packages,Adult Domiciliary Care,Third Party Payments,REVENUE
Wiltshire,http://opendatacommunities.org/id/unitary-authority/wiltshire,13/12/2019,1902468097,477.68,Abney & Baker (Bath) Ltd ,146229,BA1 ,Community Services,MH AOWA N&E Locality,Adult Domiciliary Care,Third Party Payments,REVENUE
Wiltshire,http://opendatacommunities.org/id/unitary-authority/wiltshire,13/12/2019,1902468098,1947.76,Abney & Baker (Bath) Ltd ,146229,BA1 ,Community Services,West Care Packages,Adult Domiciliary Care Contribution,Income,REVENUE
Wiltshire,http://opendatacommunities.org/id/unitary-authority/wiltshire,13/12/2019,1902468099,960.77,Abney & Baker (Bath) Ltd ,146229,BA1 ,Community Services,West Care Packages,Adult Domiciliary Care,Third Party Payments,REVENUE
Wiltshire,http://opendatacommunities.org/id/unitary-authority/wiltshire,13/12/2019,1902468100,1001.82,Abney & Baker (Bath) Ltd ,146229,BA1 ,Community Services,West Care Packages,Adult Domiciliary Care Contribution,Income,REVENUE
Wiltshire,http://opendatacommunities.org/id/unitary-authority/wiltshire,16/12/2019,1902468478,761.18,Abney & Baker (Bath) Ltd ,146229,BA1 ,Community Services,North Care Packages,Adult Domiciliary Care,Third Party Payments,REVENUE
Wiltshire,http://opendatacommunities.org/id/unitary-authority/wiltshire,16/12/2019,1902468479,745.28,Abney & Baker (Bath) Ltd ,146229,BA1 ,Community Services,CTPLD Placements,Adult Domiciliary Care,Third Party Payments,REVENUE
Wiltshire,http://opendatacommunities.org/id/unitary-authority/wiltshire,16/12/2019,1902468480,1417.07,Abney & Baker (Bath) Ltd ,146229,BA1 ,Community Services,West Care Packages,Adult Domiciliary Care,Third Party Payments,REVENUE
Wiltshire,http://opendatacommunities.org/id/unitary-authority/wiltshire,16/12/2019,1902468529,2125.8,Abney & Baker (Bath) Ltd ,146229,BA1 ,Community Services,West Care Packages,Adult Domiciliary Care,Third Party Payments,REVENUE
Wiltshire,http://opendatacommunities.org/id/unitary-authority/wiltshire,19/12/2019,1902474338,1743.1,Abney & Baker (Bath) Ltd ,146229,BA1 ,Community Services,West Care Packages,Adult Domiciliary Care Contribution,Income,REVENUE
Wiltshire,http://opendatacommunities.org/id/unitary-authority/wiltshire,19/12/2019,1902474457,504,Abney & Baker (Bath) Ltd ,146229,BA1 ,Community Services,West Care Packages,Adult Domiciliary Care,Third Party Payments,REVENUE
Wiltshire,http://opendatacommunities.org/id/unitary-authority/wiltshire,19/12/2019,1902474458,2067.46,Abney & Baker (Bath) Ltd ,146229,BA1 ,Community Services,West Care Packages,Adult Domiciliary Care,Third Party Payments,REVENUE
Wiltshire,http://opendatacommunities.org/id/unitary-authority/wiltshire,19/12/2019,1902474459,1459.73,Abney & Baker (Bath) Ltd ,146229,BA1 ,Community Services,North Care Packages,Adult Domiciliary Care,Third Party Payments,REVENUE
Wiltshire,http://opendatacommunities.org/id/unitary-authority/wiltshire,19/12/2019,1902474460,1790.32,Abney & Baker (Bath) Ltd ,146229,BA1 ,Community Services,West Care Packages,Adult Domiciliary Care,Third Party Payments,REVENUE
Wiltshire,http://opendatacommunities.org/id/unitary-authority/wiltshire,10/12/2019,1902463996,2367.36,Acacia London Residential Healthcar ,147333,KT6 ,Community Services,North Care Packages,Adult Care Nursing Placements - Spot,Third Party Payments,REVENUE
Wiltshire,http://opendatacommunities.org/id/unitary-authority/wiltshire,05/12/2019,1902461161,2889.96,Access Care Ltd ,110037,SP10,Community Services,North Care Packages,Adult Domiciliary Care,Third Party Payments,REVENUE
Wiltshire,http://opendatacommunities.org/id/unitary-authority/wiltshire,05/12/2019,1902461162,4755.24,Access Care Ltd ,110037,SP10,Community Services,Adult Care Gross Loa,Adult Domiciliary Care,Third Party Payments,REVENUE
Wiltshire,http://opendatacommunities.org/id/unitary-authority/wiltshire,20/12/2019,1902474732,2889.96,Access Care Ltd ,110037,SP10,Community Services,North Care Packages,Adult Domiciliary Care,Third Party Payments,REVENUE
Wiltshire,http://opendatacommunities.org/id/unitary-authority/wiltshire,20/12/2019,1902474733,4755.24,Access Care Ltd ,110037,SP10,Community Services,Adult Care Gross Loa,Adult Domiciliary Care,Third Party Payments,REVENUE
Wiltshire,http://opendatacommunities.org/id/unitary-authority/wiltshire,11/12/2019,1902465139,6172.68,Accomplish Group Limited ,112775,SA1 ,Community Services,CTPLD Placements,Adult Residential Placements - Spot Purchase,Third Party Payments,REVENUE
Wiltshire,http://opendatacommunities.org/id/unitary-authority/wiltshire,11/12/2019,1902465140,6740,Accomplish Group Limited ,112775,SA1 ,Community Services,MH AOWA N&E Locality,Adult Residential Placements - Spot Purchase,Third Party Payments,REVENUE
Wiltshire,http://opendatacommunities.org/id/unitary-authority/wiltshire,11/12/2019,1902465141,7775.04,Accomplish Group Limited ,112775,SA1 ,Community Services,CTPLD Placements,Adult Residential Placements - Spot Purchase,Third Party Payments,REVENUE
Wiltshire,http://opendatacommunities.org/id/unitary-authority/wiltshire,11/12/2019,1902465142,8266,Accomplish Group Limited ,112775,SA1 ,Community Services,CTPLD Placements,Adult Residential Placements - Spot Purchase,Third Party Payments,REVENUE
Wiltshire,http://opendatacommunities.org/id/unitary-authority/wiltshire,18/12/2019,1902473462,1995,Ace Cabs ,139613,SP4 ,Neighbourhood & Planning,SEN Secondary Tspt,Transport Contracts,Third Party Payments,REVENUE
Wiltshire,http://opendatacommunities.org/id/unitary-authority/wiltshire,18/12/2019,1902473465,2740,Ace Cabs ,139613,SP4 ,Neighbourhood & Planning,SEN Primary Transprt,Transport Contracts,Third Party Payments,REVENUE
Wiltshire,http://opendatacommunities.org/id/unitary-authority/wiltshire,18/12/2019,1902473466,1232.91,Ace Cabs ,139613,SP4 ,Neighbourhood & Planning,SEN Primary Transprt,Transport Contracts,Third Party Payments,REVENUE
Wiltshire,http://opendatacommunities.org/id/unitary-authority/wiltshire,18/12/2019,1902473468,1575,Ace Cabs ,139613,SP4 ,Neighbourhood & Planning,SEN Primary Transprt,Transport Contracts,Third Party Payments,REVENUE
Wiltshire,http://opendatacommunities.org/id/unitary-authority/wiltshire,04/12/2019,5107397909,1530,Acer Tree Surgeons Ltd ,113296,BA13,Neighbourhood & Planning,Rights of Way,Grounds Maintenance,Premises Related,REVENUE
Wiltshire,http://opendatacommunities.org/id/unitary-authority/wiltshire,04/12/2019,5107397911,790,Acer Tree Surgeons Ltd ,113296,BA13,Neighbourhood & Planning,Rights of Way,Grounds Maintenance,Premises Related,REVENUE
Wiltshire,http://opendatacommunities.org/id/unitary-authority/wiltshire,05/12/2019,5107398023,860,Acer Tree Surgeons Ltd ,113296,BA13,Neighbourhood & Planning,Rights of Way,Grounds Maintenance,Premises Related,REVENUE
Wiltshire,http://opendatacommunities.org/id/unitary-authority/wiltshire,24/12/2019,5107399745,985,Acer Tree Surgeons Ltd ,113296,BA13,Neighbourhood & Planning,Rights of Way,Grounds Maintenance,Premises Related,REVENUE
Wiltshire,http://opendatacommunities.org/id/unitary-authority/wiltshire,10/12/2019,1902464471,3669.76,Achieve Together ,110312,KT22,Community Services,West Care Packages,Supported Living,Third Party Payments,REVENUE
Wiltshire,http://opendatacommunities.org/id/unitary-authority/wiltshire,10/12/2019,1902464472,4118.32,Achieve Together ,110312,KT22,Community Services,MH AOWA West Localit,Supported Living,Third Party Payments,REVENUE
Wiltshire,http://opendatacommunities.org/id/unitary-authority/wiltshire,11/12/2019,1902464984,11333.32,Achieve Together ,110312,KT22,Community Services,CTPLD Placements,Adult Residential Placements - Spot Purchase,Third Party Payments,REVENUE
Wiltshire,http://opendatacommunities.org/id/unitary-authority/wiltshire,11/12/2019,1902464985,11785.24,Achieve Together ,110312,KT22,Community Services,CTPLD Placements,Adult Residential Placements - Spot Purchase,Third Party Payments,REVENUE
Wiltshire,http://opendatacommunities.org/id/unitary-authority/wiltshire,11/12/2019,1902464986,11832.16,Achieve Together ,110312,KT22,Community Services,CTPLD Placements,Adult Residential Placements - Spot Purchase,Third Party Payments,REVENUE
Wiltshire,http://opendatacommunities.org/id/unitary-authority/wiltshire,11/12/2019,1902464987,12206.32,Achieve Together ,110312,KT22,Community Services,CTPLD Placements,Adult Residential Placements - Spot Purchase,Third Party Payments,REVENUE
Wiltshire,http://opendatacommunities.org/id/unitary-authority/wiltshire,11/12/2019,1902464988,12642.68,Achieve Together ,110312,KT22,Community Services,CTPLD Placements,Adult Residential Placements - Spot Purchase,Third Party Payments,REVENUE
Wiltshire,http://opendatacommunities.org/id/unitary-authority/wiltshire,11/12/2019,1902464989,12884.92,Achieve Together ,110312,KT22,Community Services,CTPLD Placements,Adult Residential Placements - Spot Purchase,Third Party Payments,REVENUE
Wiltshire,http://opendatacommunities.org/id/unitary-authority/wiltshire,11/12/2019,1902464990,12985.56,Achieve Together ,110312,KT22,Community Services,CTPLD Placements,Adult Residential Placements - Spot Purchase,Third Party Payments,REVENUE
Wiltshire,http://opendatacommunities.org/id/unitary-authority/wiltshire,11/12/2019,1902464991,13137,Achieve Together ,110312,KT22,Community Services,CTPLD Placements,Adult Residential Placements - Spot Purchase,Third Party Payments,REVENUE
Wiltshire,http://opendatacommunities.org/id/unitary-authority/wiltshire,11/12/2019,1902464992,13209,Achieve Together ,110312,KT22,Community Services,CTPLD Placements,Adult Residential Placements - Spot Purchase,Third Party Payments,REVENUE
Wiltshire,http://opendatacommunities.org/id/unitary-authority/wiltshire,11/12/2019,1902464993,13418.6,Achieve Together ,110312,KT22,Community Services,CTPLD Placements,Adult Residential Placements - Spot Purchase,Third Party Payments,REVENUE
Wiltshire,http://opendatacommunities.org/id/unitary-authority/wiltshire,11/12/2019,1902464994,13469.24,Achieve Together ,110312,KT22,Community Services,CTPLD Placements,Adult Residential Placements - Spot Purchase,Third Party Payments,REVENUE
Wiltshire,http://opendatacommunities.org/id/unitary-authority/wiltshire,11/12/2019,1902464995,13507.88,Achieve Together ,110312,KT22,Community Services,CTPLD Placements,Adult Residential Placements - Spot Purchase,Third Party Payments,REVENUE
Wiltshire,http://opendatacommunities.org/id/unitary-authority/wiltshire,11/12/2019,1902464996,13844.96,Achieve Together ,110312,KT22,Community Services,CTPLD Placements,Adult Residential Placements - Spot Purchase,Third Party Payments,REVENUE
Wiltshire,http://opendatacommunities.org/id/unitary-authority/wiltshire,11/12/2019,1902464997,14442.6,Achieve Together ,110312,KT22,Community Services,CTPLD Placements,Adult Residential Placements - Spot Purchase,Third Party Payments,REVENUE
Wiltshire,http://opendatacommunities.org/id/unitary-authority/wiltshire,11/12/2019,1902464998,15316.24,Achieve Together ,110312,KT22,Community Services,CTPLD Placements,Adult Residential Placements - Spot Purchase,Third Party Payments,REVENUE
Wiltshire,http://opendatacommunities.org/id/unitary-authority/wiltshire,11/12/2019,1902464999,15672.44,Achieve Together ,110312,KT22,Community Services,CTPLD Placements,Adult Residential Placements - Spot Purchase,Third Party Payments,REVENUE
Wiltshire,http://opendatacommunities.org/id/unitary-authority/wiltshire,11/12/2019,1902465000,16041.28,Achieve Together ,110312,KT22,Community Services,CTPLD Placements,Adult Residential Placements - Spot Purchase,Third Party Payments,REVENUE
Wiltshire,http://opendatacommunities.org/id/unitary-authority/wiltshire,11/12/2019,1902465001,8564.12,Achieve Together ,110312,KT22,Community Services,CTPLD Placements,Adult Residential Placements - Spot Purchase,Third Party Payments,REVENUE
Wiltshire,http://opendatacommunities.org/id/unitary-authority/wiltshire,11/12/2019,1902465002,8673.68,Achieve Together ,110312,KT22,Community Services,CTPLD Placements,Adult Residential Placements - Spot Purchase,Third Party Payments,REVENUE
Wiltshire,http://opendatacommunities.org/id/unitary-authority/wiltshire,12/12/2019,1902466891,11333.32,Achieve Together ,110312,KT22,Community Services,CTPLD Placements,Adult Residential Placements - Spot Purchase,Third Party Payments,REVENUE
Wiltshire,http://opendatacommunities.org/id/unitary-authority/wiltshire,12/12/2019,1902466892,11785.24,Achieve Together ,110312,KT22,Community Services,CTPLD Placements,Adult Residential Placements - Spot Purchase,Third Party Payments,REVENUE
Wiltshire,http://opendatacommunities.org/id/unitary-authority/wiltshire,12/12/2019,1902466893,11832.16,Achieve Together ,110312,KT22,Community Services,CTPLD Placements,Adult Residential Placements - Spot Purchase,Third Party Payments,REVENUE
Wiltshire,http://opendatacommunities.org/id/unitary-authority/wiltshire,12/12/2019,1902466894,12206.32,Achieve Together ,110312,KT22,Community Services,CTPLD Placements,Adult Residential Placements - Spot Purchase,Third Party Payments,REVENUE
Wiltshire,http://opendatacommunities.org/id/unitary-authority/wiltshire,12/12/2019,1902466895,12642.68,Achieve Together ,110312,KT22,Community Services,CTPLD Placements,Adult Residential Placements - Spot Purchase,Third Party Payments,REVENUE
Wiltshire,http://opendatacommunities.org/id/unitary-authority/wiltshire,12/12/2019,1902466896,12884.92,Achieve Together ,110312,KT22,Community Services,CTPLD Placements,Adult Residential Placements - Spot Purchase,Third Party Payments,REVENUE
Wiltshire,http://opendatacommunities.org/id/unitary-authority/wiltshire,12/12/2019,1902466897,12985.56,Achieve Together ,110312,KT22,Community Services,CTPLD Placements,Adult Residential Placements - Spot Purchase,Third Party Payments,REVENUE
Wiltshire,http://opendatacommunities.org/id/unitary-authority/wiltshire,12/12/2019,1902466898,13137,Achieve Together ,110312,KT22,Community Services,CTPLD Placements,Adult Residential Placements - Spot Purchase,Third Party Payments,REVENUE
Wiltshire,http://opendatacommunities.org/id/unitary-authority/wiltshire,12/12/2019,1902466899,13209,Achieve Together ,110312,KT22,Community Services,CTPLD Placements,Adult Residential Placements - Spot Purchase,Third Party Payments,REVENUE
Wiltshire,http://opendatacommunities.org/id/unitary-authority/wiltshire,12/12/2019,1902466900,13418.6,Achieve Together ,110312,KT22,Community Services,CTPLD Placements,Adult Residential Placements - Spot Purchase,Third Party Payments,REVENUE
Wiltshire,http://opendatacommunities.org/id/unitary-authority/wiltshire,12/12/2019,1902466901,13469.24,Achieve Together ,110312,KT22,Community Services,CTPLD Placements,Adult Residential Placements - Spot Purchase,Third Party Payments,REVENUE
Wiltshire,http://opendatacommunities.org/id/unitary-authority/wiltshire,12/12/2019,1902466902,13507.88,Achieve Together ,110312,KT22,Community Services,CTPLD Placements,Adult Residential Placements - Spot Purchase,Third Party Payments,REVENUE
Wiltshire,http://opendatacommunities.org/id/unitary-authority/wiltshire,12/12/2019,1902466903,13844.96,Achieve Together ,110312,KT22,Community Services,CTPLD Placements,Adult Residential Placements - Spot Purchase,Third Party Payments,REVENUE
Wiltshire,http://opendatacommunities.org/id/unitary-authority/wiltshire,12/12/2019,1902466904,14442.6,Achieve Together ,110312,KT22,Community Services,CTPLD Placements,Adult Residential Placements - Spot Purchase,Third Party Payments,REVENUE
Wiltshire,http://opendatacommunities.org/id/unitary-authority/wiltshire,12/12/2019,1902466905,15316.24,Achieve Together ,110312,KT22,Community Services,CTPLD Placements,Adult Residential Placements - Spot Purchase,Third Party Payments,REVENUE
Wiltshire,http://opendatacommunities.org/id/unitary-authority/wiltshire,12/12/2019,1902466906,15672.44,Achieve Together ,110312,KT22,Community Services,CTPLD Placements,Adult Residential Placements - Spot Purchase,Third Party Payments,REVENUE
Wiltshire,http://opendatacommunities.org/id/unitary-authority/wiltshire,12/12/2019,1902466907,16041.28,Achieve Together ,110312,KT22,Community Services,CTPLD Placements,Adult Residential Placements - Spot Purchase,Third Party Payments,REVENUE
Wiltshire,http://opendatacommunities.org/id/unitary-authority/wiltshire,12/12/2019,1902466908,8564.12,Achieve Together ,110312,KT22,Community Services,CTPLD Placements,Adult Residential Placements - Spot Purchase,Third Party Payments,REVENUE
Wiltshire,http://opendatacommunities.org/id/unitary-authority/wiltshire,12/12/2019,1902466909,8673.68,Achieve Together ,110312,KT22,Community Services,CTPLD Placements,Adult Residential Placements - Spot Purchase,Third Party Payments,REVENUE
Wiltshire,http://opendatacommunities.org/id/unitary-authority/wiltshire,12/12/2019,1902466910,2748.57,Achieve Together ,110312,KT22,Community Services,West Care Packages,Supported Living,Third Party Payments,REVENUE
Wiltshire,http://opendatacommunities.org/id/unitary-authority/wiltshire,12/12/2019,1902466911,3669.76,Achieve Together ,110312,KT22,Community Services,West Care Packages,Supported Living,Third Party Payments,REVENUE
Wiltshire,http://opendatacommunities.org/id/unitary-authority/wiltshire,12/12/2019,1902466912,4118.32,Achieve Together ,110312,KT22,Community Services,MH AOWA West Localit,Supported Living,Third Party Payments,REVENUE
Wiltshire,http://opendatacommunities.org/id/unitary-authority/wiltshire,23/12/2019,5107399576,15784.52,Achieve Together ,110312,KT22,Children & Education,0-25 extnl disabty p,Other Social & Welfare Costs,Third Party Payments,REVENUE
Wiltshire,http://opendatacommunities.org/id/unitary-authority/wiltshire,13/12/2019,1902468047,2047.15,Acorn Education Trust - New Close ,148417,BA12,Children & Education,Free Enttlmnt 3 & 4y,Childcare Free Entitlement Early Years,Supplies and Services,REVENUE
Wiltshire,http://opendatacommunities.org/id/unitary-authority/wiltshire,10/12/2019,1902463962,3788,Acorn Lodge ,131233,BH21,Community Services,South Care Packages,Adult Residential Placements - Spot Purchase,Third Party Payments,REVENUE
Wiltshire,http://opendatacommunities.org/id/unitary-authority/wiltshire,23/12/2019,5107397846,1813,ACS Business Supplies ,141475,BD17,Resources,Infrastructure,ICT - Support arrangements,Supplies and Services,REVENUE
Wiltshire,http://opendatacommunities.org/id/unitary-authority/wiltshire,02/12/2019,1902459510,500.83,Action For Children ,147106,WD18,Children & Education,Ext Placement & IFA,Educational Fees,Supplies and Services,REVENUE
Wiltshire,http://opendatacommunities.org/id/unitary-authority/wiltshire,02/12/2019,1902459510,500.84,Action For Children ,147106,WD18,Children & Education,IndepSpecialSchFees,Educational Fees,Supplies and Services,REVENUE
Wiltshire,http://opendatacommunities.org/id/unitary-authority/wiltshire,24/12/2019,1902478295,7500,Action on Addiction ,110046,SP3 ,Community Services,T4 Treatments,Rehabilitation,Third Party Payments,REVENUE
Wiltshire,http://opendatacommunities.org/id/unitary-authority/wiltshire,24/12/2019,1902478296,4200,Action on Addiction ,110046,SP3 ,Community Services,T4 Treatments,Rehabilitation,Third Party Payments,REVENUE
Wiltshire,http://opendatacommunities.org/id/unitary-authority/wiltshire,24/12/2019,1902478298,3000,Action on Addiction ,110046,SP3 ,Community Services,T4 Treatments,Alcohol Detox,Third Party Payments,REVENUE
Wiltshire,http://opendatacommunities.org/id/unitary-authority/wiltshire,24/12/2019,1902478300,1200,Action on Addiction ,110046,SP3 ,Community Services,T4 Treatments,Drugs Detox,Third Party Payments,REVENUE
Wiltshire,http://opendatacommunities.org/id/unitary-authority/wiltshire,05/12/2019,1902460871,1523.01,Action on Hearing Loss ,112215,N1 1,Community Services,North Care Packages,Adult Day Care Contracts,Third Party Payments,REVENUE
Wiltshire,http://opendatacommunities.org/id/unitary-authority/wiltshire,10/12/2019,1902463857,3880.56,Action on Hearing Loss ,112215,N1 1,Community Services,North Care Packages,Adult Residential Placements - Spot Purchase,Third Party Payments,REVENUE
Wiltshire,http://opendatacommunities.org/id/unitary-authority/wiltshire,10/12/2019,1902463858,6403.36,Action on Hearing Loss ,112215,N1 1,Community Services,South Care Packages,Adult Residential Placements - Spot Purchase,Third Party Payments,REVENUE
Wiltshire,http://opendatacommunities.org/id/unitary-authority/wiltshire,10/12/2019,1902464149,911.52,Action on Hearing Loss ,112215,N1 1,Community Services,West Care Packages,Adult Domiciliary Care,Third Party Payments,REVENUE
Wiltshire,http://opendatacommunities.org/id/unitary-authority/wiltshire,12/12/2019,5107398428,1565,Action on Hearing Loss ,112215,N1 1,Community Services,Disabilities Comm Ct,Grants Expenditure,Supplies and Services,REVENUE
Wiltshire,http://opendatacommunities.org/id/unitary-authority/wiltshire,12/12/2019,5107398429,810,Action on Hearing Loss ,112215,N1 1,Community Services,Disabilities Comm Ct,Grants Expenditure,Supplies and Services,REVENUE
Wiltshire,http://opendatacommunities.org/id/unitary-authority/wiltshire,03/12/2019,5107395885,257.41,Adams Morey Ltd ,110053,SP2 ,Neighbourhood & Planning,Fleet,Vehicle Repairs & Maintenance,Transport Related,REVENUE
Wiltshire,http://opendatacommunities.org/id/unitary-authority/wiltshire,03/12/2019,5107395886,471.02,Adams Morey Ltd ,110053,SP2 ,Neighbourhood & Planning,Fleet,Vehicle Repairs & Maintenance,Transport Related,REVENUE
Wiltshire,http://opendatacommunities.org/id/unitary-authority/wiltshire,10/12/2019,5107396714,341.46,Adams Morey Ltd ,110053,SP2 ,Neighbourhood & Planning,Fleet,Vehicle Repairs & Maintenance,Transport Related,REVENUE
Wiltshire,http://opendatacommunities.org/id/unitary-authority/wiltshire,16/12/2019,5107396978,377.81,Adams Morey Ltd ,110053,SP2 ,Neighbourhood & Planning,Fleet,Vehicle Repairs & Maintenance,Transport Related,REVENUE
Wiltshire,http://opendatacommunities.org/id/unitary-authority/wiltshire,23/12/2019,5107398620,509.61,Adams Morey Ltd ,110053,SP2 ,Neighbourhood & Planning,Fleet,Vehicle Repairs & Maintenance,Transport Related,REVENUE
Wiltshire,http://opendatacommunities.org/id/unitary-authority/wiltshire,23/12/2019,5107398626,1576.98,Adams Morey Ltd ,110053,SP2 ,Neighbourhood & Planning,Fleet,Vehicle Repairs & Maintenance,Transport Related,REVENUE
Wiltshire,http://opendatacommunities.org/id/unitary-authority/wiltshire,23/12/2019,5107398628,268.38,Adams Morey Ltd ,110053,SP2 ,Neighbourhood & Planning,Fleet,Vehicle Repairs & Maintenance,Transport Related,REVENUE
Wiltshire,http://opendatacommunities.org/id/unitary-authority/wiltshire,17/12/2019,1902469004,3176.64,Adrains Engineering Psv ,100848,SN15,Neighbourhood & Planning,Mainstream Secondary,Transport Contracts,Third Party Payments,REVENUE
Wiltshire,http://opendatacommunities.org/id/unitary-authority/wiltshire,17/12/2019,1902469009,3459.58,Adrains Engineering Psv ,100848,SN15,Neighbourhood & Planning,Mainstream Primary,Transport Contracts,Third Party Payments,REVENUE
Wiltshire,http://opendatacommunities.org/id/unitary-authority/wiltshire,17/12/2019,1902469010,3568.95,Adrains Engineering Psv ,100848,SN15,Neighbourhood & Planning,Mainstream Secondary,Transport Contracts,Third Party Payments,REVENUE
Wiltshire,http://opendatacommunities.org/id/unitary-authority/wiltshire,17/12/2019,1902469011,3208.99,Adrains Engineering Psv ,100848,SN15,Neighbourhood & Planning,Mainstream Secondary,Transport Contracts,Third Party Payments,REVENUE
Wiltshire,http://opendatacommunities.org/id/unitary-authority/wiltshire,04/12/2019,1902460434,2565,Adrian Shephard Taxi Service ,146753,BA12,Neighbourhood & Planning,SEN Primary Transprt,Transport Contracts,Third Party Payments,REVENUE
Wiltshire,http://opendatacommunities.org/id/unitary-authority/wiltshire,18/12/2019,1902473464,507,Adrian's Taxi ,138861,SN10,Neighbourhood & Planning,Mainstream Primary,Transport Contracts,Third Party Payments,REVENUE
Wiltshire,http://opendatacommunities.org/id/unitary-authority/wiltshire,18/12/2019,1902473464,1521,Adrian's Taxi ,138861,SN10,Neighbourhood & Planning,SEN Secondary Tspt,Transport Contracts,Third Party Payments,REVENUE
Wiltshire,http://opendatacommunities.org/id/unitary-authority/wiltshire,20/12/2019,1902475032,3024,Ady Cars ,136208,SP11,Neighbourhood & Planning,SEN Secondary Tspt,Transport Contracts,Third Party Payments,REVENUE
Wiltshire,http://opendatacommunities.org/id/unitary-authority/wiltshire,09/12/2019,5107396399,3600,AECOM Ltd ,127871,SW19,Wiltshire Council,Wiltshire Council,Consultants Fees,Supplies and Services,CAPITAL
Wiltshire,http://opendatacommunities.org/id/unitary-authority/wiltshire,10/12/2019,5107396464,4500,AECOM Ltd ,127871,SW19,Wiltshire Council,Wiltshire Council,Consultants Fees,Supplies and Services,CAPITAL
Wiltshire,http://opendatacommunities.org/id/unitary-authority/wiltshire,23/12/2019,1902476822,2024.82,AginCare Live In Care Services Ltd ,110071,DT5 ,Community Services,South Care Packages,Adult Domiciliary care - Live in contribution,Income,REVENUE
Wiltshire,http://opendatacommunities.org/id/unitary-authority/wiltshire,23/12/2019,1902476823,1751.32,AginCare Live In Care Services Ltd ,110071,DT5 ,Community Services,North Care Packages,Adult Domiciliary care - Live in contribution,Income,REVENUE
Wiltshire,http://opendatacommunities.org/id/unitary-authority/wiltshire,23/12/2019,1902476824,1538.8,AginCare Live In Care Services Ltd ,110071,DT5 ,Community Services,North Care Packages,Adult Domiciliary care - Live in contribution,Income,REVENUE
Wiltshire,http://opendatacommunities.org/id/unitary-authority/wiltshire,19/12/2019,1902474853,15959.19,Agincare Ltd ,110069,DT5 ,Wiltshire Council,Wiltshire Council,Payments in Advance,Balance Sheet Accounts,REVENUE
Wiltshire,http://opendatacommunities.org/id/unitary-authority/wiltshire,23/12/2019,1902476780,560.9,Agincare Ltd ,110069,DT5 ,Community Services,North Care Packages,Adult Domiciliary Care Contribution,Income,REVENUE
Wiltshire,http://opendatacommunities.org/id/unitary-authority/wiltshire,23/12/2019,1902476781,2193.32,Agincare Ltd ,110069,DT5 ,Community Services,West Care Packages,Adult Domiciliary Care Contribution,Income,REVENUE
Wiltshire,http://opendatacommunities.org/id/unitary-authority/wiltshire,16/12/2019,5107398721,645,Aid Training  and  Operations Ltd ,110075,BA12,Children & Education,YOT,Staff Training - General,Employee Related,REVENUE
Wiltshire,http://opendatacommunities.org/id/unitary-authority/wiltshire,05/12/2019,1902460951,1286.19,Akcess Ltd ,101402,SN2 ,Neighbourhood & Planning,Mainstream Primary,Transport Contracts,Third Party Payments,REVENUE
Wiltshire,http://opendatacommunities.org/id/unitary-authority/wiltshire,10/12/2019,1902464212,655.89,Akcess Ltd ,101402,SN2 ,Neighbourhood & Planning,Mainstream 16+ Sec,Transport Contracts,Third Party Payments,REVENUE
Wiltshire,http://opendatacommunities.org/id/unitary-authority/wiltshire,10/12/2019,1902464212,2885.91,Akcess Ltd ,101402,SN2 ,Neighbourhood & Planning,SEN Secondary Tspt,Transport Contracts,Third Party Payments,REVENUE
Wiltshire,http://opendatacommunities.org/id/unitary-authority/wiltshire,10/12/2019,1902464213,1700.5,Akcess Ltd ,101402,SN2 ,Neighbourhood & Planning,Mainstream Primary,Transport Contracts,Third Party Payments,REVENUE
Wiltshire,http://opendatacommunities.org/id/unitary-authority/wiltshire,10/12/2019,1902464214,836,Akcess Ltd ,101402,SN2 ,Neighbourhood & Planning,Mainstream Secondary,Transport Contracts,Third Party Payments,REVENUE
Wiltshire,http://opendatacommunities.org/id/unitary-authority/wiltshire,10/12/2019,1902464216,2790,Akcess Ltd ,101402,SN2 ,Neighbourhood & Planning,SEN Secondary Tspt,Transport Contracts,Third Party Payments,REVENUE
Wiltshire,http://opendatacommunities.org/id/unitary-authority/wiltshire,10/12/2019,1902464220,2177.16,Akcess Ltd ,101402,SN2 ,Neighbourhood & Planning,Mainstream Primary,Transport Contracts,Third Party Payments,REVENUE
Wiltshire,http://opendatacommunities.org/id/unitary-authority/wiltshire,10/12/2019,1902464221,2666.67,Akcess Ltd ,101402,SN2 ,Neighbourhood & Planning,Mainstream Secondary,Transport Contracts,Third Party Payments,REVENUE
Wiltshire,http://opendatacommunities.org/id/unitary-authority/wiltshire,10/12/2019,1902464222,1691,Akcess Ltd ,101402,SN2 ,Neighbourhood & Planning,Mainstream Primary,Transport Contracts,Third Party Payments,REVENUE
Wiltshire,http://opendatacommunities.org/id/unitary-authority/wiltshire,10/12/2019,1902464223,1692.73,Akcess Ltd ,101402,SN2 ,Neighbourhood & Planning,Mainstream Primary,Transport Contracts,Third Party Payments,REVENUE
Wiltshire,http://opendatacommunities.org/id/unitary-authority/wiltshire,10/12/2019,1902464224,928.63,Akcess Ltd ,101402,SN2 ,Community Services,West Care Packages,Transport Contracts,Third Party Payments,REVENUE
Wiltshire,http://opendatacommunities.org/id/unitary-authority/wiltshire,10/12/2019,1902464224,2031.37,Akcess Ltd ,101402,SN2 ,Community Services,CTPLD Placements,Transport Contracts,Third Party Payments,REVENUE
Wiltshire,http://opendatacommunities.org/id/unitary-authority/wiltshire,10/12/2019,1902464225,2087.12,Akcess Ltd ,101402,SN2 ,Neighbourhood & Planning,Mainstream Primary,Transport Contracts,Third Party Payments,REVENUE
Wiltshire,http://opendatacommunities.org/id/unitary-authority/wiltshire,10/12/2019,1902464229,2250,Akcess Ltd ,101402,SN2 ,Neighbourhood & Planning,SEN Secondary Tspt,Transport Contracts,Third Party Payments,REVENUE
Wiltshire,http://opendatacommunities.org/id/unitary-authority/wiltshire,10/12/2019,1902464230,1032,Akcess Ltd ,101402,SN2 ,Neighbourhood & Planning,SEN Secondary Tspt,Transport Contracts,Third Party Payments,REVENUE
Wiltshire,http://opendatacommunities.org/id/unitary-authority/wiltshire,10/12/2019,1902464230,1548,Akcess Ltd ,101402,SN2 ,Neighbourhood & Planning,SEN 16+ Transport,Transport Contracts,Third Party Payments,REVENUE
Wiltshire,http://opendatacommunities.org/id/unitary-authority/wiltshire,10/12/2019,1902464239,2861.54,Akcess Ltd ,101402,SN2 ,Neighbourhood & Planning,Mainstream Secondary,Transport Contracts,Third Party Payments,REVENUE
Wiltshire,http://opendatacommunities.org/id/unitary-authority/wiltshire,10/12/2019,1902464240,12948,Akcess Ltd ,101402,SN2 ,Neighbourhood & Planning,SEN Secondary Tspt,Transport Contracts,Third Party Payments,REVENUE
Wiltshire,http://opendatacommunities.org/id/unitary-authority/wiltshire,10/12/2019,1902464325,1009.84,Alabare Christian Care Centre ,100837,SP2 ,Community Services,CTPLD Placements,Supported Living,Third Party Payments,REVENUE
Wiltshire,http://opendatacommunities.org/id/unitary-authority/wiltshire,10/12/2019,1902464326,1453.92,Alabare Christian Care Centre ,100837,SP2 ,Community Services,CTPLD Placements,Supported Living,Third Party Payments,REVENUE
Wiltshire,http://opendatacommunities.org/id/unitary-authority/wiltshire,10/12/2019,1902464331,1508.4,Alabare Christian Care Centre ,100837,SP2 ,Community Services,CTPLD Placements,Supported Living,Third Party Payments,REVENUE
Wiltshire,http://opendatacommunities.org/id/unitary-authority/wiltshire,10/12/2019,1902464332,1752,Alabare Christian Care Centre ,100837,SP2 ,Community Services,CTPLD Placements,Supported Living,Third Party Payments,REVENUE
Wiltshire,http://opendatacommunities.org/id/unitary-authority/wiltshire,10/12/2019,1902464333,1830.12,Alabare Christian Care Centre ,100837,SP2 ,Community Services,South Care Packages,Supported Living,Third Party Payments,REVENUE
Wiltshire,http://opendatacommunities.org/id/unitary-authority/wiltshire,10/12/2019,1902464334,1922,Alabare Christian Care Centre ,100837,SP2 ,Community Services,CTPLD Placements,Supported Living,Third Party Payments,REVENUE
Wiltshire,http://opendatacommunities.org/id/unitary-authority/wiltshire,10/12/2019,1902464335,2109.36,Alabare Christian Care Centre ,100837,SP2 ,Community Services,CTPLD Placements,Supported Living,Third Party Payments,REVENUE
Wiltshire,http://opendatacommunities.org/id/unitary-authority/wiltshire,10/12/2019,1902464336,2170.6,Alabare Christian Care Centre ,100837,SP2 ,Community Services,CTPLD Placements,Supported Living,Third Party Payments,REVENUE
Wiltshire,http://opendatacommunities.org/id/unitary-authority/wiltshire,10/12/2019,1902464340,2194.96,Alabare Christian Care Centre ,100837,SP2 ,Community Services,CTPLD Placements,Supported Living,Third Party Payments,REVENUE
Wiltshire,http://opendatacommunities.org/id/unitary-authority/wiltshire,10/12/2019,1902464341,2200.6,Alabare Christian Care Centre ,100837,SP2 ,Community Services,CTPLD Placements,Supported Living,Third Party Payments,REVENUE
Wiltshire,http://opendatacommunities.org/id/unitary-authority/wiltshire,10/12/2019,1902464342,2305.8,Alabare Christian Care Centre ,100837,SP2 ,Community Services,CTPLD Placements,Supported Living,Third Party Payments,REVENUE
Wiltshire,http://opendatacommunities.org/id/unitary-authority/wiltshire,10/12/2019,1902464343,2649.4,Alabare Christian Care Centre ,100837,SP2 ,Community Services,CTPLD Placements,Supported Living,Third Party Payments,REVENUE
Wiltshire,http://opendatacommunities.org/id/unitary-authority/wiltshire,10/12/2019,1902464344,2776.52,Alabare Christian Care Centre ,100837,SP2 ,Community Services,CTPLD Placements,Supported Living,Third Party Payments,REVENUE
Wiltshire,http://opendatacommunities.org/id/unitary-authority/wiltshire,10/12/2019,1902464345,2932.24,Alabare Christian Care Centre ,100837,SP2 ,Community Services,CTPLD Placements,Supported Living,Third Party Payments,REVENUE
Wiltshire,http://opendatacommunities.org/id/unitary-authority/wiltshire,10/12/2019,1902464346,3094.52,Alabare Christian Care Centre ,100837,SP2 ,Community Services,CTPLD Placements,Supported Living,Third Party Payments,REVENUE
Wiltshire,http://opendatacommunities.org/id/unitary-authority/wiltshire,10/12/2019,1902464347,3124.48,Alabare Christian Care Centre ,100837,SP2 ,Community Services,CTPLD Placements,Supported Living,Third Party Payments,REVENUE
Wiltshire,http://opendatacommunities.org/id/unitary-authority/wiltshire,10/12/2019,1902464348,3206.12,Alabare Christian Care Centre ,100837,SP2 ,Community Services,CTPLD Placements,Supported Living,Third Party Payments,REVENUE
Wiltshire,http://opendatacommunities.org/id/unitary-authority/wiltshire,10/12/2019,1902464349,3369.04,Alabare Christian Care Centre ,100837,SP2 ,Community Services,CTPLD Placements,Supported Living,Third Party Payments,REVENUE
Wiltshire,http://opendatacommunities.org/id/unitary-authority/wiltshire,10/12/2019,1902464350,3532.52,Alabare Christian Care Centre ,100837,SP2 ,Community Services,CTPLD Placements,Supported Living,Third Party Payments,REVENUE
Wiltshire,http://opendatacommunities.org/id/unitary-authority/wiltshire,10/12/2019,1902464351,3552.52,Alabare Christian Care Centre ,100837,SP2 ,Community Services,CTPLD Placements,Supported Living,Third Party Payments,REVENUE
Wiltshire,http://opendatacommunities.org/id/unitary-authority/wiltshire,10/12/2019,1902464353,365,Alabare Christian Care Centre ,100837,SP2 ,Community Services,MH AOWA South Locali,Supported Living,Third Party Payments,REVENUE
Wiltshire,http://opendatacommunities.org/id/unitary-authority/wiltshire,10/12/2019,1902464354,3788.04,Alabare Christian Care Centre ,100837,SP2 ,Community Services,CTPLD Placements,Supported Living,Third Party Payments,REVENUE
Wiltshire,http://opendatacommunities.org/id/unitary-authority/wiltshire,10/12/2019,1902464355,3976.24,Alabare Christian Care Centre ,100837,SP2 ,Community Services,South Care Packages,Supported Living,Third Party Payments,REVENUE
Wiltshire,http://opendatacommunities.org/id/unitary-authority/wiltshire,10/12/2019,1902464356,401.52,Alabare Christian Care Centre ,100837,SP2 ,Community Services,MH AOWA South Locali,Supported Living,Third Party Payments,REVENUE
Wiltshire,http://opendatacommunities.org/id/unitary-authority/wiltshire,10/12/2019,1902464357,401.52,Alabare Christian Care Centre ,100837,SP2 ,Community Services,CTPLD Placements,Supported Living,Third Party Payments,REVENUE
Wiltshire,http://opendatacommunities.org/id/unitary-authority/wiltshire,10/12/2019,1902464358,4043.52,Alabare Christian Care Centre ,100837,SP2 ,Community Services,CTPLD Placements,Supported Living,Third Party Payments,REVENUE
Wiltshire,http://opendatacommunities.org/id/unitary-authority/wiltshire,10/12/2019,1902464359,4155.12,Alabare Christian Care Centre ,100837,SP2 ,Community Services,CTPLD Placements,Supported Living,Third Party Payments,REVENUE
Wiltshire,http://opendatacommunities.org/id/unitary-authority/wiltshire,10/12/2019,1902464360,438,Alabare Christian Care Centre ,100837,SP2 ,Community Services,CTPLD Placements,Supported Living,Third Party Payments,REVENUE
Wiltshire,http://opendatacommunities.org/id/unitary-authority/wiltshire,10/12/2019,1902464361,511,Alabare Christian Care Centre ,100837,SP2 ,Community Services,MH AOWA South Locali,Supported Living,Third Party Payments,REVENUE
Wiltshire,http://opendatacommunities.org/id/unitary-authority/wiltshire,10/12/2019,1902464362,511,Alabare Christian Care Centre ,100837,SP2 ,Community Services,CTPLD Placements,Supported Living,Third Party Payments,REVENUE
Wiltshire,http://opendatacommunities.org/id/unitary-authority/wiltshire,10/12/2019,1902464363,584,Alabare Christian Care Centre ,100837,SP2 ,Community Services,MH AOWA South Locali,Supported Living,Third Party Payments,REVENUE
Wiltshire,http://opendatacommunities.org/id/unitary-authority/wiltshire,10/12/2019,1902464364,644.84,Alabare Christian Care Centre ,100837,SP2 ,Community Services,CTPLD Placements,Supported Living,Third Party Payments,REVENUE
Wiltshire,http://opendatacommunities.org/id/unitary-authority/wiltshire,10/12/2019,1902464366,730,Alabare Christian Care Centre ,100837,SP2 ,Community Services,MH AOWA South Locali,Supported Living,Third Party Payments,REVENUE
Wiltshire,http://opendatacommunities.org/id/unitary-authority/wiltshire,10/12/2019,1902464367,766.52,Alabare Christian Care Centre ,100837,SP2 ,Community Services,CTPLD Placements,Supported Living,Third Party Payments,REVENUE
Wiltshire,http://opendatacommunities.org/id/unitary-authority/wiltshire,10/12/2019,1902464368,9064.56,Alabare Christian Care Centre ,100837,SP2 ,Community Services,CTPLD Placements,Supported Living,Third Party Payments,REVENUE
Wiltshire,http://opendatacommunities.org/id/unitary-authority/wiltshire,10/12/2019,1902464369,955.08,Alabare Christian Care Centre ,100837,SP2 ,Community Services,CTPLD Placements,Supported Living,Third Party Payments,REVENUE
Wiltshire,http://opendatacommunities.org/id/unitary-authority/wiltshire,20/12/2019,1902474724,320,Alabare Christian Care Centre ,100837,SP2 ,Community Services,MH AOWA South Locali,Adult Day Care Contracts,Third Party Payments,REVENUE
Wiltshire,http://opendatacommunities.org/id/unitary-authority/wiltshire,20/12/2019,1902474725,320,Alabare Christian Care Centre ,100837,SP2 ,Community Services,MH AOWA N&E Locality,Adult Day Care Contracts,Third Party Payments,REVENUE
Wiltshire,http://opendatacommunities.org/id/unitary-authority/wiltshire,20/12/2019,1902474726,320,Alabare Christian Care Centre ,100837,SP2 ,Community Services,CTPLD Placements,Adult Day Care Contracts,Third Party Payments,REVENUE
Wiltshire,http://opendatacommunities.org/id/unitary-authority/wiltshire,20/12/2019,1902474727,480,Alabare Christian Care Centre ,100837,SP2 ,Community Services,MH AOWA South Locali,Adult Day Care Contracts,Third Party Payments,REVENUE
Wiltshire,http://opendatacommunities.org/id/unitary-authority/wiltshire,20/12/2019,1902474728,680,Alabare Christian Care Centre ,100837,SP2 ,Community Services,South Care Packages,Adult Day Care Contracts,Third Party Payments,REVENUE
Wiltshire,http://opendatacommunities.org/id/unitary-authority/wiltshire,20/12/2019,1902474731,480,Alabare Christian Care Centre ,100837,SP2 ,Community Services,CTPLD Placements,Adult Day Care Contracts,Third Party Payments,REVENUE
Wiltshire,http://opendatacommunities.org/id/unitary-authority/wiltshire,03/12/2019,5107397791,289.5,Alabare Christian Care Centre ,100837,SP2 ,Children & Education,Supp & Safe West 1,Other Social & Welfare Costs,Third Party Payments,REVENUE
Wiltshire,http://opendatacommunities.org/id/unitary-authority/wiltshire,17/12/2019,5107398916,1178.71,Alabare Christian Care Centre ,100837,SP2 ,Children & Education,16-25 Supp & Accom,Childrens Agency Placement,Third Party Payments,REVENUE
Wiltshire,http://opendatacommunities.org/id/unitary-authority/wiltshire,17/12/2019,5107398927,1208.43,Alabare Christian Care Centre ,100837,SP2 ,Children & Education,16-25 Supp & Accom,Childrens Agency Placement,Third Party Payments,REVENUE
Wiltshire,http://opendatacommunities.org/id/unitary-authority/wiltshire,17/12/2019,5107398928,2523.71,Alabare Christian Care Centre ,100837,SP2 ,Children & Education,16-25 Supp & Accom,Childrens Agency Placement,Third Party Payments,REVENUE
Wiltshire,http://opendatacommunities.org/id/unitary-authority/wiltshire,17/12/2019,5107398929,4290.64,Alabare Christian Care Centre ,100837,SP2 ,Children & Education,16-25 Supp & Accom,Childrens Agency Placement,Third Party Payments,REVENUE
Wiltshire,http://opendatacommunities.org/id/unitary-authority/wiltshire,17/12/2019,5107398931,3735.98,Alabare Christian Care Centre ,100837,SP2 ,Children & Education,16-25 Supp & Accom,Childrens Agency Placement,Third Party Payments,REVENUE
Wiltshire,http://opendatacommunities.org/id/unitary-authority/wiltshire,17/12/2019,5107398932,3873.97,Alabare Christian Care Centre ,100837,SP2 ,Children & Education,16-25 Supp & Accom,Childrens Agency Placement,Third Party Payments,REVENUE
Wiltshire,http://opendatacommunities.org/id/unitary-authority/wiltshire,17/12/2019,5107398933,2873.8,Alabare Christian Care Centre ,100837,SP2 ,Children & Education,16-25 Supp & Accom,Childrens Agency Placement,Third Party Payments,REVENUE
Wiltshire,http://opendatacommunities.org/id/unitary-authority/wiltshire,17/12/2019,5107398934,4321.78,Alabare Christian Care Centre ,100837,SP2 ,Children & Education,UASC Under 18 Years,Childrens Agency Placement,Third Party Payments,REVENUE
Wiltshire,http://opendatacommunities.org/id/unitary-authority/wiltshire,17/12/2019,5107398936,1467.6,Alabare Christian Care Centre ,100837,SP2 ,Children & Education,16-25 Supp & Accom,Childrens Agency Placement,Third Party Payments,REVENUE
Wiltshire,http://opendatacommunities.org/id/unitary-authority/wiltshire,17/12/2019,5107398937,1086.83,Alabare Christian Care Centre ,100837,SP2 ,Children & Education,16-25 Supp & Accom,Childrens Agency Placement,Third Party Payments,REVENUE
Wiltshire,http://opendatacommunities.org/id/unitary-authority/wiltshire,17/12/2019,5107398938,4674.34,Alabare Christian Care Centre ,100837,SP2 ,Children & Education,16-25 Supp & Accom,Childrens Agency Placement,Third Party Payments,REVENUE
Wiltshire,http://opendatacommunities.org/id/unitary-authority/wiltshire,17/12/2019,5107398939,4568.68,Alabare Christian Care Centre ,100837,SP2 ,Children & Education,16-25 Supp & Accom,Childrens Agency Placement,Third Party Payments,REVENUE
Wiltshire,http://opendatacommunities.org/id/unitary-authority/wiltshire,17/12/2019,5107398940,3329.6,Alabare Christian Care Centre ,100837,SP2 ,Children & Education,UASC Under 18 Years,Childrens Agency Placement,Third Party Payments,REVENUE
Wiltshire,http://opendatacommunities.org/id/unitary-authority/wiltshire,17/12/2019,5107398941,2392.01,Alabare Christian Care Centre ,100837,SP2 ,Children & Education,16-25 Supp & Accom,Childrens Agency Placement,Third Party Payments,REVENUE
Wiltshire,http://opendatacommunities.org/id/unitary-authority/wiltshire,23/12/2019,5107397946,5500,Albany Beck Consultancy Services Lt ,148245,HP4 ,Wiltshire Council,Wiltshire Council,Consultants Fees,Supplies and Services,CAPITAL
Wiltshire,http://opendatacommunities.org/id/unitary-authority/wiltshire,19/12/2019,1902474842,3287.55,Albare Christian Care Centres ,113386,SP2 ,Wiltshire Council,Wiltshire Council,Payments in Advance,Balance Sheet Accounts,REVENUE
Wiltshire,http://opendatacommunities.org/id/unitary-authority/wiltshire,11/12/2019,1902465765,267.12,Aldbourne Nursing Home ,110090,SN8 ,Community Services,Home Loans,Adult Nursing Place- Spot Purchase Contr,Income,REVENUE
Wiltshire,http://opendatacommunities.org/id/unitary-authority/wiltshire,11/12/2019,1902465766,3000,Aldbourne Nursing Home ,110090,SN8 ,Community Services,Home Loans,Adult Care Nursing Placements - Spot,Third Party Payments,REVENUE
Wiltshire,http://opendatacommunities.org/id/unitary-authority/wiltshire,10/12/2019,5107398278,741.75,Aldersgate Social Care Limited ,149026,MK3 ,Children & Education,HQ Social Care,Witness / Jurors' / Justice's Expenses,Supplies and Services,REVENUE
Wiltshire,http://opendatacommunities.org/id/unitary-authority/wiltshire,03/12/2019,5107397756,296,Alere Toxicology Plc ,131373,OX14,Children & Education,Supp & Safe West 2,Other Social & Welfare Costs,Third Party Payments,REVENUE
Wiltshire,http://opendatacommunities.org/id/unitary-authority/wiltshire,17/12/2019,5107398829,431,Alere Toxicology Plc ,131373,OX14,Children & Education,Supp & Safe East,Other Social & Welfare Costs,Third Party Payments,REVENUE
Wiltshire,http://opendatacommunities.org/id/unitary-authority/wiltshire,10/12/2019,1902463893,3400,Alexandra Care Centre ,147242,BH8 ,Community Services,MH AOWA N&E Locality,Adult Residential Placements - Spot Purchase,Third Party Payments,REVENUE
Wiltshire,http://opendatacommunities.org/id/unitary-authority/wiltshire,11/12/2019,1902465259,6237.48,Alexandra Homes (Bristol) Ltd ,131787,BS15,Community Services,MH AOWA West Localit,Adult Residential Placements - Spot Purchase,Third Party Payments,REVENUE
Wiltshire,http://opendatacommunities.org/id/unitary-authority/wiltshire,10/12/2019,1902464050,10387.3,Alina Homecare - Disabilty Support ,139903,BH12,Community Services,CTPLD Placements,Supported Living,Third Party Payments,REVENUE
Wiltshire,http://opendatacommunities.org/id/unitary-authority/wiltshire,10/12/2019,1902464052,8932,Alina Homecare - Disabilty Support ,139903,BH12,Community Services,CTPLD Placements,Supported Living,Third Party Payments,REVENUE
Wiltshire,http://opendatacommunities.org/id/unitary-authority/wiltshire,10/12/2019,1902464054,10217.9,Alina Homecare - Disabilty Support ,139903,BH12,Community Services,CTPLD Placements,Supported Living,Third Party Payments,REVENUE
Wiltshire,http://opendatacommunities.org/id/unitary-authority/wiltshire,10/12/2019,1902464056,9940.7,Alina Homecare - Disabilty Support ,139903,BH12,Community Services,CTPLD Placements,Supported Living,Third Party Payments,REVENUE
Wiltshire,http://opendatacommunities.org/id/unitary-authority/wiltshire,10/12/2019,1902464118,1755.6,Alina Homecare - Disabilty Support ,139903,BH12,Community Services,North Care Packages,Adult Domiciliary Care,Third Party Payments,REVENUE
Wiltshire,http://opendatacommunities.org/id/unitary-authority/wiltshire,10/12/2019,1902464119,1591.2,Alina Homecare - Disabilty Support ,139903,BH12,Community Services,CTPLD Placements,Adult Domiciliary Care Contribution,Income,REVENUE
Wiltshire,http://opendatacommunities.org/id/unitary-authority/wiltshire,10/12/2019,1902464121,1207.7,Alina Homecare - Disabilty Support ,139903,BH12,Community Services,West Care Packages,Adult Domiciliary Care,Third Party Payments,REVENUE
Wiltshire,http://opendatacommunities.org/id/unitary-authority/wiltshire,10/12/2019,1902464122,4127.16,Alina Homecare - Disabilty Support ,139903,BH12,Community Services,CTPLD Placements,Supported Living Contribution,Income,REVENUE
Wiltshire,http://opendatacommunities.org/id/unitary-authority/wiltshire,10/12/2019,1902464123,10371.4,Alina Homecare - Disabilty Support ,139903,BH12,Community Services,CTPLD Placements,Supported Living Contribution,Income,REVENUE
Wiltshire,http://opendatacommunities.org/id/unitary-authority/wiltshire,10/12/2019,1902464124,1198.17,Alina Homecare - Disabilty Support ,139903,BH12,Community Services,West Care Packages,Adult Domiciliary Care Contribution,Income,REVENUE
Wiltshire,http://opendatacommunities.org/id/unitary-authority/wiltshire,10/12/2019,1902464125,344.4,Alina Homecare - Disabilty Support ,139903,BH12,Community Services,CTPLD Placements,Adult Domiciliary Care Contribution,Income,REVENUE
Wiltshire,http://opendatacommunities.org/id/unitary-authority/wiltshire,10/12/2019,1902464126,547.96,Alina Homecare - Disabilty Support ,139903,BH12,Community Services,CTPLD Placements,Adult Domiciliary Care Contribution,Income,REVENUE
Wiltshire,http://opendatacommunities.org/id/unitary-authority/wiltshire,03/12/2019,5107397795,1461.46,Alina Homecare - Disabilty Support ,139903,BH12,Children & Education,0-25 extnl disabty p,Other Social & Welfare Costs,Third Party Payments,REVENUE
Wiltshire,http://opendatacommunities.org/id/unitary-authority/wiltshire,03/12/2019,5107397796,1469.13,Alina Homecare - Disabilty Support ,139903,BH12,Children & Education,0-25 extnl disabty p,Other Social & Welfare Costs,Third Party Payments,REVENUE
Wiltshire,http://opendatacommunities.org/id/unitary-authority/wiltshire,24/12/2019,5107399763,5013.55,All the other Lucy's (ATOL) ,148945,SW18,Children & Education,0-25 extnl disabty p,Other Social & Welfare Costs,Third Party Payments,REVENUE
Wiltshire,http://opendatacommunities.org/id/unitary-authority/wiltshire,10/12/2019,1902463910,3601.96,Alliance Home Care ,110986,SN15,Community Services,Adult Care Gross Loa,Adult Residential Placements - Spot Purchase,Third Party Payments,REVENUE
Wiltshire,http://opendatacommunities.org/id/unitary-authority/wiltshire,10/12/2019,1902463911,3215.16,Alliance Home Care ,110986,SN15,Community Services,MH AOWA N&E Locality,Adult Residential Placements - Spot Purchase,Third Party Payments,REVENUE
Wiltshire,http://opendatacommunities.org/id/unitary-authority/wiltshire,10/12/2019,1902463912,3346.28,Alliance Home Care ,110986,SN15,Community Services,MH AOWA N&E Locality,Adult Residential Placements - Spot Purchase,Third Party Payments,REVENUE
Wiltshire,http://opendatacommunities.org/id/unitary-authority/wiltshire,10/12/2019,1902463913,3599.72,Alliance Home Care ,110986,SN15,Community Services,MH OP N&E Locality,Adult Residential Placements - Spot Purchase,Third Party Payments,REVENUE
Wiltshire,http://opendatacommunities.org/id/unitary-authority/wiltshire,10/12/2019,1902463914,3600,Alliance Home Care ,110986,SN15,Community Services,MH OP N&E Locality,Adult Residential Placements - Spot Purchase,Third Party Payments,REVENUE
Wiltshire,http://opendatacommunities.org/id/unitary-authority/wiltshire,10/12/2019,1902463915,3601.96,Alliance Home Care ,110986,SN15,Community Services,MH AOWA N&E Locality,Adult Residential Placements - Spot Purchase,Third Party Payments,REVENUE
Wiltshire,http://opendatacommunities.org/id/unitary-authority/wiltshire,10/12/2019,1902463916,3764.28,Alliance Home Care ,110986,SN15,Community Services,MH AOWA N&E Locality,Adult Residential Placements - Spot Purchase,Third Party Payments,REVENUE
Wiltshire,http://opendatacommunities.org/id/unitary-authority/wiltshire,10/12/2019,1902463917,3818,Alliance Home Care ,110986,SN15,Community Services,MH AOWA N&E Locality,Adult Residential Placements - Spot Purchase,Third Party Payments,REVENUE
Wiltshire,http://opendatacommunities.org/id/unitary-authority/wiltshire,10/12/2019,1902463918,3827.52,Alliance Home Care ,110986,SN15,Community Services,MH AOWA N&E Locality,Adult Residential Placements - Spot Purchase,Third Party Payments,REVENUE
Wiltshire,http://opendatacommunities.org/id/unitary-authority/wiltshire,13/12/2019,1902467480,422.94,Allsorts Pre-school Nursery ,113437,SN4 ,Children & Education,Early Years PPG,Childcare Free Entitlement Early Years,Supplies and Services,REVENUE
Wiltshire,http://opendatacommunities.org/id/unitary-authority/wiltshire,13/12/2019,1902467481,7150.08,Allsorts Pre-school Nursery ,113437,SN4 ,Children & Education,Free Entitlement 2 Y,Childcare Free Entitlement Early Years,Supplies and Services,REVENUE
Wiltshire,http://opendatacommunities.org/id/unitary-authority/wiltshire,13/12/2019,1902467482,7662.6,Allsorts Pre-school Nursery ,113437,SN4 ,Children & Education,Free Enttlmnt 3 & 4y,Childcare Free Entitlement Early Years,Supplies and Services,REVENUE
Wiltshire,http://opendatacommunities.org/id/unitary-authority/wiltshire,20/12/2019,5107399379,510,ALLSPARES  AUTO  LTD ,110116,CF33,Neighbourhood & Planning,Fleet,Vehicle Parts,Transport Related,REVENUE
Wiltshire,http://opendatacommunities.org/id/unitary-authority/wiltshire,17/12/2019,1902469041,969.78,Alltogether Care LLP ,143884,DT4 ,Community Services,South Care Packages,Adult Domiciliary Care,Third Party Payments,REVENUE
Wiltshire,http://opendatacommunities.org/id/unitary-authority/wiltshire,17/12/2019,1902469042,1212,Alltogether Care LLP ,143884,DT4 ,Community Services,South Care Packages,Adult Domiciliary Care Contribution,Income,REVENUE
Wiltshire,http://opendatacommunities.org/id/unitary-authority/wiltshire,17/12/2019,1902469043,298.41,Alltogether Care LLP ,143884,DT4 ,Community Services,South Care Packages,Adult Domiciliary Care,Third Party Payments,REVENUE
Wiltshire,http://opendatacommunities.org/id/unitary-authority/wiltshire,17/12/2019,1902469044,440.51,Alltogether Care LLP ,143884,DT4 ,Community Services,South Care Packages,Adult Domiciliary Care,Third Party Payments,REVENUE
Wiltshire,http://opendatacommunities.org/id/unitary-authority/wiltshire,06/12/2019,5107396647,419.45,Alpha Chemicals ,138904,SO31,Neighbourhood & Planning,Devizes,Cleaning Materials - Buildings,Premises Related,REVENUE
Wiltshire,http://opendatacommunities.org/id/unitary-authority/wiltshire,03/12/2019,5107397826,408,Alpha Chemicals ,138904,SO31,Neighbourhood & Planning,Five Rivers,Cleaning Materials - Buildings,Premises Related,REVENUE
Wiltshire,http://opendatacommunities.org/id/unitary-authority/wiltshire,03/12/2019,5107397827,385.74,Alpha Chemicals ,138904,SO31,Neighbourhood & Planning,Five Rivers,Cleaning Materials - Buildings,Premises Related,REVENUE
Wiltshire,http://opendatacommunities.org/id/unitary-authority/wiltshire,12/12/2019,5107398453,408.75,Alpha Chemicals ,138904,SO31,Neighbourhood & Planning,Devizes,Cleaning Materials - Buildings,Premises Related,REVENUE
Wiltshire,http://opendatacommunities.org/id/unitary-authority/wiltshire,23/12/2019,1902473776,292.8,Alpha Plus Training  and  Translati Ltd,110120,TA4 ,Community Services,BCF-Intermediate Cr,Professional Fees,Supplies and Services,REVENUE
Wiltshire,http://opendatacommunities.org/id/unitary-authority/wiltshire,13/12/2019,5107396525,269.25,Alpha Plus Training  and  Translati Ltd,110120,TA4 ,Children & Education,HQ Social Care,Other Social & Welfare Costs,Third Party Payments,REVENUE
Wiltshire,http://opendatacommunities.org/id/unitary-authority/wiltshire,17/12/2019,5107397022,277.2,Alpha Plus Training  and  Translati Ltd,110120,TA4 ,Children & Education,UASC Under 18 Years,Professional Fees,Supplies and Services,REVENUE
Wiltshire,http://opendatacommunities.org/id/unitary-authority/wiltshire,16/12/2019,5107397023,276,Alpha Plus Training  and  Translati Ltd,110120,TA4 ,Children & Education,UASC Under 18 Years,Professional Fees,Supplies and Services,REVENUE
Wiltshire,http://opendatacommunities.org/id/unitary-authority/wiltshire,16/12/2019,5107397024,255.8,Alpha Plus Training  and  Translati Ltd,110120,TA4 ,Children & Education,UASC Under 18 Years,Professional Fees,Supplies and Services,REVENUE
Wiltshire,http://opendatacommunities.org/id/unitary-authority/wiltshire,02/12/2019,5107397049,372,Alpha Plus Training  and  Translati Ltd,110120,TA4 ,Children & Education,UASC Under 18 Years,Professional Fees,Supplies and Services,REVENUE
Wiltshire,http://opendatacommunities.org/id/unitary-authority/wiltshire,02/12/2019,5107397060,567,Alpha Plus Training  and  Translati Ltd,110120,TA4 ,Children & Education,UASC Under 18 Years,Professional Fees,Supplies and Services,REVENUE
Wiltshire,http://opendatacommunities.org/id/unitary-authority/wiltshire,03/12/2019,5107397062,275.55,Alpha Plus Training  and  Translati Ltd,110120,TA4 ,Children & Education,UASC Under 18 Years,Professional Fees,Supplies and Services,REVENUE
Wiltshire,http://opendatacommunities.org/id/unitary-authority/wiltshire,05/12/2019,5107397066,255.8,Alpha Plus Training  and  Translati Ltd,110120,TA4 ,Children & Education,UASC Under 18 Years,Professional Fees,Supplies and Services,REVENUE
Wiltshire,http://opendatacommunities.org/id/unitary-authority/wiltshire,23/12/2019,5107397590,1853,Alpha Plus Training  and  Translati Ltd,110120,TA4 ,Resources,Refugee Programme,Professional Fees,Supplies and Services,REVENUE
Wiltshire,http://opendatacommunities.org/id/unitary-authority/wiltshire,12/12/2019,5107397624,359.03,Alpha Plus Training  and  Translati Ltd,110120,TA4 ,Children & Education,YOT,Professional Fees,Supplies and Services,REVENUE
Wiltshire,http://opendatacommunities.org/id/unitary-authority/wiltshire,23/12/2019,5107397844,279.13,Alpha Plus Training  and  Translati Ltd,110120,TA4 ,Children & Education,YOT,Professional Fees,Supplies and Services,REVENUE
Wiltshire,http://opendatacommunities.org/id/unitary-authority/wiltshire,05/12/2019,5107397921,331.8,Alpha Plus Training  and  Translati Ltd,110120,TA4 ,Children & Education,HQ Social Care,Professional Fees,Supplies and Services,REVENUE
Wiltshire,http://opendatacommunities.org/id/unitary-authority/wiltshire,23/12/2019,5107397932,255.8,Alpha Plus Training  and  Translati Ltd,110120,TA4 ,Children & Education,UASC Under 18 Years,Professional Fees,Supplies and Services,REVENUE
Wiltshire,http://opendatacommunities.org/id/unitary-authority/wiltshire,23/12/2019,5107397933,296.19,Alpha Plus Training  and  Translati Ltd,110120,TA4 ,Children & Education,UASC Under 18 Years,Professional Fees,Supplies and Services,REVENUE
Wiltshire,http://opendatacommunities.org/id/unitary-authority/wiltshire,23/12/2019,5107398018,255.8,Alpha Plus Training  and  Translati Ltd,110120,TA4 ,Children & Education,UASC Under 18 Years,Professional Fees,Supplies and Services,REVENUE
Wiltshire,http://opendatacommunities.org/id/unitary-authority/wiltshire,23/12/2019,5107398019,264.6,Alpha Plus Training  and  Translati Ltd,110120,TA4 ,Children & Education,UASC Under 18 Years,Professional Fees,Supplies and Services,REVENUE
Wiltshire,http://opendatacommunities.org/id/unitary-authority/wiltshire,06/12/2019,5107398064,313.75,Alpha Plus Training  and  Translati Ltd,110120,TA4 ,Children & Education,HQ Social Care,Professional Fees,Supplies and Services,REVENUE
Wiltshire,http://opendatacommunities.org/id/unitary-authority/wiltshire,09/12/2019,5107398152,253.95,Alpha Plus Training  and  Translati Ltd,110120,TA4 ,Children & Education,UASC Under 18 Years,Professional Fees,Supplies and Services,REVENUE
Wiltshire,http://opendatacommunities.org/id/unitary-authority/wiltshire,17/12/2019,5107398169,252.8,Alpha Plus Training  and  Translati Ltd,110120,TA4 ,Children & Education,HQ Social Care,Professional Fees,Supplies and Services,REVENUE
Wiltshire,http://opendatacommunities.org/id/unitary-authority/wiltshire,23/12/2019,5107398789,850.3,Alpha Plus Training  and  Translati Ltd,110120,TA4 ,Children & Education,UASC Under 18 Years,Professional Fees,Supplies and Services,REVENUE
Wiltshire,http://opendatacommunities.org/id/unitary-authority/wiltshire,16/12/2019,5107398790,255.8,Alpha Plus Training  and  Translati Ltd,110120,TA4 ,Children & Education,UASC Under 18 Years,Professional Fees,Supplies and Services,REVENUE
Wiltshire,http://opendatacommunities.org/id/unitary-authority/wiltshire,23/12/2019,5107398794,292.56,Alpha Plus Training  and  Translati Ltd,110120,TA4 ,Children & Education,UASC Over 18 Years,Professional Fees,Supplies and Services,REVENUE
Wiltshire,http://opendatacommunities.org/id/unitary-authority/wiltshire,17/12/2019,1902469056,1232.86,Alpha Support Limited ,148697,WV15,Community Services,South Care Packages,Adult Domiciliary Care Contribution,Income,REVENUE
Wiltshire,http://opendatacommunities.org/id/unitary-authority/wiltshire,17/12/2019,1902469057,672.42,Alpha Support Limited ,148697,WV15,Community Services,South Care Packages,Adult Domiciliary Care Contribution,Income,REVENUE
Wiltshire,http://opendatacommunities.org/id/unitary-authority/wiltshire,17/12/2019,1902469058,3586.63,Alpha Support Limited ,148697,WV15,Community Services,South Care Packages,Adult Domiciliary Care,Third Party Payments,REVENUE
Wiltshire,http://opendatacommunities.org/id/unitary-authority/wiltshire,17/12/2019,1902469059,1545.48,Alpha Support Limited ,148697,WV15,Community Services,North Care Packages,Adult Domiciliary Care,Third Party Payments,REVENUE
Wiltshire,http://opendatacommunities.org/id/unitary-authority/wiltshire,17/12/2019,1902469060,1389.61,Alpha Support Limited ,148697,WV15,Community Services,South Care Packages,Adult Domiciliary Care,Third Party Payments,REVENUE
Wiltshire,http://opendatacommunities.org/id/unitary-authority/wiltshire,17/12/2019,1902469061,1266.86,Alpha Support Limited ,148697,WV15,Community Services,South Care Packages,Adult Domiciliary Care,Third Party Payments,REVENUE
Wiltshire,http://opendatacommunities.org/id/unitary-authority/wiltshire,17/12/2019,1902469076,1134,Alpha Support Limited ,148697,WV15,Community Services,MH AOWA South Locali,Adult Domiciliary Care,Third Party Payments,REVENUE
Wiltshire,http://opendatacommunities.org/id/unitary-authority/wiltshire,06/12/2019,1902461377,532,Alpha Taxis ,100124,BA14,Neighbourhood & Planning,SEN Secondary Tspt,Transport Contracts,Third Party Payments,REVENUE
Wiltshire,http://opendatacommunities.org/id/unitary-authority/wiltshire,06/12/2019,1902461377,912,Alpha Taxis ,100124,BA14,Neighbourhood & Planning,SEN Primary Transprt,Transport Contracts,Third Party Payments,REVENUE
Wiltshire,http://opendatacommunities.org/id/unitary-authority/wiltshire,06/12/2019,1902461378,1688.6,Alpha Taxis ,100124,BA14,Neighbourhood & Planning,SEN Primary Transprt,Transport Contracts,Third Party Payments,REVENUE
Wiltshire,http://opendatacommunities.org/id/unitary-authority/wiltshire,06/12/2019,1902461379,1750,Alpha Taxis ,100124,BA14,Neighbourhood & Planning,SEN Primary Transprt,Transport Contracts,Third Party Payments,REVENUE
Wiltshire,http://opendatacommunities.org/id/unitary-authority/wiltshire,06/12/2019,1902461380,684,Alpha Taxis ,100124,BA14,Neighbourhood & Planning,SEN Secondary Tspt,Transport Contracts,Third Party Payments,REVENUE
Wiltshire,http://opendatacommunities.org/id/unitary-authority/wiltshire,06/12/2019,1902461381,1200,Alpha Taxis ,100124,BA14,Neighbourhood & Planning,SEN Primary Transprt,Transport Contracts,Third Party Payments,REVENUE
Wiltshire,http://opendatacommunities.org/id/unitary-authority/wiltshire,06/12/2019,1902461382,385,Alpha Taxis ,100124,BA14,Community Services,West Care Packages,Transport Contracts,Third Party Payments,REVENUE
Wiltshire,http://opendatacommunities.org/id/unitary-authority/wiltshire,06/12/2019,1902461383,2160,Alpha Taxis ,100124,BA14,Neighbourhood & Planning,SEN Primary Transprt,Transport Contracts,Third Party Payments,REVENUE
Wiltshire,http://opendatacommunities.org/id/unitary-authority/wiltshire,10/12/2019,1902464309,1696.6,Alpha Taxis ,100124,BA14,Neighbourhood & Planning,SEN Primary Transprt,Transport Contracts,Third Party Payments,REVENUE
Wiltshire,http://opendatacommunities.org/id/unitary-authority/wiltshire,10/12/2019,1902464311,293.44,Alpha Taxis ,100124,BA14,Children & Education,CIC Team South,Transport Contracts,Third Party Payments,REVENUE
Wiltshire,http://opendatacommunities.org/id/unitary-authority/wiltshire,10/12/2019,1902464311,818.56,Alpha Taxis ,100124,BA14,Neighbourhood & Planning,Mainstream Secondary,Transport Contracts,Third Party Payments,REVENUE
Wiltshire,http://opendatacommunities.org/id/unitary-authority/wiltshire,10/12/2019,1902464312,1024,Alpha Taxis ,100124,BA14,Community Services,CTPLD Placements,Transport Contracts,Third Party Payments,REVENUE
Wiltshire,http://opendatacommunities.org/id/unitary-authority/wiltshire,10/12/2019,1902464313,868,Alpha Taxis ,100124,BA14,Community Services,CTPLD Placements,Transport Contracts,Third Party Payments,REVENUE
Wiltshire,http://opendatacommunities.org/id/unitary-authority/wiltshire,10/12/2019,1902464314,326,Alpha Taxis ,100124,BA14,Community Services,CTPLD Placements,Transport Contracts,Third Party Payments,REVENUE
Wiltshire,http://opendatacommunities.org/id/unitary-authority/wiltshire,10/12/2019,1902464315,480,Alpha Taxis ,100124,BA14,Neighbourhood & Planning,Mainstream Primary,Transport Contracts,Third Party Payments,REVENUE
Wiltshire,http://opendatacommunities.org/id/unitary-authority/wiltshire,10/12/2019,1902464316,910,Alpha Taxis ,100124,BA14,Neighbourhood & Planning,SEN Primary Transprt,Transport Contracts,Third Party Payments,REVENUE
Wiltshire,http://opendatacommunities.org/id/unitary-authority/wiltshire,10/12/2019,1902464317,508,Alpha Taxis ,100124,BA14,Neighbourhood & Planning,SEN 16+ Transport,Transport Contracts,Third Party Payments,REVENUE
Wiltshire,http://opendatacommunities.org/id/unitary-authority/wiltshire,10/12/2019,1902464318,2000,Alpha Taxis ,100124,BA14,Neighbourhood & Planning,SEN 16+ Transport,Transport Contracts,Third Party Payments,REVENUE
Wiltshire,http://opendatacommunities.org/id/unitary-authority/wiltshire,10/12/2019,1902464319,1785,Alpha Taxis ,100124,BA14,Neighbourhood & Planning,SEN Secondary Tspt,Transport Contracts,Third Party Payments,REVENUE
Wiltshire,http://opendatacommunities.org/id/unitary-authority/wiltshire,10/12/2019,1902464320,850,Alpha Taxis ,100124,BA14,Neighbourhood & Planning,SEN Secondary Tspt,Transport Contracts,Third Party Payments,REVENUE
Wiltshire,http://opendatacommunities.org/id/unitary-authority/wiltshire,10/12/2019,1902464321,400,Alpha Taxis ,100124,BA14,Neighbourhood & Planning,SEN Secondary Tspt,Transport Contracts,Third Party Payments,REVENUE
Wiltshire,http://opendatacommunities.org/id/unitary-authority/wiltshire,17/12/2019,1902468962,1105,Alpha Taxis ,100124,BA14,Neighbourhood & Planning,SEN Secondary Tspt,Transport Contracts,Third Party Payments,REVENUE
Wiltshire,http://opendatacommunities.org/id/unitary-authority/wiltshire,17/12/2019,1902468964,432.64,Alpha Taxis ,100124,BA14,Neighbourhood & Planning,Mainstream 16+ FE,Transport Contracts,Third Party Payments,REVENUE
Wiltshire,http://opendatacommunities.org/id/unitary-authority/wiltshire,17/12/2019,1902468964,648.96,Alpha Taxis ,100124,BA14,Neighbourhood & Planning,SEN 16+ Transport,Transport Contracts,Third Party Payments,REVENUE
Wiltshire,http://opendatacommunities.org/id/unitary-authority/wiltshire,17/12/2019,1902469002,548.6,Alpha Taxis ,100124,BA14,Community Services,CTPLD Placements,Transport Contracts,Third Party Payments,REVENUE
Wiltshire,http://opendatacommunities.org/id/unitary-authority/wiltshire,17/12/2019,1902469002,2550,Alpha Taxis ,100124,BA14,Children & Education,BehaviourSuppService,Transport Contracts,Third Party Payments,REVENUE
Wiltshire,http://opendatacommunities.org/id/unitary-authority/wiltshire,31/12/2019,5107399895,1150,Alterego Creative Solutions Ltd ,144171,NN2 ,Resources,HR Central Training,Staff Training - General,Employee Related,REVENUE
Wiltshire,http://opendatacommunities.org/id/unitary-authority/wiltshire,19/12/2019,1902460607,21426.48,Alun Griffiths Contractors Ltd ,110123,NP7 ,Wiltshire Council,Wiltshire Council,Materials,Supplies and Services,CAPITAL
Wiltshire,http://opendatacommunities.org/id/unitary-authority/wiltshire,10/12/2019,5107397805,10042.25,Alzheimers Support ,110127,BA14,Community Services,ASC Community C&G,Grants Expenditure,Supplies and Services,REVENUE
Wiltshire,http://opendatacommunities.org/id/unitary-authority/wiltshire,10/12/2019,5107397806,22318.33,Alzheimers Support ,110127,BA14,Community Services,ASC Community C&G,Grants Expenditure,Supplies and Services,REVENUE
Wiltshire,http://opendatacommunities.org/id/unitary-authority/wiltshire,23/12/2019,1902477945,500,Alzheimers Support ,113451,BA14,Community Services,Area Board Chippen,Area Board Grants,Supplies and Services,REVENUE
Wiltshire,http://opendatacommunities.org/id/unitary-authority/wiltshire,17/12/2019,1902468815,600,Amberleigh Care Ltd ,147648,TF2 ,Children & Education,Pupil Premium LAC,Educational Fees,Supplies and Services,REVENUE
Wiltshire,http://opendatacommunities.org/id/unitary-authority/wiltshire,18/12/2019,5107399088,13347.67,Amberleigh Care Ltd ,147648,TF2 ,Children & Education,Ext Placement & IFA,Childrens Agency Placement,Third Party Payments,REVENUE
Wiltshire,http://opendatacommunities.org/id/unitary-authority/wiltshire,18/12/2019,5107399089,3348,Amberleigh Care Ltd ,147648,TF2 ,Children & Education,IndepSpecialSchFees,Childrens Agency Placement,Third Party Payments,REVENUE
Wiltshire,http://opendatacommunities.org/id/unitary-authority/wiltshire,18/12/2019,5107399071,3543.3,Amicus Foster Care Limited ,126050,BS2 ,Children & Education,Ext Placement & IFA,Childrens Agency Placement,Third Party Payments,REVENUE
Wiltshire,http://opendatacommunities.org/id/unitary-authority/wiltshire,18/12/2019,5107399074,3543.3,Amicus Foster Care Limited ,126050,BS2 ,Children & Education,Ext Placement & IFA,Childrens Agency Placement,Third Party Payments,REVENUE
Wiltshire,http://opendatacommunities.org/id/unitary-authority/wiltshire,18/12/2019,5107399077,3624.21,Amicus Foster Care Limited ,126050,BS2 ,Children & Education,Ext Placement & IFA,Childrens Agency Placement,Third Party Payments,REVENUE
Wiltshire,http://opendatacommunities.org/id/unitary-authority/wiltshire,18/12/2019,5107399078,4581.49,Amicus Foster Care Limited ,126050,BS2 ,Children & Education,Ext Placement & IFA,Childrens Agency Placement,Third Party Payments,REVENUE
Wiltshire,http://opendatacommunities.org/id/unitary-authority/wiltshire,18/12/2019,5107399079,3841.21,Amicus Foster Care Limited ,126050,BS2 ,Children & Education,Ext Placement & IFA,Childrens Agency Placement,Third Party Payments,REVENUE
Wiltshire,http://opendatacommunities.org/id/unitary-authority/wiltshire,18/12/2019,5107399092,758.64,Amicus Foster Care Limited ,126050,BS2 ,Children & Education,0-25 extnl disabty p,Childrens Agency Placement,Third Party Payments,REVENUE
Wiltshire,http://opendatacommunities.org/id/unitary-authority/wiltshire,18/12/2019,5107399094,3543.3,Amicus Foster Care Limited ,126050,BS2 ,Children & Education,Ext Placement & IFA,Childrens Agency Placement,Third Party Payments,REVENUE
Wiltshire,http://opendatacommunities.org/id/unitary-authority/wiltshire,19/12/2019,5107399277,539.71,Amicus Foster Care Limited ,126050,BS2 ,Children & Education,CIC Team South,Childrens Agency Placement,Third Party Payments,REVENUE
Wiltshire,http://opendatacommunities.org/id/unitary-authority/wiltshire,19/12/2019,5107399278,539.71,Amicus Foster Care Limited ,126050,BS2 ,Children & Education,CIC Team South,Childrens Agency Placement,Third Party Payments,REVENUE
Wiltshire,http://opendatacommunities.org/id/unitary-authority/wiltshire,19/12/2019,1902474825,504.27,Amicus Homecare Limited ,144149,BA2 ,Community Services,West Care Packages,Adult Domiciliary Care Contribution,Income,REVENUE
Wiltshire,http://opendatacommunities.org/id/unitary-authority/wiltshire,19/12/2019,1902474856,4219.65,Amicus Homecare Limited ,144149,BA2 ,Wiltshire Council,Wiltshire Council,Payments in Advance,Balance Sheet Accounts,REVENUE
Wiltshire,http://opendatacommunities.org/id/unitary-authority/wiltshire,02/12/2019,1902454876,946.65,AMP Clean Energy ,144036,EX20,Neighbourhood & Planning,Biomass Prog Schools,Other Fuels,Premises Related,REVENUE
Wiltshire,http://opendatacommunities.org/id/unitary-authority/wiltshire,02/12/2019,1902454877,754.51,AMP Clean Energy ,144036,EX20,Neighbourhood & Planning,Biomass Prog Schools,Other Fuels,Premises Related,REVENUE
Wiltshire,http://opendatacommunities.org/id/unitary-authority/wiltshire,02/12/2019,1902457630,937.28,AMP Clean Energy ,144036,EX20,Neighbourhood & Planning,Biomass Prog Schools,Other Fuels,Premises Related,REVENUE
Wiltshire,http://opendatacommunities.org/id/unitary-authority/wiltshire,05/12/2019,1902457631,1644.93,AMP Clean Energy ,144036,EX20,Neighbourhood & Planning,Biomass Prog Schools,Other Fuels,Premises Related,REVENUE
Wiltshire,http://opendatacommunities.org/id/unitary-authority/wiltshire,05/12/2019,1902457632,993.52,AMP Clean Energy ,144036,EX20,Neighbourhood & Planning,Biomass Prog Schools,Other Fuels,Premises Related,REVENUE
Wiltshire,http://opendatacommunities.org/id/unitary-authority/wiltshire,09/12/2019,1902457633,2343.2,AMP Clean Energy ,144036,EX20,Neighbourhood & Planning,Biomass Prog Schools,Other Fuels,Premises Related,REVENUE
Wiltshire,http://opendatacommunities.org/id/unitary-authority/wiltshire,09/12/2019,1902457634,970.08,AMP Clean Energy ,144036,EX20,Neighbourhood & Planning,Biomass Prog Schools,Other Fuels,Premises Related,REVENUE
Wiltshire,http://opendatacommunities.org/id/unitary-authority/wiltshire,11/12/2019,1902460898,941.97,AMP Clean Energy ,144036,EX20,Neighbourhood & Planning,Biomass Prog Schools,Other Fuels,Premises Related,REVENUE
Wiltshire,http://opendatacommunities.org/id/unitary-authority/wiltshire,13/12/2019,1902460899,2783.72,AMP Clean Energy ,144036,EX20,Neighbourhood & Planning,Biomass Prog Schools,Other Fuels,Premises Related,REVENUE
Wiltshire,http://opendatacommunities.org/id/unitary-authority/wiltshire,13/12/2019,1902460900,1054.44,AMP Clean Energy ,144036,EX20,Neighbourhood & Planning,Biomass Prog Schools,Other Fuels,Premises Related,REVENUE
Wiltshire,http://opendatacommunities.org/id/unitary-authority/wiltshire,13/12/2019,1902460901,1448.1,AMP Clean Energy ,144036,EX20,Neighbourhood & Planning,Biomass Prog Schools,Other Fuels,Premises Related,REVENUE
Wiltshire,http://opendatacommunities.org/id/unitary-authority/wiltshire,13/12/2019,1902460902,1405.92,AMP Clean Energy ,144036,EX20,Neighbourhood & Planning,Biomass Prog Schools,Other Fuels,Premises Related,REVENUE
Wiltshire,http://opendatacommunities.org/id/unitary-authority/wiltshire,13/12/2019,1902460903,2038.58,AMP Clean Energy ,144036,EX20,Neighbourhood & Planning,Biomass Prog Schools,Other Fuels,Premises Related,REVENUE
Wiltshire,http://opendatacommunities.org/id/unitary-authority/wiltshire,18/12/2019,1902465936,637.35,AMP Clean Energy ,144036,EX20,Neighbourhood & Planning,Biomass Prog Schools,Other Fuels,Premises Related,REVENUE
Wiltshire,http://opendatacommunities.org/id/unitary-authority/wiltshire,18/12/2019,1902465937,1176.29,AMP Clean Energy ,144036,EX20,Neighbourhood & Planning,Biomass Prog Schools,Other Fuels,Premises Related,REVENUE
Wiltshire,http://opendatacommunities.org/id/unitary-authority/wiltshire,18/12/2019,1902465938,937.28,AMP Clean Energy ,144036,EX20,Neighbourhood & Planning,Biomass Prog Schools,Other Fuels,Premises Related,REVENUE
Wiltshire,http://opendatacommunities.org/id/unitary-authority/wiltshire,23/12/2019,1902474236,1719.91,AMP Clean Energy ,144036,EX20,Neighbourhood & Planning,Biomass Prog Schools,Other Fuels,Premises Related,REVENUE
Wiltshire,http://opendatacommunities.org/id/unitary-authority/wiltshire,23/12/2019,1902474237,1405.92,AMP Clean Energy ,144036,EX20,Neighbourhood & Planning,Biomass Prog Schools,Other Fuels,Premises Related,REVENUE
Wiltshire,http://opendatacommunities.org/id/unitary-authority/wiltshire,23/12/2019,1902474238,2549.4,AMP Clean Energy ,144036,EX20,Neighbourhood & Planning,Biomass Prog Schools,Other Fuels,Premises Related,REVENUE
Wiltshire,http://opendatacommunities.org/id/unitary-authority/wiltshire,23/12/2019,1902474239,1166.91,AMP Clean Energy ,144036,EX20,Neighbourhood & Planning,Biomass Prog Schools,Other Fuels,Premises Related,REVENUE
Wiltshire,http://opendatacommunities.org/id/unitary-authority/wiltshire,23/12/2019,1902474240,2132.31,AMP Clean Energy ,144036,EX20,Neighbourhood & Planning,Biomass Prog Schools,Other Fuels,Premises Related,REVENUE
Wiltshire,http://opendatacommunities.org/id/unitary-authority/wiltshire,23/12/2019,1902474241,1415.29,AMP Clean Energy ,144036,EX20,Neighbourhood & Planning,Biomass Prog Schools,Other Fuels,Premises Related,REVENUE
Wiltshire,http://opendatacommunities.org/id/unitary-authority/wiltshire,23/12/2019,1902474242,1879.25,AMP Clean Energy ,144036,EX20,Neighbourhood & Planning,Biomass Prog Schools,Other Fuels,Premises Related,REVENUE
Wiltshire,http://opendatacommunities.org/id/unitary-authority/wiltshire,23/12/2019,1902474243,913.85,AMP Clean Energy ,144036,EX20,Neighbourhood & Planning,Biomass Prog Schools,Other Fuels,Premises Related,REVENUE
Wiltshire,http://opendatacommunities.org/id/unitary-authority/wiltshire,11/12/2019,1902465220,2744.64,AMS Care Wiltshire ,130764,SN4 ,Community Services,Placement Block Cont,Adult Care Nursing Placements- Block Contract,Third Party Payments,REVENUE
Wiltshire,http://opendatacommunities.org/id/unitary-authority/wiltshire,11/12/2019,1902465221,2744.64,AMS Care Wiltshire ,130764,SN4 ,Community Services,Placement Block Cont,Adult Care Nursing Placements- Block Contract,Third Party Payments,REVENUE
Wiltshire,http://opendatacommunities.org/id/unitary-authority/wiltshire,11/12/2019,1902465222,2744.64,AMS Care Wiltshire ,130764,SN4 ,Community Services,Placement Block Cont,Adult Care Nursing Placements- Block Contract,Third Party Payments,REVENUE
Wiltshire,http://opendatacommunities.org/id/unitary-authority/wiltshire,11/12/2019,1902465223,2744.64,AMS Care Wiltshire ,130764,SN4 ,Community Services,Placement Block Cont,Adult Care Nursing Placements- Block Contract,Third Party Payments,REVENUE
Wiltshire,http://opendatacommunities.org/id/unitary-authority/wiltshire,11/12/2019,1902465224,2744.64,AMS Care Wiltshire ,130764,SN4 ,Community Services,Placement Block Cont,Adult Care Nursing Placements- Block Contract,Third Party Payments,REVENUE
Wiltshire,http://opendatacommunities.org/id/unitary-authority/wiltshire,11/12/2019,1902465225,2744.64,AMS Care Wiltshire ,130764,SN4 ,Community Services,Placement Block Cont,Adult Care Nursing Placements- Block Contract,Third Party Payments,REVENUE
Wiltshire,http://opendatacommunities.org/id/unitary-authority/wiltshire,11/12/2019,1902465226,2744.64,AMS Care Wiltshire ,130764,SN4 ,Community Services,Placement Block Cont,Adult Care Nursing Placements- Block Contract,Third Party Payments,REVENUE
Wiltshire,http://opendatacommunities.org/id/unitary-authority/wiltshire,11/12/2019,1902465227,2744.64,AMS Care Wiltshire ,130764,SN4 ,Community Services,Placement Block Cont,Adult Care Nursing Placements- Block Contract,Third Party Payments,REVENUE
Wiltshire,http://opendatacommunities.org/id/unitary-authority/wiltshire,11/12/2019,1902465228,2744.64,AMS Care Wiltshire ,130764,SN4 ,Community Services,Placement Block Cont,Adult Care Nursing Placements- Block Contract,Third Party Payments,REVENUE
Wiltshire,http://opendatacommunities.org/id/unitary-authority/wiltshire,11/12/2019,1902465229,2744.64,AMS Care Wiltshire ,130764,SN4 ,Community Services,Placement Block Cont,Adult Care Nursing Placements- Block Contract,Third Party Payments,REVENUE
Wiltshire,http://opendatacommunities.org/id/unitary-authority/wiltshire,11/12/2019,1902465230,2744.64,AMS Care Wiltshire ,130764,SN4 ,Community Services,Placement Block Cont,Adult Care Nursing Placements- Block Contract,Third Party Payments,REVENUE
Wiltshire,http://opendatacommunities.org/id/unitary-authority/wiltshire,11/12/2019,1902465231,2744.64,AMS Care Wiltshire ,130764,SN4 ,Community Services,Placement Block Cont,Adult Care Nursing Placements- Block Contract,Third Party Payments,REVENUE
Wiltshire,http://opendatacommunities.org/id/unitary-authority/wiltshire,11/12/2019,1902465232,2744.64,AMS Care Wiltshire ,130764,SN4 ,Community Services,Placement Block Cont,Adult Care Nursing Placements- Block Contract,Third Party Payments,REVENUE
Wiltshire,http://opendatacommunities.org/id/unitary-authority/wiltshire,11/12/2019,1902465233,2744.64,AMS Care Wiltshire ,130764,SN4 ,Community Services,Placement Block Cont,Adult Care Nursing Placements- Block Contract,Third Party Payments,REVENUE
Wiltshire,http://opendatacommunities.org/id/unitary-authority/wiltshire,11/12/2019,1902465234,2744.64,AMS Care Wiltshire ,130764,SN4 ,Community Services,Placement Block Cont,Adult Care Nursing Placements- Block Contract,Third Party Payments,REVENUE
Wiltshire,http://opendatacommunities.org/id/unitary-authority/wiltshire,11/12/2019,1902465235,2744.64,AMS Care Wiltshire ,130764,SN4 ,Community Services,Placement Block Cont,Adult Care Nursing Placements- Block Contract,Third Party Payments,REVENUE
Wiltshire,http://opendatacommunities.org/id/unitary-authority/wiltshire,11/12/2019,1902465236,2744.64,AMS Care Wiltshire ,130764,SN4 ,Community Services,Placement Block Cont,Adult Care Nursing Placements- Block Contract,Third Party Payments,REVENUE
Wiltshire,http://opendatacommunities.org/id/unitary-authority/wiltshire,11/12/2019,1902465237,2744.64,AMS Care Wiltshire ,130764,SN4 ,Community Services,Placement Block Cont,Adult Care Nursing Placements- Block Contract,Third Party Payments,REVENUE
Wiltshire,http://opendatacommunities.org/id/unitary-authority/wiltshire,11/12/2019,1902465238,2744.64,AMS Care Wiltshire ,130764,SN4 ,Community Services,Placement Block Cont,Adult Care Nursing Placements- Block Contract,Third Party Payments,REVENUE
Wiltshire,http://opendatacommunities.org/id/unitary-authority/wiltshire,11/12/2019,1902465239,2744.64,AMS Care Wiltshire ,130764,SN4 ,Community Services,Placement Block Cont,Adult Care Nursing Placements- Block Contract,Third Party Payments,REVENUE
Wiltshire,http://opendatacommunities.org/id/unitary-authority/wiltshire,11/12/2019,1902465240,2744.64,AMS Care Wiltshire ,130764,SN4 ,Community Services,Placement Block Cont,Adult Care Nursing Placements- Block Contract,Third Party Payments,REVENUE
Wiltshire,http://opendatacommunities.org/id/unitary-authority/wiltshire,11/12/2019,1902465241,2744.64,AMS Care Wiltshire ,130764,SN4 ,Community Services,Placement Block Cont,Adult Care Nursing Placements- Block Contract,Third Party Payments,REVENUE
Wiltshire,http://opendatacommunities.org/id/unitary-authority/wiltshire,11/12/2019,1902465242,2744.64,AMS Care Wiltshire ,130764,SN4 ,Community Services,Placement Block Cont,Adult Care Nursing Placements- Block Contract,Third Party Payments,REVENUE
Wiltshire,http://opendatacommunities.org/id/unitary-authority/wiltshire,11/12/2019,1902465243,2744.64,AMS Care Wiltshire ,130764,SN4 ,Community Services,Placement Block Cont,Adult Care Nursing Placements- Block Contract,Third Party Payments,REVENUE
Wiltshire,http://opendatacommunities.org/id/unitary-authority/wiltshire,11/12/2019,1902465244,2744.64,AMS Care Wiltshire ,130764,SN4 ,Community Services,South Care Packages,Adult Care Nursing Placements - Spot,Third Party Payments,REVENUE
Wiltshire,http://opendatacommunities.org/id/unitary-authority/wiltshire,11/12/2019,1902465245,686.16,AMS Care Wiltshire ,130764,SN4 ,Community Services,North Care Packages,Adult Care Nursing Placements - Spot,Third Party Payments,REVENUE
Wiltshire,http://opendatacommunities.org/id/unitary-authority/wiltshire,11/12/2019,1902465246,2603,AMS Care Wiltshire ,130764,SN4 ,Community Services,Adult Care Gross Loa,Adult Care Nursing Placements - Spot,Third Party Payments,REVENUE
Wiltshire,http://opendatacommunities.org/id/unitary-authority/wiltshire,11/12/2019,1902465247,2744.64,AMS Care Wiltshire ,130764,SN4 ,Community Services,Adult Care Gross Loa,Adult Care Nursing Placements - Spot,Third Party Payments,REVENUE
Wiltshire,http://opendatacommunities.org/id/unitary-authority/wiltshire,11/12/2019,1902465248,2525.28,AMS Care Wiltshire ,130764,SN4 ,Community Services,Placement Block Cont,Adult Care Nursing Placements- Block Contract,Third Party Payments,REVENUE
Wiltshire,http://opendatacommunities.org/id/unitary-authority/wiltshire,11/12/2019,1902465249,2525.28,AMS Care Wiltshire ,130764,SN4 ,Community Services,Placement Block Cont,Adult Care Nursing Placements- Block Contract,Third Party Payments,REVENUE
Wiltshire,http://opendatacommunities.org/id/unitary-authority/wiltshire,11/12/2019,1902465250,2525.28,AMS Care Wiltshire ,130764,SN4 ,Community Services,Placement Block Cont,Adult Care Nursing Placements- Block Contract,Third Party Payments,REVENUE
Wiltshire,http://opendatacommunities.org/id/unitary-authority/wiltshire,11/12/2019,1902465251,2525.28,AMS Care Wiltshire ,130764,SN4 ,Community Services,Placement Block Cont,Adult Care Nursing Placements- Block Contract,Third Party Payments,REVENUE
Wiltshire,http://opendatacommunities.org/id/unitary-authority/wiltshire,11/12/2019,1902465252,2525.28,AMS Care Wiltshire ,130764,SN4 ,Community Services,Placement Block Cont,Adult Care Nursing Placements- Block Contract,Third Party Payments,REVENUE
Wiltshire,http://opendatacommunities.org/id/unitary-authority/wiltshire,11/12/2019,1902465253,2525.28,AMS Care Wiltshire ,130764,SN4 ,Community Services,Placement Block Cont,Adult Care Nursing Placements- Block Contract,Third Party Payments,REVENUE
Wiltshire,http://opendatacommunities.org/id/unitary-authority/wiltshire,11/12/2019,1902465254,2525.28,AMS Care Wiltshire ,130764,SN4 ,Community Services,North Care Packages,Adult Care Nursing Placements - Spot,Third Party Payments,REVENUE
Wiltshire,http://opendatacommunities.org/id/unitary-authority/wiltshire,11/12/2019,1902465255,3312.96,AMS Care Wiltshire ,130764,SN4 ,Community Services,North Care Packages,Adult Residential Placements - Spot Purchase,Third Party Payments,REVENUE
Wiltshire,http://opendatacommunities.org/id/unitary-authority/wiltshire,03/12/2019,5107397748,18019.4,AMS Care Wiltshire ,130764,SN4 ,Community Services,BCF-Intermediate Cr,Adult Care Nursing Placements- Block Contract,Third Party Payments,REVENUE
Wiltshire,http://opendatacommunities.org/id/unitary-authority/wiltshire,03/12/2019,5107397749,18019.4,AMS Care Wiltshire ,130764,SN4 ,Community Services,BCF-Intermediate Cr,Adult Care Nursing Placements- Block Contract,Third Party Payments,REVENUE
Wiltshire,http://opendatacommunities.org/id/unitary-authority/wiltshire,10/12/2019,1902463827,6000,Andover Nursing Home ,110142,SP10,Community Services,MH AOWA South Locali,Adult Care Nursing Placements - Spot,Third Party Payments,REVENUE
Wiltshire,http://opendatacommunities.org/id/unitary-authority/wiltshire,09/12/2019,1902459892,1373,Andrew Townsend Architects ,133345,SN7 ,Wiltshire Council,Wiltshire Council,Materials,Supplies and Services,CAPITAL
Wiltshire,http://opendatacommunities.org/id/unitary-authority/wiltshire,06/12/2019,1902461407,533.34,Andy Taxis Limited ,100874,SP4 ,Neighbourhood & Planning,Mainstream Secondary,Transport Contracts,Third Party Payments,REVENUE
Wiltshire,http://opendatacommunities.org/id/unitary-authority/wiltshire,06/12/2019,1902461407,1066.66,Andy Taxis Limited ,100874,SP4 ,Neighbourhood & Planning,Mainstream 16+ Sec,Transport Contracts,Third Party Payments,REVENUE
Wiltshire,http://opendatacommunities.org/id/unitary-authority/wiltshire,05/12/2019,1902461037,1111.11,Andybus  and  Coach Ltd ,100132,SN16,Neighbourhood & Planning,Mainstream Primary,Transport Contracts,Third Party Payments,REVENUE
Wiltshire,http://opendatacommunities.org/id/unitary-authority/wiltshire,05/12/2019,1902461037,18171.56,Andybus  and  Coach Ltd ,100132,SN16,Neighbourhood & Planning,Mainstream Secondary,Transport Contracts,Third Party Payments,REVENUE
Wiltshire,http://opendatacommunities.org/id/unitary-authority/wiltshire,05/12/2019,1902461044,3085.47,Andybus  and  Coach Ltd ,100132,SN16,Neighbourhood & Planning,Mainstream Secondary,Transport Contracts,Third Party Payments,REVENUE
Wiltshire,http://opendatacommunities.org/id/unitary-authority/wiltshire,09/12/2019,5107398121,1190,APA Consultants Ltd ,113361,SN10,Neighbourhood & Planning,Dev Management,Consultants Fees,Supplies and Services,REVENUE
Wiltshire,http://opendatacommunities.org/id/unitary-authority/wiltshire,20/12/2019,5107399458,22500,APAM Ltd re Nexus Properties ,147980,M17 ,Resources,FM Leisure Centres,Premises Rental,Premises Related,REVENUE
Wiltshire,http://opendatacommunities.org/id/unitary-authority/wiltshire,20/12/2019,5107399459,7875,APAM Ltd re Nexus Properties ,147980,M17 ,Resources,FM Leisure Centres,Premises Rental,Premises Related,REVENUE
Wiltshire,http://opendatacommunities.org/id/unitary-authority/wiltshire,19/12/2019,1902474843,10587.68,Apex Prime Care Ltd ,148170,SO40,Wiltshire Council,Wiltshire Council,Payments in Advance,Balance Sheet Accounts,REVENUE
Wiltshire,http://opendatacommunities.org/id/unitary-authority/wiltshire,13/12/2019,1902467549,1090.74,Appletree Nursery 1026 ,110163,SN11,Children & Education,Early Years PPG,Childcare Free Entitlement Early Years,Supplies and Services,REVENUE
Wiltshire,http://opendatacommunities.org/id/unitary-authority/wiltshire,13/12/2019,1902467550,3072.3,Appletree Nursery 1026 ,110163,SN11,Children & Education,Free Entitlement 2 Y,Childcare Free Entitlement Early Years,Supplies and Services,REVENUE
Wiltshire,http://opendatacommunities.org/id/unitary-authority/wiltshire,13/12/2019,1902467551,11258.4,Appletree Nursery 1026 ,110163,SN11,Children & Education,Free Enttlmnt 3 & 4y,Childcare Free Entitlement Early Years,Supplies and Services,REVENUE
Wiltshire,http://opendatacommunities.org/id/unitary-authority/wiltshire,23/12/2019,5107397949,2233.23,APS Group ,148025,SK3 ,Resources,Customer Services,Printing,Supplies and Services,REVENUE
Wiltshire,http://opendatacommunities.org/id/unitary-authority/wiltshire,02/12/2019,5107397697,518,Apse ,113577,M32 ,Resources,HR Central Training,Staff Training - General,Employee Related,REVENUE
Wiltshire,http://opendatacommunities.org/id/unitary-authority/wiltshire,20/12/2019,5107399498,8850,Aquatech Drainage Mr Chris Uden,135011,DT1 ,Wiltshire Council,Wiltshire Council,Property Maintenance,Premises Related,CAPITAL
Wiltshire,http://opendatacommunities.org/id/unitary-authority/wiltshire,10/12/2019,1902463866,3472.08,Arbory Residential Home ,113587,SP11,Community Services,MH AOWA South Locali,Adult Residential Placements - Spot Purchase,Third Party Payments,REVENUE
Wiltshire,http://opendatacommunities.org/id/unitary-authority/wiltshire,10/12/2019,1902463867,3600,Arbory Residential Home ,113587,SP11,Community Services,MH OP South Locality,Adult Residential Placements - Spot Purchase,Third Party Payments,REVENUE
Wiltshire,http://opendatacommunities.org/id/unitary-authority/wiltshire,10/12/2019,1902464470,1900,Arch Care Services Ltd ,110169,BS21,Community Services,MH AOWA West Localit,Supported Living,Third Party Payments,REVENUE
Wiltshire,http://opendatacommunities.org/id/unitary-authority/wiltshire,03/12/2019,5107397808,288.7,Argos Business Solutions ,113600,MK9 ,Community Services,HRA Housing Income T,Equipment Purchase,Supplies and Services,REVENUE
Wiltshire,http://opendatacommunities.org/id/unitary-authority/wiltshire,03/12/2019,5107397811,1250.59,Argos Business Solutions ,113600,MK9 ,Community Services,Devizes/Trowbridge,Furniture / Office Equipment Purchase,Supplies and Services,REVENUE
Wiltshire,http://opendatacommunities.org/id/unitary-authority/wiltshire,11/12/2019,1902464954,2272,Arliemoor Care Homes ,110174,EX22,Community Services,MH AOWA West Localit,Adult Residential Placements - Spot Purchase,Third Party Payments,REVENUE
Wiltshire,http://opendatacommunities.org/id/unitary-authority/wiltshire,11/12/2019,1902464955,2859.36,Arliemoor Care Homes ,110174,EX22,Community Services,MH AOWA South Locali,Adult Residential Placements - Spot Purchase,Third Party Payments,REVENUE
Wiltshire,http://opendatacommunities.org/id/unitary-authority/wiltshire,11/12/2019,1902464956,4977.6,Arliemoor Care Homes ,110174,EX22,Community Services,MH AOWA West Localit,Adult Residential Placements - Spot Purchase,Third Party Payments,REVENUE
Wiltshire,http://opendatacommunities.org/id/unitary-authority/wiltshire,12/12/2019,1902465964,2175,Arliemoor Care Homes ,110174,EX22,Community Services,MH AOWA West Localit,Adult Domiciliary Care,Third Party Payments,REVENUE
Wiltshire,http://opendatacommunities.org/id/unitary-authority/wiltshire,23/12/2019,1902477077,2308.51,Arliemoor Care Homes ,110174,EX22,Community Services,MH AOWA South Locali,Adult Residential Placements - Spot Purchase,Third Party Payments,REVENUE
Wiltshire,http://opendatacommunities.org/id/unitary-authority/wiltshire,12/12/2019,1902466964,345.73,Arrow Care Services Ltd ,146643,SN12,Community Services,West Care Packages,Adult Domiciliary Care,Third Party Payments,REVENUE
Wiltshire,http://opendatacommunities.org/id/unitary-authority/wiltshire,12/12/2019,1902466965,261.84,Arrow Care Services Ltd ,146643,SN12,Community Services,MH AOWA West Localit,Adult Domiciliary Care,Third Party Payments,REVENUE
Wiltshire,http://opendatacommunities.org/id/unitary-authority/wiltshire,12/12/2019,1902466966,327.3,Arrow Care Services Ltd ,146643,SN12,Community Services,MH AOWA West Localit,Adult Domiciliary Care,Third Party Payments,REVENUE
Wiltshire,http://opendatacommunities.org/id/unitary-authority/wiltshire,12/12/2019,1902466972,309.12,Arrow Care Services Ltd ,146643,SN12,Community Services,West Care Packages,Adult Domiciliary Care,Third Party Payments,REVENUE
Wiltshire,http://opendatacommunities.org/id/unitary-authority/wiltshire,19/12/2019,1902474360,335.44,Arrow Care Services Ltd ,146643,SN12,Community Services,MH AOWA West Localit,Adult Domiciliary Care,Third Party Payments,REVENUE
Wiltshire,http://opendatacommunities.org/id/unitary-authority/wiltshire,19/12/2019,1902474399,345.73,Arrow Care Services Ltd ,146643,SN12,Community Services,West Care Packages,Adult Domiciliary Care,Third Party Payments,REVENUE
Wiltshire,http://opendatacommunities.org/id/unitary-authority/wiltshire,19/12/2019,1902474400,261.84,Arrow Care Services Ltd ,146643,SN12,Community Services,MH AOWA West Localit,Adult Domiciliary Care,Third Party Payments,REVENUE
Wiltshire,http://opendatacommunities.org/id/unitary-authority/wiltshire,19/12/2019,1902474401,327.3,Arrow Care Services Ltd ,146643,SN12,Community Services,MH AOWA West Localit,Adult Domiciliary Care,Third Party Payments,REVENUE
Wiltshire,http://opendatacommunities.org/id/unitary-authority/wiltshire,19/12/2019,1902474404,309.12,Arrow Care Services Ltd ,146643,SN12,Community Services,West Care Packages,Adult Domiciliary Care,Third Party Payments,REVENUE
Wiltshire,http://opendatacommunities.org/id/unitary-authority/wiltshire,19/12/2019,1902474405,255.78,Arrow Care Services Ltd ,146643,SN12,Community Services,West Care Packages,Adult Domiciliary Care,Third Party Payments,REVENUE
Wiltshire,http://opendatacommunities.org/id/unitary-authority/wiltshire,20/12/2019,1902474832,345.73,Arrow Care Services Ltd ,146643,SN12,Community Services,West Care Packages,Adult Domiciliary Care,Third Party Payments,REVENUE
Wiltshire,http://opendatacommunities.org/id/unitary-authority/wiltshire,20/12/2019,1902474833,261.84,Arrow Care Services Ltd ,146643,SN12,Community Services,MH AOWA West Localit,Adult Domiciliary Care,Third Party Payments,REVENUE
Wiltshire,http://opendatacommunities.org/id/unitary-authority/wiltshire,20/12/2019,1902474834,327.3,Arrow Care Services Ltd ,146643,SN12,Community Services,MH AOWA West Localit,Adult Domiciliary Care,Third Party Payments,REVENUE
Wiltshire,http://opendatacommunities.org/id/unitary-authority/wiltshire,20/12/2019,1902474837,309.12,Arrow Care Services Ltd ,146643,SN12,Community Services,West Care Packages,Adult Domiciliary Care,Third Party Payments,REVENUE
Wiltshire,http://opendatacommunities.org/id/unitary-authority/wiltshire,20/12/2019,1902474838,255.78,Arrow Care Services Ltd ,146643,SN12,Community Services,West Care Packages,Adult Domiciliary Care,Third Party Payments,REVENUE
Wiltshire,http://opendatacommunities.org/id/unitary-authority/wiltshire,12/12/2019,1902466860,2000,Arrow Private Hire ,100574,SN8 ,Neighbourhood & Planning,SEN Primary Transprt,Transport Contracts,Third Party Payments,REVENUE
Wiltshire,http://opendatacommunities.org/id/unitary-authority/wiltshire,23/12/2019,5107399634,2141.37,Artifax Software Ltd ,110180,KT18,Resources,Applications SuppLOB,ICT - Support arrangements,Supplies and Services,REVENUE
Wiltshire,http://opendatacommunities.org/id/unitary-authority/wiltshire,17/12/2019,1902469236,252.06,Asda Pharmacy ,137247,SN12,Neighbourhood & Planning,Smoking-Mgt & Commss,Public Health Commissioning,Supplies and Services,REVENUE
Wiltshire,http://opendatacommunities.org/id/unitary-authority/wiltshire,19/12/2019,1902474441,605.92,Ash Care Services ,140706,SP2 ,Community Services,South Care Packages,Adult Domiciliary Care Contribution,Income,REVENUE
Wiltshire,http://opendatacommunities.org/id/unitary-authority/wiltshire,19/12/2019,1902474442,423.2,Ash Care Services ,140706,SP2 ,Community Services,South Care Packages,Adult Domiciliary Care,Third Party Payments,REVENUE
Wiltshire,http://opendatacommunities.org/id/unitary-authority/wiltshire,19/12/2019,1902474443,476,Ash Care Services ,140706,SP2 ,Community Services,MH OP South Locality,Adult Domiciliary Care,Third Party Payments,REVENUE
Wiltshire,http://opendatacommunities.org/id/unitary-authority/wiltshire,19/12/2019,1902474444,460.36,Ash Care Services ,140706,SP2 ,Community Services,South Care Packages,Adult Domiciliary Care Contribution,Income,REVENUE
Wiltshire,http://opendatacommunities.org/id/unitary-authority/wiltshire,11/12/2019,1902446558,2940.64,Ashbourne Court Care Home ,133906,SP10,Community Services,South Care Packages,Adult Care Nursing Placements - Spot,Third Party Payments,REVENUE
Wiltshire,http://opendatacommunities.org/id/unitary-authority/wiltshire,11/12/2019,1902465264,2940.64,Ashbourne Court Care Home ,133906,SP10,Community Services,South Care Packages,Adult Care Nursing Placements - Spot,Third Party Payments,REVENUE
Wiltshire,http://opendatacommunities.org/id/unitary-authority/wiltshire,11/12/2019,5107387760,2940.64,Ashbourne Court Care Home ,133906,SP10,Community Services,South Care Packages,Adult Care Nursing Placements - Spot,Third Party Payments,REVENUE
Wiltshire,http://opendatacommunities.org/id/unitary-authority/wiltshire,10/12/2019,1902463884,3896.88,Ashness Care ,143773,N15 ,Community Services,MH AOWA N&E Locality,Adult Residential Placements - Spot Purchase,Third Party Payments,REVENUE
Wiltshire,http://opendatacommunities.org/id/unitary-authority/wiltshire,13/12/2019,1902467444,893.76,Ashton Keynes Playgroup 249 ,110188,SN6 ,Children & Education,Free Entitlement 2 Y,Childcare Free Entitlement Early Years,Supplies and Services,REVENUE
Wiltshire,http://opendatacommunities.org/id/unitary-authority/wiltshire,13/12/2019,1902467445,2998.8,Ashton Keynes Playgroup 249 ,110188,SN6 ,Children & Education,Free Enttlmnt 3 & 4y,Childcare Free Entitlement Early Years,Supplies and Services,REVENUE
Wiltshire,http://opendatacommunities.org/id/unitary-authority/wiltshire,10/12/2019,1902463877,1841.76,Ashton Manor Nursing Home ,139060,GU10,Community Services,South Care Packages,Adult Care Nursing Placements - Spot,Third Party Payments,REVENUE
Wiltshire,http://opendatacommunities.org/id/unitary-authority/wiltshire,03/12/2019,5107397724,630,Ashton Mill Services Limited ,144812,SN12,Health & Wellbeing,Environmental Protec,Statutory Notices,Supplies and Services,REVENUE
Wiltshire,http://opendatacommunities.org/id/unitary-authority/wiltshire,02/12/2019,1902443388,4102.61,Askews & Holts Library Services Ltd ,101034,PR1 ,Community Services,Libraries,Books & Publications,Supplies and Services,REVENUE
Wiltshire,http://opendatacommunities.org/id/unitary-authority/wiltshire,16/12/2019,1902451726,7907.61,Askews & Holts Library Services Ltd ,101034,PR1 ,Community Services,Libraries,Books & Publications,Supplies and Services,REVENUE
Wiltshire,http://opendatacommunities.org/id/unitary-authority/wiltshire,23/12/2019,1902463135,5862.11,Askews & Holts Library Services Ltd ,101034,PR1 ,Community Services,Libraries,Books & Publications,Supplies and Services,REVENUE
Wiltshire,http://opendatacommunities.org/id/unitary-authority/wiltshire,05/12/2019,5107397941,1150,Asphalt Recycling UK Ltd ,149290,SN26,Neighbourhood & Planning,Off Street Parking,Property Maintenance,Premises Related,REVENUE
Wiltshire,http://opendatacommunities.org/id/unitary-authority/wiltshire,19/12/2019,5107399327,2970,Asphalt Recycling UK Ltd ,149290,SN26,Neighbourhood & Planning,Off Street Parking,Property Maintenance,Premises Related,REVENUE
Wiltshire,http://opendatacommunities.org/id/unitary-authority/wiltshire,31/12/2019,5107399328,2150,Asphalt Recycling UK Ltd ,149290,SN26,Neighbourhood & Planning,Off Street Parking,Property Maintenance,Premises Related,REVENUE
Wiltshire,http://opendatacommunities.org/id/unitary-authority/wiltshire,02/12/2019,1902459519,1422,Aspire Taxis ,101274,SP2 ,Neighbourhood & Planning,SEN 16+ Transport,Transport Contracts,Third Party Payments,REVENUE
Wiltshire,http://opendatacommunities.org/id/unitary-authority/wiltshire,11/12/2019,1902465749,1140,Aspire Taxis ,101274,SP2 ,Neighbourhood & Planning,SEN Primary Transprt,Transport Contracts,Third Party Payments,REVENUE
Wiltshire,http://opendatacommunities.org/id/unitary-authority/wiltshire,11/12/2019,1902465750,855,Aspire Taxis ,101274,SP2 ,Neighbourhood & Planning,Mainstream Primary,Transport Contracts,Third Party Payments,REVENUE
Wiltshire,http://opendatacommunities.org/id/unitary-authority/wiltshire,11/12/2019,1902465751,1140,Aspire Taxis ,101274,SP2 ,Neighbourhood & Planning,SEN Secondary Tspt,Transport Contracts,Third Party Payments,REVENUE
Wiltshire,http://opendatacommunities.org/id/unitary-authority/wiltshire,11/12/2019,1902465752,1098,Aspire Taxis ,101274,SP2 ,Neighbourhood & Planning,SEN Secondary Tspt,Transport Contracts,Third Party Payments,REVENUE
Wiltshire,http://opendatacommunities.org/id/unitary-authority/wiltshire,11/12/2019,1902465753,800,Aspire Taxis ,101274,SP2 ,Neighbourhood & Planning,Mainstream Secondary,Transport Contracts,Third Party Payments,REVENUE
Wiltshire,http://opendatacommunities.org/id/unitary-authority/wiltshire,11/12/2019,1902465754,472.5,Aspire Taxis ,101274,SP2 ,Community Services,CTPLD Placements,Transport Contracts,Third Party Payments,REVENUE
Wiltshire,http://opendatacommunities.org/id/unitary-authority/wiltshire,11/12/2019,1902465756,386.67,Aspire Taxis ,101274,SP2 ,Neighbourhood & Planning,Mainstream Secondary,Transport Contracts,Third Party Payments,REVENUE
Wiltshire,http://opendatacommunities.org/id/unitary-authority/wiltshire,11/12/2019,1902465756,773.33,Aspire Taxis ,101274,SP2 ,Neighbourhood & Planning,SEN Secondary Tspt,Transport Contracts,Third Party Payments,REVENUE
Wiltshire,http://opendatacommunities.org/id/unitary-authority/wiltshire,11/12/2019,1902465757,2584,Aspire Taxis ,101274,SP2 ,Neighbourhood & Planning,SEN Primary Transprt,Transport Contracts,Third Party Payments,REVENUE
Wiltshire,http://opendatacommunities.org/id/unitary-authority/wiltshire,11/12/2019,1902465758,845.5,Aspire Taxis ,101274,SP2 ,Neighbourhood & Planning,SEN Primary Transprt,Transport Contracts,Third Party Payments,REVENUE
Wiltshire,http://opendatacommunities.org/id/unitary-authority/wiltshire,11/12/2019,1902465758,845.5,Aspire Taxis ,101274,SP2 ,Neighbourhood & Planning,SEN Secondary Tspt,Transport Contracts,Third Party Payments,REVENUE
Wiltshire,http://opendatacommunities.org/id/unitary-authority/wiltshire,11/12/2019,1902465759,680,Aspire Taxis ,101274,SP2 ,Neighbourhood & Planning,SEN Primary Transprt,Transport Contracts,Third Party Payments,REVENUE
Wiltshire,http://opendatacommunities.org/id/unitary-authority/wiltshire,11/12/2019,1902465759,680,Aspire Taxis ,101274,SP2 ,Neighbourhood & Planning,SEN Secondary Tspt,Transport Contracts,Third Party Payments,REVENUE
Wiltshire,http://opendatacommunities.org/id/unitary-authority/wiltshire,11/12/2019,1902465760,1025,Aspire Taxis ,101274,SP2 ,Neighbourhood & Planning,SEN Secondary Tspt,Transport Contracts,Third Party Payments,REVENUE
Wiltshire,http://opendatacommunities.org/id/unitary-authority/wiltshire,11/12/2019,1902465760,3075,Aspire Taxis ,101274,SP2 ,Neighbourhood & Planning,SEN Primary Transprt,Transport Contracts,Third Party Payments,REVENUE
Wiltshire,http://opendatacommunities.org/id/unitary-authority/wiltshire,11/12/2019,1902465761,1580,Aspire Taxis ,101274,SP2 ,Neighbourhood & Planning,SEN 16+ Transport,Transport Contracts,Third Party Payments,REVENUE
Wiltshire,http://opendatacommunities.org/id/unitary-authority/wiltshire,11/12/2019,1902465762,580,Aspire Taxis ,101274,SP2 ,Neighbourhood & Planning,SEN Primary Transprt,Transport Contracts,Third Party Payments,REVENUE
Wiltshire,http://opendatacommunities.org/id/unitary-authority/wiltshire,11/12/2019,1902465763,1424.81,Aspire Taxis ,101274,SP2 ,Neighbourhood & Planning,SEN Secondary Tspt,Transport Contracts,Third Party Payments,REVENUE
Wiltshire,http://opendatacommunities.org/id/unitary-authority/wiltshire,12/12/2019,1902466875,2200,Aspire Taxis ,101274,SP2 ,Neighbourhood & Planning,Mainstream Primary,Transport Contracts,Third Party Payments,REVENUE
Wiltshire,http://opendatacommunities.org/id/unitary-authority/wiltshire,12/12/2019,1902466876,840,Aspire Taxis ,101274,SP2 ,Community Services,CTPLD Placements,Transport Contracts,Third Party Payments,REVENUE
Wiltshire,http://opendatacommunities.org/id/unitary-authority/wiltshire,12/12/2019,1902466877,1680,Aspire Taxis ,101274,SP2 ,Community Services,CTPLD Placements,Transport Contracts,Third Party Payments,REVENUE
Wiltshire,http://opendatacommunities.org/id/unitary-authority/wiltshire,12/12/2019,1902466878,291.67,Aspire Taxis ,101274,SP2 ,Neighbourhood & Planning,Mainstream Secondary,Transport Contracts,Third Party Payments,REVENUE
Wiltshire,http://opendatacommunities.org/id/unitary-authority/wiltshire,12/12/2019,1902466878,3208.33,Aspire Taxis ,101274,SP2 ,Neighbourhood & Planning,Mainstream Primary,Transport Contracts,Third Party Payments,REVENUE
Wiltshire,http://opendatacommunities.org/id/unitary-authority/wiltshire,12/12/2019,1902466879,1700,Aspire Taxis ,101274,SP2 ,Neighbourhood & Planning,Mainstream Primary,Transport Contracts,Third Party Payments,REVENUE
Wiltshire,http://opendatacommunities.org/id/unitary-authority/wiltshire,12/12/2019,1902466880,700,Aspire Taxis ,101274,SP2 ,Neighbourhood & Planning,Mainstream Primary,Transport Contracts,Third Party Payments,REVENUE
Wiltshire,http://opendatacommunities.org/id/unitary-authority/wiltshire,12/12/2019,1902466881,898,Aspire Taxis ,101274,SP2 ,Neighbourhood & Planning,Mainstream Primary,Transport Contracts,Third Party Payments,REVENUE
Wiltshire,http://opendatacommunities.org/id/unitary-authority/wiltshire,12/12/2019,1902466882,1400,Aspire Taxis ,101274,SP2 ,Neighbourhood & Planning,Mainstream Primary,Transport Contracts,Third Party Payments,REVENUE
Wiltshire,http://opendatacommunities.org/id/unitary-authority/wiltshire,12/12/2019,1902466883,360,Aspire Taxis ,101274,SP2 ,Community Services,CTPLD Placements,Transport Contracts,Third Party Payments,REVENUE
Wiltshire,http://opendatacommunities.org/id/unitary-authority/wiltshire,12/12/2019,1902466884,1380,Aspire Taxis ,101274,SP2 ,Neighbourhood & Planning,SEN Primary Transprt,Transport Contracts,Third Party Payments,REVENUE
Wiltshire,http://opendatacommunities.org/id/unitary-authority/wiltshire,12/12/2019,1902466885,2100,Aspire Taxis ,101274,SP2 ,Neighbourhood & Planning,SEN Secondary Tspt,Transport Contracts,Third Party Payments,REVENUE
Wiltshire,http://opendatacommunities.org/id/unitary-authority/wiltshire,20/12/2019,1902475037,855,Aspire Taxis ,101274,SP2 ,Neighbourhood & Planning,SEN Primary Transprt,Transport Contracts,Third Party Payments,REVENUE
Wiltshire,http://opendatacommunities.org/id/unitary-authority/wiltshire,20/12/2019,1902475041,1899,Aspire Taxis ,101274,SP2 ,Neighbourhood & Planning,SEN Primary Transprt,Transport Contracts,Third Party Payments,REVENUE
Wiltshire,http://opendatacommunities.org/id/unitary-authority/wiltshire,20/12/2019,1902475041,1899,Aspire Taxis ,101274,SP2 ,Neighbourhood & Planning,SEN Secondary Tspt,Transport Contracts,Third Party Payments,REVENUE
Wiltshire,http://opendatacommunities.org/id/unitary-authority/wiltshire,13/12/2019,5107398625,17434.2,Assoc Of Electoral Administrators ,113675,SR2 ,Resources,Parliamentary Electi,Consultants Fees,Supplies and Services,REVENUE
Wiltshire,http://opendatacommunities.org/id/unitary-authority/wiltshire,23/12/2019,1902459170,1164.15,Aster ,135687,SN10,Resources,Refugee Programme,Premises Rental,Premises Related,REVENUE
Wiltshire,http://opendatacommunities.org/id/unitary-authority/wiltshire,05/12/2019,5107397947,3800,Astral PS Ltd ,148875,SK13,Wiltshire Council,Wiltshire Council,ICT - Support arrangements,Supplies and Services,CAPITAL
Wiltshire,http://opendatacommunities.org/id/unitary-authority/wiltshire,05/12/2019,5107397995,7317.02,Astral PS Ltd ,148875,SK13,Wiltshire Council,Wiltshire Council,ICT - Support arrangements,Supplies and Services,CAPITAL
Wiltshire,http://opendatacommunities.org/id/unitary-authority/wiltshire,13/12/2019,1902467958,2876.79,Atelier Nursery Ltd ,145940,SN15,Children & Education,Free Entitlement 2 Y,Childcare Free Entitlement Early Years,Supplies and Services,REVENUE
Wiltshire,http://opendatacommunities.org/id/unitary-authority/wiltshire,13/12/2019,1902467959,8492.75,Atelier Nursery Ltd ,145940,SN15,Children & Education,Free Enttlmnt 3 & 4y,Childcare Free Entitlement Early Years,Supplies and Services,REVENUE
Wiltshire,http://opendatacommunities.org/id/unitary-authority/wiltshire,10/12/2019,1902463901,5440,Atfield House Care Home ,148400,TW7 ,Community Services,South Care Packages,Adult Residential Placements - Spot Purchase,Third Party Payments,REVENUE
Wiltshire,http://opendatacommunities.org/id/unitary-authority/wiltshire,13/12/2019,1902468178,376.6,Atkins Ltd ,110197,KT18,Wiltshire Council,Wiltshire Council,Highways Contracts,Third Party Payments,CAPITAL
Wiltshire,http://opendatacommunities.org/id/unitary-authority/wiltshire,13/12/2019,1902468178,389.97,Atkins Ltd ,110197,KT18,Wiltshire Council,Wiltshire Council,Highways Contracts,Third Party Payments,CAPITAL
Wiltshire,http://opendatacommunities.org/id/unitary-authority/wiltshire,13/12/2019,1902468178,431.3,Atkins Ltd ,110197,KT18,Wiltshire Council,Wiltshire Council,Highways Contracts,Third Party Payments,CAPITAL
Wiltshire,http://opendatacommunities.org/id/unitary-authority/wiltshire,13/12/2019,1902468178,796.92,Atkins Ltd ,110197,KT18,Wiltshire Council,Wiltshire Council,Highways Contracts,Third Party Payments,CAPITAL
Wiltshire,http://opendatacommunities.org/id/unitary-authority/wiltshire,13/12/2019,1902468178,896.91,Atkins Ltd ,110197,KT18,Wiltshire Council,Wiltshire Council,Highways Contracts,Third Party Payments,CAPITAL
Wiltshire,http://opendatacommunities.org/id/unitary-authority/wiltshire,13/12/2019,1902468178,941.04,Atkins Ltd ,110197,KT18,Wiltshire Council,Wiltshire Council,Highways Contracts,Third Party Payments,CAPITAL
Wiltshire,http://opendatacommunities.org/id/unitary-authority/wiltshire,13/12/2019,1902468178,1750,Atkins Ltd ,110197,KT18,Wiltshire Council,Wiltshire Council,Highways Contracts,Third Party Payments,CAPITAL
Wiltshire,http://opendatacommunities.org/id/unitary-authority/wiltshire,13/12/2019,1902468178,1969.91,Atkins Ltd ,110197,KT18,Wiltshire Council,Wiltshire Council,Highways Contracts,Third Party Payments,CAPITAL
Wiltshire,http://opendatacommunities.org/id/unitary-authority/wiltshire,13/12/2019,1902468178,2252.32,Atkins Ltd ,110197,KT18,Neighbourhood & Planning,Highw Hedges & Trees,Highways Contracts,Third Party Payments,REVENUE
Wiltshire,http://opendatacommunities.org/id/unitary-authority/wiltshire,13/12/2019,1902468178,3718.79,Atkins Ltd ,110197,KT18,Wiltshire Council,Wiltshire Council,Highways Contracts,Third Party Payments,CAPITAL
Wiltshire,http://opendatacommunities.org/id/unitary-authority/wiltshire,13/12/2019,1902468178,3831.6,Atkins Ltd ,110197,KT18,Neighbourhood & Planning,Bridge Routine Mtc,Highways Contracts,Third Party Payments,REVENUE
Wiltshire,http://opendatacommunities.org/id/unitary-authority/wiltshire,13/12/2019,1902468178,4172.69,Atkins Ltd ,110197,KT18,Wiltshire Council,Wiltshire Council,Highways Contracts,Third Party Payments,CAPITAL
Wiltshire,http://opendatacommunities.org/id/unitary-authority/wiltshire,13/12/2019,1902468178,4458.61,Atkins Ltd ,110197,KT18,Wiltshire Council,Wiltshire Council,Highways Contracts,Third Party Payments,CAPITAL
Wiltshire,http://opendatacommunities.org/id/unitary-authority/wiltshire,13/12/2019,1902468178,4917.44,Atkins Ltd ,110197,KT18,Wiltshire Council,Wiltshire Council,Highways Contracts,Third Party Payments,CAPITAL
Wiltshire,http://opendatacommunities.org/id/unitary-authority/wiltshire,13/12/2019,1902468178,4962.54,Atkins Ltd ,110197,KT18,Resources,Amesbry AreaBrd S106,Highways Contracts,Third Party Payments,REVENUE
Wiltshire,http://opendatacommunities.org/id/unitary-authority/wiltshire,13/12/2019,1902468178,5500,Atkins Ltd ,110197,KT18,Neighbourhood & Planning,Highways Asset Mgt,Highways Contracts,Third Party Payments,REVENUE
Wiltshire,http://opendatacommunities.org/id/unitary-authority/wiltshire,13/12/2019,1902468178,5800,Atkins Ltd ,110197,KT18,Wiltshire Council,Wiltshire Council,Highways Contracts,Third Party Payments,CAPITAL
Wiltshire,http://opendatacommunities.org/id/unitary-authority/wiltshire,13/12/2019,1902468178,7739.16,Atkins Ltd ,110197,KT18,Wiltshire Council,Wiltshire Council,Highways Contracts,Third Party Payments,CAPITAL
Wiltshire,http://opendatacommunities.org/id/unitary-authority/wiltshire,13/12/2019,1902468178,8805,Atkins Ltd ,110197,KT18,Neighbourhood & Planning,Wiltshire Local Plan,Highways Contracts,Third Party Payments,REVENUE
Wiltshire,http://opendatacommunities.org/id/unitary-authority/wiltshire,13/12/2019,1902468178,10117.61,Atkins Ltd ,110197,KT18,Wiltshire Council,Wiltshire Council,Highways Contracts,Third Party Payments,CAPITAL
Wiltshire,http://opendatacommunities.org/id/unitary-authority/wiltshire,13/12/2019,1902468178,12375.32,Atkins Ltd ,110197,KT18,Neighbourhood & Planning,Traffic Signal Mtc,Highways Contracts,Third Party Payments,REVENUE
Wiltshire,http://opendatacommunities.org/id/unitary-authority/wiltshire,13/12/2019,1902468178,13955.68,Atkins Ltd ,110197,KT18,Wiltshire Council,Wiltshire Council,Highways Contracts,Third Party Payments,CAPITAL
Wiltshire,http://opendatacommunities.org/id/unitary-authority/wiltshire,13/12/2019,1902468178,14759.62,Atkins Ltd ,110197,KT18,Wiltshire Council,Wiltshire Council,Highways Contracts,Third Party Payments,CAPITAL
Wiltshire,http://opendatacommunities.org/id/unitary-authority/wiltshire,13/12/2019,1902468178,22568.78,Atkins Ltd ,110197,KT18,Wiltshire Council,Wiltshire Council,Highways Contracts,Third Party Payments,CAPITAL
Wiltshire,http://opendatacommunities.org/id/unitary-authority/wiltshire,13/12/2019,1902468178,22786.36,Atkins Ltd ,110197,KT18,Neighbourhood & Planning,Street Lighting,Highways Contracts,Third Party Payments,REVENUE
Wiltshire,http://opendatacommunities.org/id/unitary-authority/wiltshire,13/12/2019,1902468178,28861.18,Atkins Ltd ,110197,KT18,Wiltshire Council,Wiltshire Council,Highways Contracts,Third Party Payments,CAPITAL
Wiltshire,http://opendatacommunities.org/id/unitary-authority/wiltshire,13/12/2019,1902468178,29267.66,Atkins Ltd ,110197,KT18,Wiltshire Council,Wiltshire Council,Highways Contracts,Third Party Payments,CAPITAL
Wiltshire,http://opendatacommunities.org/id/unitary-authority/wiltshire,13/12/2019,1902468178,29868.42,Atkins Ltd ,110197,KT18,Neighbourhood & Planning,Transport Plan & DC,Highways Contracts,Third Party Payments,REVENUE
Wiltshire,http://opendatacommunities.org/id/unitary-authority/wiltshire,13/12/2019,1902468178,41347.6,Atkins Ltd ,110197,KT18,Wiltshire Council,Wiltshire Council,Highways Contracts,Third Party Payments,CAPITAL
Wiltshire,http://opendatacommunities.org/id/unitary-authority/wiltshire,13/12/2019,1902468178,109311.09,Atkins Ltd ,110197,KT18,Wiltshire Council,Wiltshire Council,Highways Contracts,Third Party Payments,CAPITAL
Wiltshire,http://opendatacommunities.org/id/unitary-authority/wiltshire,13/12/2019,1902468178,195949.98,Atkins Ltd ,110197,KT18,Wiltshire Council,Wiltshire Council,Highways Contracts,Third Party Payments,CAPITAL
Wiltshire,http://opendatacommunities.org/id/unitary-authority/wiltshire,04/12/2019,5107397518,13367.93,Atkins Ltd ,110197,KT18,Wiltshire Council,Wiltshire Council,Consultants Fees,Supplies and Services,CAPITAL
Wiltshire,http://opendatacommunities.org/id/unitary-authority/wiltshire,04/12/2019,5107397890,12627.43,Atkins Ltd ,110197,KT18,Wiltshire Council,Wiltshire Council,Consultants Fees,Supplies and Services,CAPITAL
Wiltshire,http://opendatacommunities.org/id/unitary-authority/wiltshire,04/12/2019,5107397891,5276.56,Atkins Ltd ,110197,KT18,Wiltshire Council,Wiltshire Council,Consultants Fees,Supplies and Services,CAPITAL
Wiltshire,http://opendatacommunities.org/id/unitary-authority/wiltshire,04/12/2019,5107397893,4522.77,Atkins Ltd ,110197,KT18,Wiltshire Council,Wiltshire Council,Consultants Fees,Supplies and Services,CAPITAL
Wiltshire,http://opendatacommunities.org/id/unitary-authority/wiltshire,05/12/2019,5107398012,725.56,Atkins Ltd ,110197,KT18,Wiltshire Council,Wiltshire Council,Professional Fees,Supplies and Services,CAPITAL
Wiltshire,http://opendatacommunities.org/id/unitary-authority/wiltshire,05/12/2019,5107398013,4420,Atkins Ltd ,110197,KT18,Wiltshire Council,Wiltshire Council,Professional Fees,Supplies and Services,CAPITAL
Wiltshire,http://opendatacommunities.org/id/unitary-authority/wiltshire,04/12/2019,5107397908,1020.9,Atkinson Lewis ,143942,SA5 ,Children & Education,HQ Social Care,Witness / Jurors' / Justice's Expenses,Supplies and Services,REVENUE
Wiltshire,http://opendatacommunities.org/id/unitary-authority/wiltshire,11/12/2019,1902465303,1561.75,Ats Euromaster Ltd ,113709,B6 5,Neighbourhood & Planning,Fleet,Vehicle Tyres,Transport Related,REVENUE
Wiltshire,http://opendatacommunities.org/id/unitary-authority/wiltshire,10/12/2019,1902464152,1008.72,Audley Care White Horse ,121958,SN8 ,Community Services,West Care Packages,Adult Domiciliary Care,Third Party Payments,REVENUE
Wiltshire,http://opendatacommunities.org/id/unitary-authority/wiltshire,10/12/2019,1902464154,904.68,Audley Care White Horse ,121958,SN8 ,Community Services,North Care Packages,Adult Domiciliary Care Contribution,Income,REVENUE
Wiltshire,http://opendatacommunities.org/id/unitary-authority/wiltshire,10/12/2019,1902464155,492,Audley Care White Horse ,121958,SN8 ,Community Services,West Care Packages,Adult Domiciliary Care,Third Party Payments,REVENUE
Wiltshire,http://opendatacommunities.org/id/unitary-authority/wiltshire,10/12/2019,1902464156,502.14,Audley Care White Horse ,121958,SN8 ,Community Services,North Care Packages,Adult Domiciliary Care Contribution,Income,REVENUE
Wiltshire,http://opendatacommunities.org/id/unitary-authority/wiltshire,10/12/2019,1902464157,3467.24,Audley Care White Horse ,121958,SN8 ,Community Services,North Care Packages,Adult Domiciliary Care,Third Party Payments,REVENUE
Wiltshire,http://opendatacommunities.org/id/unitary-authority/wiltshire,10/12/2019,1902464159,365.4,Audley Care White Horse ,121958,SN8 ,Community Services,North Care Packages,Adult Domiciliary Care,Third Party Payments,REVENUE
Wiltshire,http://opendatacommunities.org/id/unitary-authority/wiltshire,10/12/2019,1902464160,655.44,Audley Care White Horse ,121958,SN8 ,Community Services,North Care Packages,Adult Domiciliary Care Contribution,Income,REVENUE
Wiltshire,http://opendatacommunities.org/id/unitary-authority/wiltshire,10/12/2019,1902464161,1150.52,Audley Care White Horse ,121958,SN8 ,Community Services,North Care Packages,Adult Domiciliary Care Contribution,Income,REVENUE
Wiltshire,http://opendatacommunities.org/id/unitary-authority/wiltshire,10/12/2019,1902464163,1438.15,Audley Care White Horse ,121958,SN8 ,Community Services,North Care Packages,Adult Domiciliary Care Contribution,Income,REVENUE
Wiltshire,http://opendatacommunities.org/id/unitary-authority/wiltshire,10/12/2019,1902464166,1154.84,Audley Care White Horse ,121958,SN8 ,Community Services,North Care Packages,Adult Domiciliary Care,Third Party Payments,REVENUE
Wiltshire,http://opendatacommunities.org/id/unitary-authority/wiltshire,19/12/2019,1902474845,200000,Audley Care White Horse ,121958,SN8 ,Wiltshire Council,Wiltshire Council,Payments in Advance,Balance Sheet Accounts,REVENUE
Wiltshire,http://opendatacommunities.org/id/unitary-authority/wiltshire,23/12/2019,1902476830,261.81,Audley Care White Horse ,121958,SN8 ,Community Services,North Care Packages,Adult Domiciliary Care Contribution,Income,REVENUE
Wiltshire,http://opendatacommunities.org/id/unitary-authority/wiltshire,23/12/2019,1902476831,261.81,Audley Care White Horse ,121958,SN8 ,Community Services,North Care Packages,Adult Domiciliary Care Contribution,Income,REVENUE
Wiltshire,http://opendatacommunities.org/id/unitary-authority/wiltshire,23/12/2019,1902476832,327.3,Audley Care White Horse ,121958,SN8 ,Community Services,North Care Packages,Adult Domiciliary Care Contribution,Income,REVENUE
Wiltshire,http://opendatacommunities.org/id/unitary-authority/wiltshire,23/12/2019,1902476833,261.84,Audley Care White Horse ,121958,SN8 ,Community Services,North Care Packages,Adult Domiciliary Care Contribution,Income,REVENUE
Wiltshire,http://opendatacommunities.org/id/unitary-authority/wiltshire,23/12/2019,1902476834,261.84,Audley Care White Horse ,121958,SN8 ,Community Services,North Care Packages,Adult Domiciliary Care Contribution,Income,REVENUE
Wiltshire,http://opendatacommunities.org/id/unitary-authority/wiltshire,23/12/2019,1902476835,327.3,Audley Care White Horse ,121958,SN8 ,Community Services,North Care Packages,Adult Domiciliary Care Contribution,Income,REVENUE
Wiltshire,http://opendatacommunities.org/id/unitary-authority/wiltshire,05/12/2019,5107397083,30643.1,Aurora Hedgeway School ,146712,EC1N,Children & Education,IndepSpecialSchFees,Educational Fees,Supplies and Services,REVENUE
Wiltshire,http://opendatacommunities.org/id/unitary-authority/wiltshire,05/12/2019,5107397083,53221,Aurora Hedgeway School ,146712,EC1N,Children & Education,0-25 extnl disabty p,Educational Fees,Supplies and Services,REVENUE
Wiltshire,http://opendatacommunities.org/id/unitary-authority/wiltshire,05/12/2019,5107397416,16676.21,Aurora Hedgeway School ,146712,EC1N,Children & Education,IndepSpecialSchFees,Educational Fees,Supplies and Services,REVENUE
Wiltshire,http://opendatacommunities.org/id/unitary-authority/wiltshire,10/12/2019,1902463974,6801.2,Autism Care Wiltshire ,136507,SN25,Community Services,CTPLD Placements,Adult Residential Placements - Spot Purchase,Third Party Payments,REVENUE
Wiltshire,http://opendatacommunities.org/id/unitary-authority/wiltshire,10/12/2019,1902463828,6007.4,Autism Specialised care Homes ,110205,BS10,Community Services,CTPLD Placements,Adult Residential Placements - Spot Purchase,Third Party Payments,REVENUE
Wiltshire,http://opendatacommunities.org/id/unitary-authority/wiltshire,10/12/2019,1902464002,7332.32,Autism West Midlands ,110206,WR9 ,Community Services,CTPLD Placements,Adult Residential Placements - Spot Purchase,Third Party Payments,REVENUE
Wiltshire,http://opendatacommunities.org/id/unitary-authority/wiltshire,06/12/2019,5107397105,321.21,Automotive Leasing Ltd ,113729,SL1 ,Neighbourhood & Planning,Fleet,Vehicle Hire,Transport Related,REVENUE
Wiltshire,http://opendatacommunities.org/id/unitary-authority/wiltshire,18/12/2019,5107399120,18099.2,Autonomy Care Limited ,126128,SN12,Children & Education,0-25 extnl disabty p,Other Social & Welfare Costs,Third Party Payments,REVENUE
Wiltshire,http://opendatacommunities.org/id/unitary-authority/wiltshire,18/12/2019,5107399122,14641.6,Autonomy Care Limited ,126128,SN12,Children & Education,0-25 extnl disabty p,Other Social & Welfare Costs,Third Party Payments,REVENUE
Wiltshire,http://opendatacommunities.org/id/unitary-authority/wiltshire,12/12/2019,1902466043,10298,Autonomy Life Ltd ,110896,SN12,Community Services,CTPLD Placements,Adult Residential Placements - Spot Purchase,Third Party Payments,REVENUE
Wiltshire,http://opendatacommunities.org/id/unitary-authority/wiltshire,12/12/2019,1902466044,5777.64,Autonomy Life Ltd ,110896,SN12,Community Services,West Care Packages,Adult Residential Placements - Spot Purchase,Third Party Payments,REVENUE
Wiltshire,http://opendatacommunities.org/id/unitary-authority/wiltshire,12/12/2019,1902466045,6791.76,Autonomy Life Ltd ,110896,SN12,Community Services,CTPLD Placements,Adult Residential Placements - Spot Purchase,Third Party Payments,REVENUE
Wiltshire,http://opendatacommunities.org/id/unitary-authority/wiltshire,12/12/2019,1902466046,7036.92,Autonomy Life Ltd ,110896,SN12,Community Services,North Care Packages,Adult Residential Placements - Spot Purchase,Third Party Payments,REVENUE
Wiltshire,http://opendatacommunities.org/id/unitary-authority/wiltshire,12/12/2019,1902466047,7537.56,Autonomy Life Ltd ,110896,SN12,Community Services,CTPLD Placements,Adult Residential Placements - Spot Purchase,Third Party Payments,REVENUE
Wiltshire,http://opendatacommunities.org/id/unitary-authority/wiltshire,10/12/2019,5107398204,16460.07,Autonomy Plus Limited ,146109,SN12,Children & Education,0-25 extnl disabty p,Childrens Agency Placement,Third Party Payments,REVENUE
Wiltshire,http://opendatacommunities.org/id/unitary-authority/wiltshire,10/12/2019,5107398205,17223.6,Autonomy Plus Limited ,146109,SN12,Children & Education,0-25 extnl disabty p,Childrens Agency Placement,Third Party Payments,REVENUE
Wiltshire,http://opendatacommunities.org/id/unitary-authority/wiltshire,10/12/2019,5107398206,16460.07,Autonomy Plus Limited ,146109,SN12,Children & Education,0-25 extnl disabty p,Childrens Agency Placement,Third Party Payments,REVENUE
Wiltshire,http://opendatacommunities.org/id/unitary-authority/wiltshire,10/12/2019,5107398207,16460.07,Autonomy Plus Limited ,146109,SN12,Children & Education,0-25 extnl disabty p,Childrens Agency Placement,Third Party Payments,REVENUE
Wiltshire,http://opendatacommunities.org/id/unitary-authority/wiltshire,11/12/2019,1902465196,3104.16,Avery Healthcare Cepen Lodge ,126733,DL1 ,Community Services,North Care Packages,Adult Residential Placements - Spot Purchase,Third Party Payments,REVENUE
Wiltshire,http://opendatacommunities.org/id/unitary-authority/wiltshire,11/12/2019,1902465197,3104.16,Avery Healthcare Cepen Lodge ,126733,DL1 ,Community Services,North Care Packages,Adult Residential Placements - Spot Purchase,Third Party Payments,REVENUE
Wiltshire,http://opendatacommunities.org/id/unitary-authority/wiltshire,11/12/2019,1902465198,3104.16,Avery Healthcare Cepen Lodge ,126733,DL1 ,Community Services,North Care Packages,Adult Residential Placements - Spot Purchase,Third Party Payments,REVENUE
Wiltshire,http://opendatacommunities.org/id/unitary-authority/wiltshire,11/12/2019,1902465199,3104.16,Avery Healthcare Cepen Lodge ,126733,DL1 ,Community Services,North Care Packages,Adult Residential Placements - Spot Purchase,Third Party Payments,REVENUE
Wiltshire,http://opendatacommunities.org/id/unitary-authority/wiltshire,11/12/2019,1902465200,3104.16,Avery Healthcare Cepen Lodge ,126733,DL1 ,Community Services,North Care Packages,Adult Residential Placements - Spot Purchase,Third Party Payments,REVENUE
Wiltshire,http://opendatacommunities.org/id/unitary-authority/wiltshire,11/12/2019,1902465201,3104.16,Avery Healthcare Cepen Lodge ,126733,DL1 ,Community Services,North Care Packages,Adult Residential Placements - Spot Purchase,Third Party Payments,REVENUE
Wiltshire,http://opendatacommunities.org/id/unitary-authority/wiltshire,11/12/2019,1902465202,2741.48,Avery Healthcare Cepen Lodge ,126733,DL1 ,Community Services,MH AOWA N&E Locality,Adult Residential Placements - Spot Purchase,Third Party Payments,REVENUE
Wiltshire,http://opendatacommunities.org/id/unitary-authority/wiltshire,11/12/2019,1902465203,2741.48,Avery Healthcare Cepen Lodge ,126733,DL1 ,Community Services,North Care Packages,Adult Residential Placements - Spot Purchase,Third Party Payments,REVENUE
Wiltshire,http://opendatacommunities.org/id/unitary-authority/wiltshire,11/12/2019,1902465204,2741.48,Avery Healthcare Cepen Lodge ,126733,DL1 ,Community Services,North Care Packages,Adult Residential Placements - Spot Purchase,Third Party Payments,REVENUE
Wiltshire,http://opendatacommunities.org/id/unitary-authority/wiltshire,11/12/2019,1902465205,2573.8,Avery Healthcare Cepen Lodge ,126733,DL1 ,Community Services,North Care Packages,Adult Residential Placements - Spot Purchase,Third Party Payments,REVENUE
Wiltshire,http://opendatacommunities.org/id/unitary-authority/wiltshire,11/12/2019,1902465206,2573.8,Avery Healthcare Cepen Lodge ,126733,DL1 ,Community Services,North Care Packages,Adult Residential Placements - Spot Purchase,Third Party Payments,REVENUE
Wiltshire,http://opendatacommunities.org/id/unitary-authority/wiltshire,11/12/2019,1902465207,2573.8,Avery Healthcare Cepen Lodge ,126733,DL1 ,Community Services,North Care Packages,Adult Residential Placements - Spot Purchase,Third Party Payments,REVENUE
Wiltshire,http://opendatacommunities.org/id/unitary-authority/wiltshire,11/12/2019,1902465208,2573.8,Avery Healthcare Cepen Lodge ,126733,DL1 ,Community Services,MH OP N&E Locality,Adult Residential Placements - Spot Purchase,Third Party Payments,REVENUE
Wiltshire,http://opendatacommunities.org/id/unitary-authority/wiltshire,11/12/2019,1902465209,2573.8,Avery Healthcare Cepen Lodge ,126733,DL1 ,Community Services,MH OP N&E Locality,Adult Residential Placements - Spot Purchase,Third Party Payments,REVENUE
Wiltshire,http://opendatacommunities.org/id/unitary-authority/wiltshire,11/12/2019,1902465210,2573.8,Avery Healthcare Cepen Lodge ,126733,DL1 ,Community Services,MH OP N&E Locality,Adult Residential Placements - Spot Purchase,Third Party Payments,REVENUE
Wiltshire,http://opendatacommunities.org/id/unitary-authority/wiltshire,11/12/2019,1902465211,2573.8,Avery Healthcare Cepen Lodge ,126733,DL1 ,Community Services,MH OP N&E Locality,Adult Residential Placements - Spot Purchase,Third Party Payments,REVENUE
Wiltshire,http://opendatacommunities.org/id/unitary-authority/wiltshire,11/12/2019,1902465212,2573.36,Avery Healthcare Cepen Lodge ,126733,DL1 ,Community Services,North Care Packages,Adult Residential Placements - Spot Purchase,Third Party Payments,REVENUE
Wiltshire,http://opendatacommunities.org/id/unitary-authority/wiltshire,11/12/2019,1902465213,2741.48,Avery Healthcare Cepen Lodge ,126733,DL1 ,Community Services,North Care Packages,Adult Residential Placements - Spot Purchase,Third Party Payments,REVENUE
Wiltshire,http://opendatacommunities.org/id/unitary-authority/wiltshire,11/12/2019,1902465214,2946.28,Avery Healthcare Cepen Lodge ,126733,DL1 ,Community Services,North Care Packages,Adult Residential Placements - Spot Purchase,Third Party Payments,REVENUE
Wiltshire,http://opendatacommunities.org/id/unitary-authority/wiltshire,11/12/2019,1902465514,3208.56,Avery Healthcare Ltd- Langford Sali ,112676,NN4 ,Community Services,Home Loans,Adult Care Nursing Placements - Spot,Third Party Payments,REVENUE
Wiltshire,http://opendatacommunities.org/id/unitary-authority/wiltshire,12/12/2019,1902466100,305.07,Avery Healthcare Ltd- Langford Sali ,112676,NN4 ,Community Services,South Care Packages,Adult Nursing Place- Spot Purchase Contr,Income,REVENUE
Wiltshire,http://opendatacommunities.org/id/unitary-authority/wiltshire,12/12/2019,1902466102,3285.56,Avery Healthcare Ltd- Langford Sali ,112676,NN4 ,Community Services,MH OP South Locality,Adult Care Nursing Placements - Spot,Third Party Payments,REVENUE
Wiltshire,http://opendatacommunities.org/id/unitary-authority/wiltshire,12/12/2019,1902466103,3256.4,Avery Healthcare Ltd- Langford Sali ,112676,NN4 ,Community Services,South Care Packages,Adult Care Nursing Placements - Spot,Third Party Payments,REVENUE
Wiltshire,http://opendatacommunities.org/id/unitary-authority/wiltshire,12/12/2019,1902466104,4400,Avery Healthcare Ltd- Langford Sali ,112676,NN4 ,Community Services,Adult Care Gross Loa,Adult Care Nursing Placements - Spot,Third Party Payments,REVENUE
Wiltshire,http://opendatacommunities.org/id/unitary-authority/wiltshire,12/12/2019,1902466105,2783.64,Avery Healthcare Ltd- Langford Sali ,112676,NN4 ,Community Services,South Care Packages,Adult Care Nursing Placements - Spot,Third Party Payments,REVENUE
Wiltshire,http://opendatacommunities.org/id/unitary-authority/wiltshire,12/12/2019,1902466106,2783.64,Avery Healthcare Ltd- Langford Sali ,112676,NN4 ,Community Services,South Care Packages,Adult Care Nursing Placements - Spot,Third Party Payments,REVENUE
Wiltshire,http://opendatacommunities.org/id/unitary-authority/wiltshire,12/12/2019,1902466107,2783.64,Avery Healthcare Ltd- Langford Sali ,112676,NN4 ,Community Services,South Care Packages,Adult Care Nursing Placements - Spot,Third Party Payments,REVENUE
Wiltshire,http://opendatacommunities.org/id/unitary-authority/wiltshire,12/12/2019,1902466108,3104.16,Avery Healthcare Ltd- Langford Sali ,112676,NN4 ,Community Services,South Care Packages,Adult Residential Placements - Spot Purchase,Third Party Payments,REVENUE
Wiltshire,http://opendatacommunities.org/id/unitary-authority/wiltshire,12/12/2019,1902466109,3104.16,Avery Healthcare Ltd- Langford Sali ,112676,NN4 ,Community Services,South Care Packages,Adult Residential Placements - Spot Purchase,Third Party Payments,REVENUE
Wiltshire,http://opendatacommunities.org/id/unitary-authority/wiltshire,12/12/2019,1902466110,3104.16,Avery Healthcare Ltd- Langford Sali ,112676,NN4 ,Community Services,South Care Packages,Adult Residential Placements - Spot Purchase,Third Party Payments,REVENUE
Wiltshire,http://opendatacommunities.org/id/unitary-authority/wiltshire,12/12/2019,1902466111,3104.16,Avery Healthcare Ltd- Langford Sali ,112676,NN4 ,Community Services,South Care Packages,Adult Residential Placements - Spot Purchase,Third Party Payments,REVENUE
Wiltshire,http://opendatacommunities.org/id/unitary-authority/wiltshire,12/12/2019,1902466112,3104.16,Avery Healthcare Ltd- Langford Sali ,112676,NN4 ,Community Services,South Care Packages,Adult Residential Placements - Spot Purchase,Third Party Payments,REVENUE
Wiltshire,http://opendatacommunities.org/id/unitary-authority/wiltshire,12/12/2019,1902466113,3104.16,Avery Healthcare Ltd- Langford Sali ,112676,NN4 ,Community Services,West Care Packages,Adult Residential Placements - Spot Purchase,Third Party Payments,REVENUE
Wiltshire,http://opendatacommunities.org/id/unitary-authority/wiltshire,12/12/2019,1902466114,2593.84,Avery Healthcare Ltd- Langford Sali ,112676,NN4 ,Community Services,South Care Packages,Adult Residential Placements - Spot Purchase,Third Party Payments,REVENUE
Wiltshire,http://opendatacommunities.org/id/unitary-authority/wiltshire,04/12/2019,1902460435,2020,Avid Taxis and Private Hire ,146394,SP9 ,Neighbourhood & Planning,SEN Secondary Tspt,Transport Contracts,Third Party Payments,REVENUE
Wiltshire,http://opendatacommunities.org/id/unitary-authority/wiltshire,10/12/2019,1902463934,2630.76,Avon Care Homes Ltd - Sutton Veny H ,112612,BA5 ,Community Services,West Care Packages,Adult Care Nursing Placements - Spot,Third Party Payments,REVENUE
Wiltshire,http://opendatacommunities.org/id/unitary-authority/wiltshire,10/12/2019,1902463935,2695.2,Avon Care Homes Ltd - Sutton Veny H ,112612,BA5 ,Community Services,North Care Packages,Adult Residential Placements - Spot Purchase,Third Party Payments,REVENUE
Wiltshire,http://opendatacommunities.org/id/unitary-authority/wiltshire,03/12/2019,5107397744,16679,Avon Court Care Home ,110218,LS16,Community Services,BCF-Intermediate Cr,Adult Care Nursing Placements- Block Contract,Third Party Payments,REVENUE
Wiltshire,http://opendatacommunities.org/id/unitary-authority/wiltshire,03/12/2019,5107397745,16679,Avon Court Care Home ,110218,LS16,Community Services,BCF-Intermediate Cr,Adult Care Nursing Placements- Block Contract,Third Party Payments,REVENUE
Wiltshire,http://opendatacommunities.org/id/unitary-authority/wiltshire,03/12/2019,5107397746,17629,Avon Court Care Home ,110218,LS16,Community Services,BCF-Intermediate Cr,Adult Care Nursing Placements- Block Contract,Third Party Payments,REVENUE
Wiltshire,http://opendatacommunities.org/id/unitary-authority/wiltshire,03/12/2019,5107397747,17629,Avon Court Care Home ,110218,LS16,Community Services,BCF-Intermediate Cr,Adult Care Nursing Placements- Block Contract,Third Party Payments,REVENUE
Wiltshire,http://opendatacommunities.org/id/unitary-authority/wiltshire,11/12/2019,1902464975,3088.36,Avonpark Village (Care Homes) Limit ,110227,BA2 ,Community Services,West Care Packages,Adult Care Nursing Placements - Spot,Third Party Payments,REVENUE
Wiltshire,http://opendatacommunities.org/id/unitary-authority/wiltshire,11/12/2019,1902464976,4167.36,Avonpark Village (Care Homes) Limit ,110227,BA2 ,Community Services,MH OP South Locality,Adult Care Nursing Placements - Spot,Third Party Payments,REVENUE
Wiltshire,http://opendatacommunities.org/id/unitary-authority/wiltshire,11/12/2019,1902464977,2799.72,Avonpark Village (Care Homes) Limit ,110227,BA2 ,Community Services,MH OP West Locality,Adult Residential Placements - Spot Purchase,Third Party Payments,REVENUE
Wiltshire,http://opendatacommunities.org/id/unitary-authority/wiltshire,11/12/2019,1902464978,4640,Avonpark Village (Care Homes) Limit ,110227,BA2 ,Community Services,MH OP West Locality,Adult Residential Placements - Spot Purchase,Third Party Payments,REVENUE
Wiltshire,http://opendatacommunities.org/id/unitary-authority/wiltshire,11/12/2019,1902464979,4640,Avonpark Village (Care Homes) Limit ,110227,BA2 ,Community Services,MH OP West Locality,Adult Residential Placements - Spot Purchase,Third Party Payments,REVENUE
Wiltshire,http://opendatacommunities.org/id/unitary-authority/wiltshire,11/12/2019,1902464980,4640,Avonpark Village (Care Homes) Limit ,110227,BA2 ,Community Services,MH OP West Locality,Adult Residential Placements - Spot Purchase,Third Party Payments,REVENUE
Wiltshire,http://opendatacommunities.org/id/unitary-authority/wiltshire,11/12/2019,1902464981,4900,Avonpark Village (Care Homes) Limit ,110227,BA2 ,Community Services,West Care Packages,Adult Residential Placements - Spot Purchase,Third Party Payments,REVENUE
Wiltshire,http://opendatacommunities.org/id/unitary-authority/wiltshire,04/12/2019,5107397460,9240,Axial Systems Ltd ,101147,SL6 ,Resources,ICT Corporate Networ,ICT - Support arrangements,Supplies and Services,REVENUE
Wiltshire,http://opendatacommunities.org/id/unitary-authority/wiltshire,23/12/2019,5107397867,320,Axis Signs Limited ,140699,SN3 ,Wiltshire Council,Wiltshire Council,Publications / periodicals,Supplies and Services,CAPITAL
Wiltshire,http://opendatacommunities.org/id/unitary-authority/wiltshire,23/12/2019,5107397898,1470,Axis Signs Limited ,140699,SN3 ,Resources,RegistrationofElectr,Printing,Supplies and Services,REVENUE
Wiltshire,http://opendatacommunities.org/id/unitary-authority/wiltshire,03/12/2019,1902459894,1025,B & M Windows  and  Doors Ltd ,101694,SP2 ,Neighbourhood & Planning,DLO,Premises Related Other Maintenance Costs,Premises Related,REVENUE
Wiltshire,http://opendatacommunities.org/id/unitary-authority/wiltshire,18/12/2019,1902473506,780,B & M Windows  and  Doors Ltd ,101694,SP2 ,Neighbourhood & Planning,DLO,Premises Related Other Maintenance Costs,Premises Related,REVENUE
Wiltshire,http://opendatacommunities.org/id/unitary-authority/wiltshire,24/12/2019,5107399753,475,B & M Windows  and  Doors Ltd ,101694,SP2 ,Neighbourhood & Planning,DLO,Equipment Purchase,Supplies and Services,REVENUE
Wiltshire,http://opendatacommunities.org/id/unitary-authority/wiltshire,24/12/2019,5107399754,515,B & M Windows  and  Doors Ltd ,101694,SP2 ,Neighbourhood & Planning,DLO,Equipment Purchase,Supplies and Services,REVENUE
Wiltshire,http://opendatacommunities.org/id/unitary-authority/wiltshire,24/12/2019,5107399755,625,B & M Windows  and  Doors Ltd ,101694,SP2 ,Neighbourhood & Planning,DLO,Equipment Purchase,Supplies and Services,REVENUE
Wiltshire,http://opendatacommunities.org/id/unitary-authority/wiltshire,24/12/2019,5107399756,605,B & M Windows  and  Doors Ltd ,101694,SP2 ,Neighbourhood & Planning,DLO,Equipment Purchase,Supplies and Services,REVENUE
Wiltshire,http://opendatacommunities.org/id/unitary-authority/wiltshire,24/12/2019,5107399757,598,B & M Windows  and  Doors Ltd ,101694,SP2 ,Neighbourhood & Planning,DLO,Equipment Purchase,Supplies and Services,REVENUE
Wiltshire,http://opendatacommunities.org/id/unitary-authority/wiltshire,24/12/2019,5107399796,972.25,B & M Windows  and  Doors Ltd ,101694,SP2 ,Neighbourhood & Planning,DLO,Equipment Purchase,Supplies and Services,REVENUE
Wiltshire,http://opendatacommunities.org/id/unitary-authority/wiltshire,31/12/2019,5107399828,730,B & M Windows  and  Doors Ltd ,101694,SP2 ,Neighbourhood & Planning,DLO,Equipment Purchase,Supplies and Services,REVENUE
Wiltshire,http://opendatacommunities.org/id/unitary-authority/wiltshire,20/12/2019,5107399454,450,B P Estates (Contractors) Limited ,132851,SY23,Resources,Investment Estate,Premises Rental,Premises Related,REVENUE
Wiltshire,http://opendatacommunities.org/id/unitary-authority/wiltshire,20/12/2019,5107399455,450,B P Estates (Contractors) Limited ,132851,SY23,Resources,SAFM - Other Assets,Premises Rental,Premises Related,REVENUE
Wiltshire,http://opendatacommunities.org/id/unitary-authority/wiltshire,20/12/2019,5107399416,2424.72,B P Estates Ltd ,113821,BA14,Resources,Investment Estate,Premises Rental,Premises Related,REVENUE
Wiltshire,http://opendatacommunities.org/id/unitary-authority/wiltshire,04/12/2019,1902445743,293.86,Banner Group Ltd ,145979,S9 1,Resources,Facilities Managemen,Stationery,Supplies and Services,REVENUE
Wiltshire,http://opendatacommunities.org/id/unitary-authority/wiltshire,09/12/2019,1902447569,740.01,Banner Group Ltd ,145979,S9 1,Resources,Desk Top Hardware,Stationery,Supplies and Services,REVENUE
Wiltshire,http://opendatacommunities.org/id/unitary-authority/wiltshire,09/12/2019,1902447602,303.6,Banner Group Ltd ,145979,S9 1,Community Services,Libraries,Stationery,Supplies and Services,REVENUE
Wiltshire,http://opendatacommunities.org/id/unitary-authority/wiltshire,10/12/2019,1902454880,568.5,Banner Group Ltd ,145979,S9 1,Resources,Facilities Managemen,Stationery,Supplies and Services,REVENUE
Wiltshire,http://opendatacommunities.org/id/unitary-authority/wiltshire,05/12/2019,1902460904,909.6,Banner Group Ltd ,145979,S9 1,Resources,Facilities Managemen,Stationery,Supplies and Services,REVENUE
Wiltshire,http://opendatacommunities.org/id/unitary-authority/wiltshire,23/12/2019,1902460906,454.8,Banner Group Ltd ,145979,S9 1,Resources,Facilities Managemen,Stationery,Supplies and Services,REVENUE
Wiltshire,http://opendatacommunities.org/id/unitary-authority/wiltshire,23/12/2019,1902465939,302,Banner Group Ltd ,145979,S9 1,Resources,Facilities Managemen,Stationery,Supplies and Services,REVENUE
Wiltshire,http://opendatacommunities.org/id/unitary-authority/wiltshire,10/12/2019,5107396502,454.8,Banner Group Ltd ,145979,S9 1,Resources,DesignPrintTrowbridg,Stationery,Supplies and Services,REVENUE
Wiltshire,http://opendatacommunities.org/id/unitary-authority/wiltshire,06/12/2019,5107396594,284.99,Banner Group Ltd ,145979,S9 1,Children & Education,Fam Spt Contact&Assm,Stationery,Supplies and Services,REVENUE
Wiltshire,http://opendatacommunities.org/id/unitary-authority/wiltshire,18/12/2019,5107397194,584.45,Banner Group Ltd ,145979,S9 1,Neighbourhood & Planning,Off Street Parking,Equipment Maintenance,Supplies and Services,REVENUE
Wiltshire,http://opendatacommunities.org/id/unitary-authority/wiltshire,23/12/2019,5107397597,713.67,Banner Group Ltd ,145979,S9 1,Resources,Parliamentary Electi,Stationery,Supplies and Services,REVENUE
Wiltshire,http://opendatacommunities.org/id/unitary-authority/wiltshire,11/12/2019,1902465516,3424,Barchester Healthcare - The White L ,121961,SN5 ,Community Services,Home Loans,Adult Residential Placements - Spot Purchase,Third Party Payments,REVENUE
Wiltshire,http://opendatacommunities.org/id/unitary-authority/wiltshire,11/12/2019,1902465517,5600,Barchester Healthcare - The White L ,121961,SN5 ,Community Services,Home Loans,Adult Residential Placements - Spot Purchase,Third Party Payments,REVENUE
Wiltshire,http://opendatacommunities.org/id/unitary-authority/wiltshire,12/12/2019,1902466228,3036.44,Barchester Healthcare - The White L ,121961,SN5 ,Community Services,North Care Packages,Adult Care Nursing Placements - Spot,Third Party Payments,REVENUE
Wiltshire,http://opendatacommunities.org/id/unitary-authority/wiltshire,12/12/2019,1902466229,3036.44,Barchester Healthcare - The White L ,121961,SN5 ,Community Services,North Care Packages,Adult Care Nursing Placements - Spot,Third Party Payments,REVENUE
Wiltshire,http://opendatacommunities.org/id/unitary-authority/wiltshire,12/12/2019,1902466230,3036.44,Barchester Healthcare - The White L ,121961,SN5 ,Community Services,North Care Packages,Adult Care Nursing Placements - Spot,Third Party Payments,REVENUE
Wiltshire,http://opendatacommunities.org/id/unitary-authority/wiltshire,12/12/2019,1902466231,2823.8,Barchester Healthcare - The White L ,121961,SN5 ,Community Services,North Care Packages,Adult Care Nursing Placements - Spot,Third Party Payments,REVENUE
Wiltshire,http://opendatacommunities.org/id/unitary-authority/wiltshire,12/12/2019,1902466232,2855,Barchester Healthcare - The White L ,121961,SN5 ,Community Services,MH OP N&E Locality,Adult Care Nursing Placements - Spot,Third Party Payments,REVENUE
Wiltshire,http://opendatacommunities.org/id/unitary-authority/wiltshire,12/12/2019,1902466233,2879.76,Barchester Healthcare - The White L ,121961,SN5 ,Community Services,North Care Packages,Adult Care Nursing Placements - Spot,Third Party Payments,REVENUE
Wiltshire,http://opendatacommunities.org/id/unitary-authority/wiltshire,12/12/2019,1902466234,5600,Barchester Healthcare - The White L ,121961,SN5 ,Community Services,MH AOWA West Localit,Adult Care Nursing Placements - Spot,Third Party Payments,REVENUE
Wiltshire,http://opendatacommunities.org/id/unitary-authority/wiltshire,12/12/2019,1902466235,2728.48,Barchester Healthcare - The White L ,121961,SN5 ,Community Services,North Care Packages,Adult Care Nursing Placements - Spot,Third Party Payments,REVENUE
Wiltshire,http://opendatacommunities.org/id/unitary-authority/wiltshire,12/12/2019,1902466236,3200,Barchester Healthcare - The White L ,121961,SN5 ,Community Services,MH OP N&E Locality,Adult Residential Placements - Spot Purchase,Third Party Payments,REVENUE
Wiltshire,http://opendatacommunities.org/id/unitary-authority/wiltshire,12/12/2019,1902466237,685.71,Barchester Healthcare - The White L ,121961,SN5 ,Community Services,North Care Packages,Adult Residential Placements - Spot Purchase,Third Party Payments,REVENUE
Wiltshire,http://opendatacommunities.org/id/unitary-authority/wiltshire,10/12/2019,1902463959,3300,Barchester Healthcare Ltd - Rothsay Grange,127635,SP11,Community Services,South Care Packages,Adult Care Nursing Placements - Spot,Third Party Payments,REVENUE
Wiltshire,http://opendatacommunities.org/id/unitary-authority/wiltshire,10/12/2019,1902463960,4179.8,Barchester Healthcare Ltd - Rothsay Grange,127635,SP11,Community Services,South Care Packages,Adult Care Nursing Placements - Spot,Third Party Payments,REVENUE
Wiltshire,http://opendatacommunities.org/id/unitary-authority/wiltshire,11/12/2019,1902465791,903,Barchester Healthcare Ltd (Henford ,111113,BA12,Community Services,West Care Packages,Adult Nursing Place- Spot Purchase Contr,Income,REVENUE
Wiltshire,http://opendatacommunities.org/id/unitary-authority/wiltshire,11/12/2019,1902465792,3012.08,Barchester Healthcare Ltd (Henford ,111113,BA12,Community Services,West Care Packages,Adult Care Nursing Placements - Spot,Third Party Payments,REVENUE
Wiltshire,http://opendatacommunities.org/id/unitary-authority/wiltshire,11/12/2019,1902465793,2573.36,Barchester Healthcare Ltd (Henford ,111113,BA12,Community Services,West Care Packages,Adult Care Nursing Placements - Spot,Third Party Payments,REVENUE
Wiltshire,http://opendatacommunities.org/id/unitary-authority/wiltshire,11/12/2019,1902465794,2737.76,Barchester Healthcare Ltd (Henford ,111113,BA12,Community Services,West Care Packages,Adult Care Nursing Placements - Spot,Third Party Payments,REVENUE
Wiltshire,http://opendatacommunities.org/id/unitary-authority/wiltshire,11/12/2019,1902465795,2779.8,Barchester Healthcare Ltd (Henford ,111113,BA12,Community Services,West Care Packages,Adult Care Nursing Placements - Spot,Third Party Payments,REVENUE
Wiltshire,http://opendatacommunities.org/id/unitary-authority/wiltshire,11/12/2019,1902465796,2967.36,Barchester Healthcare Ltd (Henford ,111113,BA12,Community Services,West Care Packages,Adult Care Nursing Placements - Spot,Third Party Payments,REVENUE
Wiltshire,http://opendatacommunities.org/id/unitary-authority/wiltshire,11/12/2019,1902465797,2728.48,Barchester Healthcare Ltd (Henford ,111113,BA12,Community Services,West Care Packages,Adult Care Nursing Placements - Spot,Third Party Payments,REVENUE
Wiltshire,http://opendatacommunities.org/id/unitary-authority/wiltshire,11/12/2019,1902465798,2728.48,Barchester Healthcare Ltd (Henford ,111113,BA12,Community Services,West Care Packages,Adult Care Nursing Placements - Spot,Third Party Payments,REVENUE
Wiltshire,http://opendatacommunities.org/id/unitary-authority/wiltshire,11/12/2019,1902465799,2534,Barchester Healthcare Ltd (Henford ,111113,BA12,Community Services,West Care Packages,Adult Residential Placements - Spot Purchase,Third Party Payments,REVENUE
Wiltshire,http://opendatacommunities.org/id/unitary-authority/wiltshire,11/12/2019,1902465800,2584,Barchester Healthcare Ltd (Henford ,111113,BA12,Community Services,West Care Packages,Adult Residential Placements - Spot Purchase,Third Party Payments,REVENUE
Wiltshire,http://opendatacommunities.org/id/unitary-authority/wiltshire,11/12/2019,1902465801,2676,Barchester Healthcare Ltd (Henford ,111113,BA12,Community Services,West Care Packages,Adult Residential Placements - Spot Purchase,Third Party Payments,REVENUE
Wiltshire,http://opendatacommunities.org/id/unitary-authority/wiltshire,11/12/2019,1902465802,2832,Barchester Healthcare Ltd (Henford ,111113,BA12,Community Services,West Care Packages,Adult Residential Placements - Spot Purchase,Third Party Payments,REVENUE
Wiltshire,http://opendatacommunities.org/id/unitary-authority/wiltshire,11/12/2019,1902465803,3292,Barchester Healthcare Ltd (Henford ,111113,BA12,Community Services,West Care Packages,Adult Residential Placements - Spot Purchase,Third Party Payments,REVENUE
Wiltshire,http://opendatacommunities.org/id/unitary-authority/wiltshire,11/12/2019,1902465341,487.08,Barchester Healthcare Ltd (Milford ,111597,SP1 ,Community Services,South Care Packages,Adult Nursing Place- Spot Purchase Contr,Income,REVENUE
Wiltshire,http://opendatacommunities.org/id/unitary-authority/wiltshire,11/12/2019,1902465344,4400,Barchester Healthcare Ltd (Milford ,111597,SP1 ,Community Services,Adult Care Gross Loa,Adult Care Nursing Placements - Spot,Third Party Payments,REVENUE
Wiltshire,http://opendatacommunities.org/id/unitary-authority/wiltshire,11/12/2019,1902465345,2213.12,Barchester Healthcare Ltd (Milford ,111597,SP1 ,Community Services,MH OP N&E Locality,Adult Care Nursing Placements - Spot,Third Party Payments,REVENUE
Wiltshire,http://opendatacommunities.org/id/unitary-authority/wiltshire,11/12/2019,1902465346,2697.76,Barchester Healthcare Ltd (Milford ,111597,SP1 ,Community Services,South Care Packages,Adult Care Nursing Placements - Spot,Third Party Payments,REVENUE
Wiltshire,http://opendatacommunities.org/id/unitary-authority/wiltshire,11/12/2019,1902465347,2767.36,Barchester Healthcare Ltd (Milford ,111597,SP1 ,Community Services,South Care Packages,Adult Care Nursing Placements - Spot,Third Party Payments,REVENUE
Wiltshire,http://opendatacommunities.org/id/unitary-authority/wiltshire,11/12/2019,1902465348,2767.36,Barchester Healthcare Ltd (Milford ,111597,SP1 ,Community Services,South Care Packages,Adult Care Nursing Placements - Spot,Third Party Payments,REVENUE
Wiltshire,http://opendatacommunities.org/id/unitary-authority/wiltshire,11/12/2019,1902465349,2783.64,Barchester Healthcare Ltd (Milford ,111597,SP1 ,Community Services,South Care Packages,Adult Care Nursing Placements - Spot,Third Party Payments,REVENUE
Wiltshire,http://opendatacommunities.org/id/unitary-authority/wiltshire,11/12/2019,1902465350,2967.36,Barchester Healthcare Ltd (Milford ,111597,SP1 ,Community Services,South Care Packages,Adult Care Nursing Placements - Spot,Third Party Payments,REVENUE
Wiltshire,http://opendatacommunities.org/id/unitary-authority/wiltshire,11/12/2019,1902465351,3139.12,Barchester Healthcare Ltd (Milford ,111597,SP1 ,Community Services,South Care Packages,Adult Care Nursing Placements - Spot,Third Party Payments,REVENUE
Wiltshire,http://opendatacommunities.org/id/unitary-authority/wiltshire,11/12/2019,1902465352,2728.48,Barchester Healthcare Ltd (Milford ,111597,SP1 ,Community Services,South Care Packages,Adult Care Nursing Placements - Spot,Third Party Payments,REVENUE
Wiltshire,http://opendatacommunities.org/id/unitary-authority/wiltshire,11/12/2019,1902465353,2728.48,Barchester Healthcare Ltd (Milford ,111597,SP1 ,Community Services,South Care Packages,Adult Care Nursing Placements - Spot,Third Party Payments,REVENUE
Wiltshire,http://opendatacommunities.org/id/unitary-authority/wiltshire,11/12/2019,1902465354,2728.48,Barchester Healthcare Ltd (Milford ,111597,SP1 ,Community Services,South Care Packages,Adult Care Nursing Placements - Spot,Third Party Payments,REVENUE
Wiltshire,http://opendatacommunities.org/id/unitary-authority/wiltshire,11/12/2019,1902465355,2728.48,Barchester Healthcare Ltd (Milford ,111597,SP1 ,Community Services,South Care Packages,Adult Care Nursing Placements - Spot,Third Party Payments,REVENUE
Wiltshire,http://opendatacommunities.org/id/unitary-authority/wiltshire,11/12/2019,1902465356,2728.48,Barchester Healthcare Ltd (Milford ,111597,SP1 ,Community Services,South Care Packages,Adult Care Nursing Placements - Spot,Third Party Payments,REVENUE
Wiltshire,http://opendatacommunities.org/id/unitary-authority/wiltshire,11/12/2019,1902465357,2728.48,Barchester Healthcare Ltd (Milford ,111597,SP1 ,Community Services,South Care Packages,Adult Care Nursing Placements - Spot,Third Party Payments,REVENUE
Wiltshire,http://opendatacommunities.org/id/unitary-authority/wiltshire,11/12/2019,1902465358,2368.8,Barchester Healthcare Ltd (Milford ,111597,SP1 ,Community Services,South Care Packages,Adult Residential Placements - Spot Purchase,Third Party Payments,REVENUE
Wiltshire,http://opendatacommunities.org/id/unitary-authority/wiltshire,11/12/2019,1902465359,2368.8,Barchester Healthcare Ltd (Milford ,111597,SP1 ,Community Services,South Care Packages,Adult Residential Placements - Spot Purchase,Third Party Payments,REVENUE
Wiltshire,http://opendatacommunities.org/id/unitary-authority/wiltshire,11/12/2019,1902465360,2488,Barchester Healthcare Ltd (Milford ,111597,SP1 ,Community Services,South Care Packages,Adult Residential Placements - Spot Purchase,Third Party Payments,REVENUE
Wiltshire,http://opendatacommunities.org/id/unitary-authority/wiltshire,11/12/2019,1902465513,4527.36,Barchester Healthcare Ltd (Milford ,111597,SP1 ,Community Services,Home Loans,Adult Care Nursing Placements - Spot,Third Party Payments,REVENUE
Wiltshire,http://opendatacommunities.org/id/unitary-authority/wiltshire,11/12/2019,1902465518,5960,Barchester Healthcare Ltd- The Wing ,121969,BA14,Community Services,Home Loans,Adult Care Nursing Placements - Spot,Third Party Payments,REVENUE
Wiltshire,http://opendatacommunities.org/id/unitary-authority/wiltshire,12/12/2019,1902466238,1151.36,Barchester Healthcare Ltd- The Wing ,121969,BA14,Community Services,CTPLD Placements,Adult Residential Place - Spot Purchase,Income,REVENUE
Wiltshire,http://opendatacommunities.org/id/unitary-authority/wiltshire,12/12/2019,1902466242,3036.44,Barchester Healthcare Ltd- The Wing ,121969,BA14,Community Services,West Care Packages,Adult Care Nursing Placements - Spot,Third Party Payments,REVENUE
Wiltshire,http://opendatacommunities.org/id/unitary-authority/wiltshire,12/12/2019,1902466243,3036.44,Barchester Healthcare Ltd- The Wing ,121969,BA14,Community Services,West Care Packages,Adult Care Nursing Placements - Spot,Third Party Payments,REVENUE
Wiltshire,http://opendatacommunities.org/id/unitary-authority/wiltshire,12/12/2019,1902466244,2515.12,Barchester Healthcare Ltd- The Wing ,121969,BA14,Community Services,MH OP West Locality,Adult Care Nursing Placements - Spot,Third Party Payments,REVENUE
Wiltshire,http://opendatacommunities.org/id/unitary-authority/wiltshire,12/12/2019,1902466245,2820,Barchester Healthcare Ltd- The Wing ,121969,BA14,Community Services,West Care Packages,Adult Care Nursing Placements - Spot,Third Party Payments,REVENUE
Wiltshire,http://opendatacommunities.org/id/unitary-authority/wiltshire,12/12/2019,1902466246,2824.8,Barchester Healthcare Ltd- The Wing ,121969,BA14,Community Services,West Care Packages,Adult Care Nursing Placements - Spot,Third Party Payments,REVENUE
Wiltshire,http://opendatacommunities.org/id/unitary-authority/wiltshire,12/12/2019,1902466247,2867.36,Barchester Healthcare Ltd- The Wing ,121969,BA14,Community Services,West Care Packages,Adult Care Nursing Placements - Spot,Third Party Payments,REVENUE
Wiltshire,http://opendatacommunities.org/id/unitary-authority/wiltshire,12/12/2019,1902466248,3167.36,Barchester Healthcare Ltd- The Wing ,121969,BA14,Community Services,West Care Packages,Adult Care Nursing Placements - Spot,Third Party Payments,REVENUE
Wiltshire,http://opendatacommunities.org/id/unitary-authority/wiltshire,12/12/2019,1902466249,3179.8,Barchester Healthcare Ltd- The Wing ,121969,BA14,Community Services,West Care Packages,Adult Care Nursing Placements - Spot,Third Party Payments,REVENUE
Wiltshire,http://opendatacommunities.org/id/unitary-authority/wiltshire,12/12/2019,1902466250,3400,Barchester Healthcare Ltd- The Wing ,121969,BA14,Community Services,MH OP West Locality,Adult Care Nursing Placements - Spot,Third Party Payments,REVENUE
Wiltshire,http://opendatacommunities.org/id/unitary-authority/wiltshire,12/12/2019,1902466251,3900,Barchester Healthcare Ltd- The Wing ,121969,BA14,Community Services,West Care Packages,Adult Care Nursing Placements - Spot,Third Party Payments,REVENUE
Wiltshire,http://opendatacommunities.org/id/unitary-authority/wiltshire,12/12/2019,1902466252,3980,Barchester Healthcare Ltd- The Wing ,121969,BA14,Community Services,West Care Packages,Adult Care Nursing Placements - Spot,Third Party Payments,REVENUE
Wiltshire,http://opendatacommunities.org/id/unitary-authority/wiltshire,12/12/2019,1902466253,4000,Barchester Healthcare Ltd- The Wing ,121969,BA14,Community Services,West Care Packages,Adult Care Nursing Placements - Spot,Third Party Payments,REVENUE
Wiltshire,http://opendatacommunities.org/id/unitary-authority/wiltshire,12/12/2019,1902466254,4400,Barchester Healthcare Ltd- The Wing ,121969,BA14,Community Services,MH OP N&E Locality,Adult Care Nursing Placements - Spot,Third Party Payments,REVENUE
Wiltshire,http://opendatacommunities.org/id/unitary-authority/wiltshire,12/12/2019,1902466255,4552,Barchester Healthcare Ltd- The Wing ,121969,BA14,Community Services,MH OP West Locality,Adult Care Nursing Placements - Spot,Third Party Payments,REVENUE
